Workbook

Sheet Calculator
A2: KrolLDiscovery Employee Plan Costs Calculator
A3: Note: Healthcare costs are unpredictable; this comparison sheet provides only a general estimate of healthcare costs, based on average procedure cost. Your actual cost will be different. The calculator assumes all claims are in-network.
A4: Instructions
A5: - Select coverage type and contribution band from the drop down menus.
A6: - Input HSA rollover amount if applicable.
A7: - Enter the applicable information for you and your covered dependents in the light blue cells. Delete any inputs in cells that are not light blue.
A8: - If you do not want to enter data, either leave it blank or 0. Do not enter a space. Clear the calculator by clicking the button before re-entering data.
A9: - Click the "Low", "Med", or "High" buttons to input default utilization assumptions.
A10: - Use the outputs to determine which plans are most cost effective.
A11: Type of Coverage
A13: Coverage Type | B13: Employee | E13: =IF(B15="","Warning: Select a"&" "& A15,"") ->  | H13: =B13="Employee" -> TRUE
H14: =B13="Employee + Spouse" -> FALSE
A15: ='2. Contribution Inputs'!D17 -> Contribution Band | B15: Active | H15: =B13="Employee + 1" -> FALSE
H16: =B13="Employee + Child" -> FALSE
A17: Health Savings Account (HSA) Rollover from Prior Years | B17: 0 | E17: =IF(OR(AND(D21="",SUM(D22:D38)<>0),AND(E21="",SUM(E22:E38)<>0),AND(F21="",SUM(F22:F38)<>0),AND(G21="",SUM(G22:G38)<>0),AND(H21="",SUM(H22:H38)<>0),AND(I21="",SUM(I22:I38)<>0)),"Warning: Clear the gray utilization inputs below","") ->  | H17: =B13="Employee + Child(ren)" -> FALSE
H18: =B13="Employee + Family" -> FALSE
A19: Are you (and other dependent plan participants) Low, Medium, or High Utilizers of the Medical Plan?
A20: You can enter the estimated number of visits below or have the tool generalize for you to the right --->
C21: ='2. Contribution Inputs'!C10 -> Employee | D21: =IF(VLOOKUP(Coverage,Worksheet!$E$1:$K$14,3,FALSE)=0,"",(VLOOKUP(Coverage,Worksheet!$E$1:$K$14,3,FALSE))) ->  | E21: =IF(VLOOKUP(Coverage,Worksheet!$E$1:$K$14,4,FALSE)=0,"",(VLOOKUP(Coverage,Worksheet!$E$1:$K$14,4,FALSE))) ->  | F21: =IF(VLOOKUP(Coverage,Worksheet!$E$1:$K$14,5,FALSE)=0,"",(VLOOKUP(Coverage,Worksheet!$E$1:$K$14,5,FALSE))) ->  | G21: =IF(VLOOKUP(Coverage,Worksheet!$E$1:$K$14,6,FALSE)=0,"",(VLOOKUP(Coverage,Worksheet!$E$1:$K$14,6,FALSE))) ->  | H21: =IF(VLOOKUP(Coverage,Worksheet!$E$1:$K$14,7,FALSE)=0,"",(VLOOKUP(Coverage,Worksheet!$E$1:$K$14,7,FALSE))) -> 
A22: Preventive Services | B22: Annual number of Covered Preventive Visits
A23: Hospitalizations | B23: Annual number of Days in Hospitals
A24: Outpatient Surgery | B24: Annual number of Outpatient Surgeries
A25: Lab/X-ray/other Radiology Performed in Hospital/Outpatient Facility | B25: Annual number of Lab/Radiology Procedures (performed in the hospital or outpatient facility)
A26: Emergency Room Visits | B26: Annual number of Emergency Room Visits
A27: Urgent Care Visits | B27: Annual number of Urgent Care Visits
A28: Office Visits | B28: Annual number of Primary Care Office Visits
B29: Annual number of Specialists Office Visits
B30: Annual number of Chiropractor Visits
A31: Prescription Drugs | B31: Total number of Generic Prescriptions (Retail)—Annual
B32: Total number of Formulary Brand-name Prescriptions (Retail)—Annual
B33: Total number of Non-Formulary Brand-name Prescriptions (Retail)—Annual
B34: Total number of Specialty Prescriptions (Retail)—Annual
B35: Total number of Generic Prescriptions (Mail)—Annual
B36: Total number of Formulary Brand-name Prescriptions (Mail)—Annual
B37: Total number of Non-Formulary Brand-name Prescriptions (Mail)—Annual
B38: Total number of Specialty Prescriptions (Mail)—Annual
A39: All Other | B39: Enter the annual allowed charges for all other claims (i.e., outpatient hospital services other than surgery, ambulance, durable medical equipment, home healthcare, etc.)
B40: Utilization Default | C40: =IF(SUM(Input1)=0,"None",IF(AND(EXACT(Input1,LowAdult)),"Low",IF(AND(EXACT(Input1,MedAdult)),"Med",IF(AND(EXACT(Input1,HighAdult)),"High","Custom")))) -> None | D40: =IF(Description2="","",IF(SUM(Input2)=0,"None",IF(Description2="Child",IF(AND(EXACT(Input2,LowChild)),"Low",IF(AND(EXACT(Input2,MedChild)),"Med",IF(AND(EXACT(Input2,HighChild)),"High","Custom"))),IF(AND(EXACT(Input2,LowAdult)),"Low",IF(AND(EXACT(Input2,MedAdult)),"Med",IF(AND(EXACT(Input2,HighAdult)),"High","Custom")))))) ->  | E40: =IF(Description3="","",IF(SUM(Input3)=0,"None",IF(Description3="Child",IF(AND(EXACT(Input3,LowChild)),"Low",IF(AND(EXACT(Input3,MedChild)),"Med",IF(AND(EXACT(Input3,HighChild)),"High","Custom"))),IF(AND(EXACT(Input3,LowAdult)),"Low",IF(AND(EXACT(Input3,MedAdult)),"Med",IF(AND(EXACT(Input3,HighAdult)),"High","Custom")))))) ->  | F40: =IF(Description4="","",IF(SUM(Input4)=0,"None",IF(Description4="Child",IF(AND(EXACT(Input4,LowChild)),"Low",IF(AND(EXACT(Input4,MedChild)),"Med",IF(AND(EXACT(Input4,HighChild)),"High","Custom"))),IF(AND(EXACT(Input4,LowAdult)),"Low",IF(AND(EXACT(Input4,MedAdult)),"Med",IF(AND(EXACT(Input4,HighAdult)),"High","Custom")))))) ->  | G40: =IF(Description5="","",IF(SUM(Input5)=0,"None",IF(Description5="Child",IF(AND(EXACT(Input5,LowChild)),"Low",IF(AND(EXACT(Input5,MedChild)),"Med",IF(AND(EXACT(Input5,HighChild)),"High","Custom"))),IF(AND(EXACT(Input5,LowAdult)),"Low",IF(AND(EXACT(Input5,MedAdult)),"Med",IF(AND(EXACT(Input5,HighAdult)),"High","Custom")))))) ->  | H40: =IF(Description6="","",IF(SUM(Input6)=0,"None",IF(Description6="Child",IF(AND(EXACT(Input6,LowChild)),"Low",IF(AND(EXACT(Input6,MedChild)),"Med",IF(AND(EXACT(Input6,HighChild)),"High","Custom"))),IF(AND(EXACT(Input6,LowAdult)),"Low",IF(AND(EXACT(Input6,MedAdult)),"Med",IF(AND(EXACT(Input6,HighAdult)),"High","Custom")))))) -> 
A42: Cost Per Service: Model assumes the following cost per service. Override if your cost per service are expected to be different.
A43: Preventive Services | B43: Cost of Covered Preventive Services | C43: 128.8575
A44: Hospitalizations | B44: Cost for Hospitalizations per Day | C44: 4362
A45: Outpatient Surgery | B45: Cost for Outpatient Surgeries | C45: 1293.968887
A46: Lab/X-ray/other Radiology Performed in Hospital/Outpatient Facility | B46: Cost of Lab/Radiology Procedures | C46: 260.05
A47: Emergency Room Visits | B47: Cost of Emergency Room | C47: 1849
A48: Urgent Care Visits | B48: Cost of Urgent Care | C48: 138
A49: Office Visits | B49: Cost of Primary Care Office Visits, including lab and x-ray | C49: 130.9618333
B50: Cost of Specialists Office Visits, including lab and x-ray | C50: 189.62
B51: Cost of Chiropractor Visit | C51: 34.5
A52: Prescription Drugs | B52: Cost per Generic Prescription | C52: 31
B53: Cost per Formulary Brand-Name Prescription | C53: 292
B54: Cost per Non-Formulary Brand-Name Prescription | C54: 292
B55: Cost per Specialty Prescription | C55: 2733
B71: Plan Options | C71: Employee Out of Pocket Medical Cost | D71: Employee Annualized Contribution | E71: Total Employee Out of Pocket | F71: Employer Contribution to HSA/HRA (including rollover)* | G71: Total Employee Contribution and Out of Pocket cost after HSA | H71: HSA/HRA Rollover Excess Funds
B72: =IF('1. Plan Inputs'!F17="","",'1. Plan Inputs'!F17) -> OAP | C72: =IF(B72="","",IF(Calculator!B13=Worksheet!E1,Worksheet!F143,IF('1. Plan Inputs'!G26="Embedded",Worksheet!F143,Worksheet!F154))) -> 0 | D72: =IF(B72="","",(VLOOKUP(B13,'2. Contribution Inputs'!B36:N41,MATCH(B15,'2. Contribution Inputs'!C35:N35,0)+1,0))*12) -> 2165.28 | E72: =IF(B72="","",D72+C72) -> 2165.28 | F72: =IF(B72="","",IF('1. Plan Inputs'!G19="Yes",VLOOKUP(B13,'2. Contribution Inputs'!B93:N98,MATCH(Calculator!B15,'2. Contribution Inputs'!C92:N92,0)+1,0)*12,0)+B17) -> 0 | G72: =IF(B72="","",IF(C72=0,E72,IF(C72<F72,D72,E72-F72))) -> 2165.28 | H72: =IF(B72="","",IF(C72<F72,F72-C72,0)) -> 0 | I72: =IF(G72<=MIN(G$72:G$77),B72,"") -> 
B73: =IF('1. Plan Inputs'!I17="","",'1. Plan Inputs'!I17) -> HSA 1350 | C73: =IF(B73="","",IF(Calculator!B13=Worksheet!E1,Worksheet!N143,IF('1. Plan Inputs'!J26="Embedded",Worksheet!N143,Worksheet!N154))) -> 0 | D73: =IF(B73="","",(VLOOKUP(B13,'2. Contribution Inputs'!B45:N50,MATCH(B15,'2. Contribution Inputs'!C44:N44,0)+1,0))*12) -> 1531.14 | E73: 1531.14 | F73: =IF(B73="","",IF('1. Plan Inputs'!J19="Yes",VLOOKUP(B13,'2. Contribution Inputs'!B102:N107,MATCH(Calculator!B15,'2. Contribution Inputs'!C101:N101,0)+1,0)*12,0)+B17) -> 400 | G73: =IF(B73="","",IF(C73=0,E73,IF(C73<F73,D73,E73-F73))) -> 1531.14 | H73: 400 | I73: =IF(G73<=MIN(G$72:G$77),B73,"") -> 
B74: =IF('1. Plan Inputs'!L17="","",'1. Plan Inputs'!L17) -> HSA 2000 | C74: =IF(B74="","",IF(Calculator!B13=Worksheet!E1,Worksheet!V143,IF('1. Plan Inputs'!M26="Embedded",Worksheet!V143,Worksheet!V154))) -> 0 | D74: =IF(B74="","",(VLOOKUP(B13,'2. Contribution Inputs'!B54:N59,MATCH(B15,'2. Contribution Inputs'!C53:N53,0)+1,0))*12) -> 673.14 | E74: 673.14 | F74: =IF(B74="","",IF('1. Plan Inputs'!M19="Yes",VLOOKUP(B13,'2. Contribution Inputs'!B111:N116,MATCH(Calculator!B15,'2. Contribution Inputs'!C110:N110,0)+1,0)*12,0)+B17) -> 400 | G74: =IF(B74="","",IF(C74=0,E74,IF(C74<F74,D74,E74-F74))) -> 673.14 | H74: 400 | I74: HSA 2000
B75: =IF('1. Plan Inputs'!O17="","",'1. Plan Inputs'!O17) ->  | C75: =IF(B75="","",IF(Calculator!B13=Worksheet!E1,Worksheet!AD143,IF('1. Plan Inputs'!P26="Embedded",Worksheet!AD143,Worksheet!AD154))) ->  | D75: =IF(B75="","",(VLOOKUP(B13,'2. Contribution Inputs'!B63:N68,MATCH(B15,'2. Contribution Inputs'!C62:N62,0)+1,0))*12) ->  | F75: =IF(B75="","",IF('1. Plan Inputs'!P19="Yes",VLOOKUP(B13,'2. Contribution Inputs'!B120:N125,MATCH(Calculator!B15,'2. Contribution Inputs'!C119:N119,0)+1,0)*12,0)+B17) -> 
B76: =IF('1. Plan Inputs'!R17="","",'1. Plan Inputs'!R17) ->  | C76: =IF(B76="","",IF(Calculator!B13=Worksheet!E1,Worksheet!AL143,IF('1. Plan Inputs'!S26="Embedded",Worksheet!AL143,Worksheet!AL154))) ->  | D76: =IF(B76="","",(VLOOKUP(B13,'2. Contribution Inputs'!B72:N77,MATCH(B15,'2. Contribution Inputs'!C71:N71,0)+1,0))*12) ->  | F76: =IF(B76="","",IF('1. Plan Inputs'!S19="Yes",VLOOKUP(B13,'2. Contribution Inputs'!B129:N134,MATCH(Calculator!B15,'2. Contribution Inputs'!C128:N128,0)+1,0)*12,0)+B17) -> 
B77: =IF('1. Plan Inputs'!U17="","",'1. Plan Inputs'!U17) ->  | C77: =IF(B77="","",IF(Calculator!B13=Worksheet!E1,Worksheet!AT143,IF('1. Plan Inputs'!V26="Embedded",Worksheet!AT143,Worksheet!AT154))) ->  | D77: =IF(B77="","",(VLOOKUP(B13,'2. Contribution Inputs'!B81:N86,MATCH(B15,'2. Contribution Inputs'!C80:N80,0)+1,0))*12) ->  | F77: =IF(B77="","",IF('1. Plan Inputs'!V19="Yes",VLOOKUP(B13,'2. Contribution Inputs'!B138:N143,MATCH(Calculator!B15,'2. Contribution Inputs'!C137:N137,0)+1,0)*12,0)+B17) -> 
A80: The following plan(s) is (are) the lowest cost options: | B80: =I72&" "&I73&" "&I74&" "&I75&" "&I76&" "&I77 -> HSA 2000
A82: © 2016 Lockton, Inc. All rights reserved.

Sheet 1. Plan Inputs (hidden)
A1: Instructions
A2: Only light blue boxes should be used to input information.
A4: 1. Select the number of plans and input unique names for each plan.
A6: 2. Input the benefit design for each plan. If the inputs do not accommodate your plan please contact
A7: LBG actuarial.
A9: 3. To reset a plan to the default settings click the "Reset Defaults" buttons. Click the "Reset Defaults"
A10: button for unused plan slots.
A12: 4. Move to the "2. Contribution Inputs" tab when finished.
A14: Number of unique plans: | E14: 3
B15: Reselecting might clear plan designs
A17: Plan Name: | F17: OAP | I17: HSA 1350 | L17: HSA 2000
B19: Does the plan have an HSA or HRA? | G19: No | I19: HSA/HRA? | J19: Yes | L19: HSA/HRA? | M19: Yes | O19: HSA/HRA? | P19: No | R19: HSA/HRA? | S19: No | U19: HSA/HRA? | V19: No
A21: Input Benefits:
B23: Individual Deductible: | G23: 250 | I23: Ind. Ded.: | J23: 1350 | L23: Ind. Ded.: | M23: 2000 | O23: Ind. Ded.: | P23: 0 | R23: Ind. Ded.: | S23: 0 | U23: Ind. Ded.: | V23: 0
B24: Family Deductible: | G24: 500 | I24: Fam. Ded.: | J24: 2700 | L24: Fam. Ded.: | M24: 4000 | O24: Fam. Ded.: | P24: 0 | R24: Fam. Ded.: | S24: 0 | U24: Fam. Ded.: | V24: 0
C26: Embedded/Non-Embedded: | G26: Embedded | I26: Emb/Non-Emb: | J26: Non-Embedded | L26: Emb/Non-Emb: | M26: Non-Embedded | P26: Embedded | R26: Emb/Non-Emb: | S26: Embedded | U26: Emb/Non-Emb: | V26: Embedded
D27: Applies to Deductible and Out-of-Pocket Max
B28: Member Coinsurance: | G28: 0.1 | I28: Coinsurance: | J28: 0.2 | L28: Coinsurance: | M28: 0.2 | O28: Coinsurance: | P28: 0 | R28: Coinsurance: | S28: 0 | U28: Coinsurance: | V28: 0
B30: Individual Out-of-Pocket Max: | G30: 2500 | I30: Ind. OOP Max: | J30: 2700 | L30: Ind. OOP Max: | M30: 6000 | O30: Ind. OOP Max: | P30: 0 | R30: Ind. OOP Max: | S30: 0 | U30: Ind. OOP Max: | V30: 0
B31: Family Out-of-Pocket Max: | G31: 5000 | I31: Fam. OOP max: | J31: 5400 | L31: Fam. OOP max: | M31: 12000 | O31: Fam. OOP max: | P31: 0 | R31: Fam. OOP max: | S31: 0 | U31: Fam. OOP max: | V31: 0
C32: The Out-of-Pocket Max includes the deductible
F33: Subject to Ded/Coins? | G33: Copayment Amount | I33: Subject to Ded/Coins? | J33: Copayment Amount | L33: Subject to Ded/Coins? | M33: Copayment Amount | O33: Subject to Ded/Coins? | P33: Copayment Amount | R33: Subject to Ded/Coins? | S33: Copayment Amount | U33: Subject to Ded/Coins? | V33: Copayment Amount
B34: Inpatient: | F34: Yes | I34: Yes | J34: 0 | L34: Yes | M34: 0 | O34: Yes | P34: 0 | R34: Yes | S34: 0 | U34: Yes | V34: 0
B35: Outpatient: | F35: Yes | I35: Yes | J35: 0 | L35: Yes | M35: 0 | O35: Yes | P35: 0 | R35: Yes | S35: 0 | U35: Yes | V35: 0
B36: Lab/X-Ray/Radiology: | F36: No | G36: 0 | I36: Yes | J36: 0 | L36: Yes | M36: 0 | O36: Yes | P36: 0 | R36: Yes | S36: 0 | U36: Yes | V36: 0
B38: Emergency Room | F38: No | G38: 200 | I38: Yes | J38: 0 | L38: Yes | M38: 0 | O38: Yes | P38: 0 | R38: Yes | S38: 0 | U38: Yes | V38: 0
B39: Urgent Care | F39: No | G39: 75 | I39: Yes | J39: 0 | L39: Yes | M39: 0 | O39: Yes | P39: 0 | R39: Yes | S39: 0 | U39: Yes | V39: 0
B41: Preventive Visit: | F41: No | G41: 0 | I41: No | J41: 0 | L41: No | M41: 0 | O41: No | P41: 0 | R41: No | S41: 0 | U41: No | V41: 0
B42: PCP Office Visit: | F42: Yes | G42: 25 | I42: Yes | J42: 0 | L42: Yes | M42: 0 | O42: Yes | P42: 0 | R42: Yes | S42: 0 | U42: Yes | V42: 0
B43: Specialist Office Visit: | F43: Yes | G43: 50 | I43: Yes | J43: 0 | L43: Yes | M43: 0 | O43: Yes | P43: 0 | R43: Yes | S43: 0 | U43: Yes | V43: 0
B44: Chiropractor: | F44: Yes | G44: 25 | I44: Yes | J44: 0 | L44: Yes | M44: 0 | O44: Yes | P44: 0 | R44: Yes | S44: 0 | U44: Yes | V44: 0
B46: Medical Copays apply to OOP Max? | G46: Yes | I46: Med copays to OOP? | J46: Yes | L46: Med copays to OOP? | M46: Yes | O46: Med copays to OOP? | P46: Yes | R46: Med copays to OOP? | S46: Yes | U46: Med copays to OOP? | V46: Yes
B48: Rx copayments/coinsurance apply to OOP Max? | G48: Yes | I48: Rx to OOP? | J48: Yes | L48: Rx to OOP? | M48: Yes | O48: Rx to OOP? | P48: Yes | R48: Rx to OOP? | S48: Yes | U48: Rx to OOP? | V48: Yes
B50: Rx Subject to Deductible? | G50: No | I50: Rx to Ded? | J50: Yes | L50: Rx to Ded? | M50: Yes | O50: Rx to Ded? | P50: No | R50: Rx to Ded? | S50: No | U50: Rx to Ded? | V50: No
B52: Input Copayments OR Coinsurance | F52: Copayment Amount | G52: Rx Coinsurance | I52: Copayment Amount | J52: Rx Coinsurance | L52: Copayment Amount | M52: Rx Coinsurance | O52: Copayment Amount | P52: Rx Coinsurance | R52: Copayment Amount | S52: Rx Coinsurance | U52: Copayment Amount | V52: Rx Coinsurance
B53: Rx Generic (Retail): | F53: 10 | G53: 0 | I53: 10 | J53: 0 | L53: 10 | M53: 0.2 | O53: 0 | P53: 0 | R53: 0 | S53: 0 | U53: 0 | V53: 0
B54: Rx Brand Formulary (Retail): | F54: 35 | G54: 0 | I54: 35 | J54: 0 | L54: 35 | M54: 0.2 | O54: 0 | P54: 0 | R54: 0 | S54: 0 | U54: 0 | V54: 0
B55: Rx Brand Non-Formulary (Retail): | F55: 60 | G55: 0 | I55: 60 | J55: 0 | L55: 60 | M55: 0.2 | O55: 0 | P55: 0 | R55: 0 | S55: 0 | U55: 0 | V55: 0
B56: Rx Specialty (Retail): | F56: 60 | G56: 0 | I56: 60 | J56: 0 | L56: 60 | M56: 0.2 | O56: 0 | P56: 0 | R56: 0 | S56: 0 | U56: 0 | V56: 0
B57: Rx Generic (Mail/90-Day): | F57: 20 | G57: 0 | I57: 20 | J57: 0 | L57: 20 | M57: 0.2 | O57: 0 | P57: 0 | R57: 0 | S57: 0 | U57: 0 | V57: 0
B58: Rx Brand Formulary (Mail/90-Day): | F58: 70 | G58: 0 | I58: 70 | J58: 0 | L58: 70 | M58: 0.2 | O58: 0 | P58: 0 | R58: 0 | S58: 0 | U58: 0 | V58: 0
B59: Rx Brand Non-Formulary (Mail/90-Day): | F59: 120 | G59: 0 | I59: 120 | J59: 0 | L59: 120 | M59: 0.2 | O59: 0 | P59: 0 | R59: 0 | S59: 0 | U59: 0 | V59: 0
B60: Rx Specialty (Mail/90-Day): | F60: 120 | G60: 0 | I60: 120 | J60: 0 | L60: 120 | M60: 0.2 | O60: 0 | P60: 0 | R60: 0 | S60: 0 | U60: 0 | V60: 0
C61: Model Assumes copays if both copays and coinsurance are entered.

Sheet 2. Contribution Inputs (hidden)
F1: Instructions
F2: Only light blue boxes should be used to input information.
F4: 1. Go to the "Tier Description" box and select the appropriate tier structure.
F6: 2. Go to the "Contribution Band" box and list all contribution bands. Enter all possible bands
F7: even if certain bands do not apply to every plan. YOU MUST ENTER AT LEAST ONE CONTRIBUTION
B8: 1. Tier Description: | F8: BAND NAME. In the top right, input the label that will appear on the calculator tab.
D9: Sample
B10: Tier 1: | C10: Employee | D10: Employee | F10: 3. Go to the "Monthly Employee Contributions" box and enter the contribution amounts for the
B11: Tier 2: | C11: Employee + Spouse | D11: Employee + Spouse | F11: appropriate plan, tier, and band.
B12: Tier 3: | C12: Employee + Child(ren) | D12: Employee + Child(ren)
B13: Tier 4: | C13: Employee + Family | D13: Employee + Family | F13: 4. If one or more of the plans has an HSA then continue to the "Monthly Employer HSA.
B14: Tier 5: | F14: Contributions" box. Enter the monthly HSA amounts for the appropriate plan, tier, and band.
B15: Tier 6:
F16: 5. Use the buttons below to select which features will be visible on the "Calculator" tab.
B17: 2. Contribution Bands: | D17: Contribution Band
D18: Sample | F18: 6. Click the "Lock" button to lock the calculator for client use. The password to unlock is "calculator".
B19: Band 1: | C19: Active | D19: <=$75k
B20: Band 2: | D20: $75k - $125k | F20: Low/Med/High Inputs: | I20: The Low/Med/High Inputs and Utilization Inputs should not be hidden simultaneously.
B21: Band 3: | D21: $125k+
B22: Band 4: | D22: <=$75k, Tobacco
B23: Band 5: | D23: $75k - $125k Tobacco | F23: Utilization Inputs:
B24: Band 6: | D24: $125k+ Tobacco
B25: Band 7:
B26: Band 8: | F26: Costs per Service
B27: Band 9:
B28: Band 10:
B29: Band 11:
B30: Band 12:
B32: 3. Monthly Employee Contributions:
B34: ='1. Plan Inputs'!F17 -> OAP
C35: =$C$19 -> Active | D35: =$C$20 -> 0 | E35: =$C$21 -> 0 | F35: =$C$22 -> 0 | G35: =$C$23 -> 0 | H35: =$C$24 -> 0 | I35: =$C$25 -> 0 | J35: =$C$26 -> 0 | K35: =$C$27 -> 0 | L35: =$C$28 -> 0 | M35: =$C$29 -> 0 | N35: =$C$30 -> 0
B36: =$C$10 -> Employee | C36: =83.28*26/12 -> 180.44
B37: =$C$11 -> Employee + Spouse | C37: =178.41*26/12 -> 386.555
B38: =$C$12 -> Employee + Child(ren) | C38: =172.17*26/12 -> 373.035
B39: =$C$13 -> Employee + Family | C39: =289.71*26/12 -> 627.705
B40: =$C$14 -> 0
B41: =$C$15 -> 0
B43: ='1. Plan Inputs'!I17 -> HSA 1350
C44: =$C$19 -> Active | D44: =$C$20 -> 0 | E44: =$C$21 -> 0 | F44: =$C$22 -> 0 | G44: =$C$23 -> 0 | H44: =$C$24 -> 0 | I44: =$C$25 -> 0 | J44: =$C$26 -> 0 | K44: =$C$27 -> 0 | L44: =$C$28 -> 0 | M44: =$C$29 -> 0 | N44: =$C$30 -> 0
B45: =$C$10 -> Employee | C45: =58.89*26/12 -> 127.595
B46: =$C$11 -> Employee + Spouse | C46: =129.63*26/12 -> 280.865
B47: =$C$12 -> Employee + Child(ren) | C47: =125.09*26/12 -> 271.0283333
B48: =$C$13 -> Employee + Family | C48: =213.84*26/12 -> 463.32
B49: =$C$14 -> 0
B50: =$C$15 -> 0
B52: ='1. Plan Inputs'!L17 -> HSA 2000
C53: =$C$19 -> Active | D53: =$C$20 -> 0 | E53: =$C$21 -> 0 | F53: =$C$22 -> 0 | G53: =$C$23 -> 0 | H53: =$C$24 -> 0 | I53: =$C$25 -> 0 | J53: =$C$26 -> 0 | K53: =$C$27 -> 0 | L53: =$C$28 -> 0 | M53: =$C$29 -> 0 | N53: =$C$30 -> 0
B54: =$C$10 -> Employee | C54: =25.89*26/12 -> 56.095
B55: =$C$11 -> Employee + Spouse | C55: =64.72*26/12 -> 140.2266667
B56: =$C$12 -> Employee + Child(ren) | C56: =62.46*26/12 -> 135.33
B57: =$C$13 -> Employee + Family | C57: =114.06*26/12 -> 247.13
B58: =$C$14 -> 0
B59: =$C$15 -> 0
B61: ='1. Plan Inputs'!O17 -> 0
C62: =$C$19 -> Active | D62: =$C$20 -> 0 | E62: =$C$21 -> 0 | F62: =$C$22 -> 0 | G62: =$C$23 -> 0 | H62: =$C$24 -> 0 | I62: =$C$25 -> 0 | J62: =$C$26 -> 0 | K62: =$C$27 -> 0 | L62: =$C$28 -> 0 | M62: =$C$29 -> 0 | N62: =$C$30 -> 0
B63: =$C$10 -> Employee
B64: =$C$11 -> Employee + Spouse
B65: =$C$12 -> Employee + Child(ren)
B66: =$C$13 -> Employee + Family
B67: =$C$14 -> 0
B68: =$C$15 -> 0
B70: ='1. Plan Inputs'!R17 -> 0
C71: =$C$19 -> Active | D71: =$C$20 -> 0 | E71: =$C$21 -> 0 | F71: =$C$22 -> 0 | G71: =$C$23 -> 0 | H71: =$C$24 -> 0 | I71: =$C$25 -> 0 | J71: =$C$26 -> 0 | K71: =$C$27 -> 0 | L71: =$C$28 -> 0 | M71: =$C$29 -> 0 | N71: =$C$30 -> 0
B72: =$C$10 -> Employee
B73: =$C$11 -> Employee + Spouse
B74: =$C$12 -> Employee + Child(ren)
B75: =$C$13 -> Employee + Family
B76: =$C$14 -> 0
B77: =$C$15 -> 0
B79: ='1. Plan Inputs'!U17 -> 0
C80: =$C$19 -> Active | D80: =$C$20 -> 0 | E80: =$C$21 -> 0 | F80: =$C$22 -> 0 | G80: =$C$23 -> 0 | H80: =$C$24 -> 0 | I80: =$C$25 -> 0 | J80: =$C$26 -> 0 | K80: =$C$27 -> 0 | L80: =$C$28 -> 0 | M80: =$C$29 -> 0 | N80: =$C$30 -> 0
B81: =$C$10 -> Employee
B82: =$C$11 -> Employee + Spouse
B83: =$C$12 -> Employee + Child(ren)
B84: =$C$13 -> Employee + Family
B85: =$C$14 -> 0
B86: =$C$15 -> 0
B89: 4. Monthly Employer HSA/HRA Contributions:
B91: ='1. Plan Inputs'!F17 -> OAP
C92: =$C$19 -> Active | D92: =$C$20 -> 0 | E92: =$C$21 -> 0 | F92: =$C$22 -> 0 | G92: =$C$23 -> 0 | H92: =$C$24 -> 0 | I92: =$C$25 -> 0 | J92: =$C$26 -> 0 | K92: =$C$27 -> 0 | L92: =$C$28 -> 0 | M92: =$C$29 -> 0 | N92: =$C$30 -> 0
B93: =$C$10 -> Employee
B94: =$C$11 -> Employee + Spouse
B95: =$C$12 -> Employee + Child(ren)
B96: =$C$13 -> Employee + Family
B97: =$C$14 -> 0
B98: =$C$15 -> 0
B100: ='1. Plan Inputs'!I17 -> HSA 1350
C101: =$C$19 -> Active | D101: =$C$20 -> 0 | E101: =$C$21 -> 0 | F101: =$C$22 -> 0 | G101: =$C$23 -> 0 | H101: =$C$24 -> 0 | I101: =$C$25 -> 0 | J101: =$C$26 -> 0 | K101: =$C$27 -> 0 | L101: =$C$28 -> 0 | M101: =$C$29 -> 0 | N101: =$C$30 -> 0
B102: =$C$10 -> Employee | C102: =400/12 -> 33.33333333
B103: =$C$11 -> Employee + Spouse | C103: =800/12 -> 66.66666667
B104: =$C$12 -> Employee + Child(ren) | C104: =800/12 -> 66.66666667
B105: =$C$13 -> Employee + Family | C105: 66.66666667
B106: =$C$14 -> 0
B107: =$C$15 -> 0
B109: ='1. Plan Inputs'!L17 -> HSA 2000
C110: =$C$19 -> Active | D110: =$C$20 -> 0 | E110: =$C$21 -> 0 | F110: =$C$22 -> 0 | G110: =$C$23 -> 0 | H110: =$C$24 -> 0 | I110: =$C$25 -> 0 | J110: =$C$26 -> 0 | K110: =$C$27 -> 0 | L110: =$C$28 -> 0 | M110: =$C$29 -> 0 | N110: =$C$30 -> 0
B111: =$C$10 -> Employee | C111: 33.33333333
B112: =$C$11 -> Employee + Spouse | C112: 66.66666667
B113: =$C$12 -> Employee + Child(ren) | C113: 66.66666667
B114: =$C$13 -> Employee + Family | C114: 66.66666667
B115: =$C$14 -> 0
B116: =$C$15 -> 0
B118: ='1. Plan Inputs'!O17 -> 0
C119: =$C$19 -> Active | D119: =$C$20 -> 0 | E119: =$C$21 -> 0 | F119: =$C$22 -> 0 | G119: =$C$23 -> 0 | H119: =$C$24 -> 0 | I119: =$C$25 -> 0 | J119: =$C$26 -> 0 | K119: =$C$27 -> 0 | L119: =$C$28 -> 0 | M119: =$C$29 -> 0 | N119: =$C$30 -> 0
B120: =$C$10 -> Employee
B121: =$C$11 -> Employee + Spouse
B122: =$C$12 -> Employee + Child(ren)
B123: =$C$13 -> Employee + Family
B124: =$C$14 -> 0
B125: =$C$15 -> 0
B127: ='1. Plan Inputs'!R17 -> 0
C128: =$C$19 -> Active | D128: =$C$20 -> 0 | E128: =$C$21 -> 0 | F128: =$C$22 -> 0 | G128: =$C$23 -> 0 | H128: =$C$24 -> 0 | I128: =$C$25 -> 0 | J128: =$C$26 -> 0 | K128: =$C$27 -> 0 | L128: =$C$28 -> 0 | M128: =$C$29 -> 0 | N128: =$C$30 -> 0
B129: =$C$10 -> Employee
B130: =$C$11 -> Employee + Spouse
B131: =$C$12 -> Employee + Child(ren)
B132: =$C$13 -> Employee + Family
B133: =$C$14 -> 0
B134: =$C$15 -> 0
B136: ='1. Plan Inputs'!U17 -> 0
C137: =$C$19 -> Active | D137: =$C$20 -> 0 | E137: =$C$21 -> 0 | F137: =$C$22 -> 0 | G137: =$C$23 -> 0 | H137: =$C$24 -> 0 | I137: =$C$25 -> 0 | J137: =$C$26 -> 0 | K137: =$C$27 -> 0 | L137: =$C$28 -> 0 | M137: =$C$29 -> 0 | N137: =$C$30 -> 0
B138: =$C$10 -> Employee
B139: =$C$11 -> Employee + Spouse
B140: =$C$12 -> Employee + Child(ren)
B141: =$C$13 -> Employee + Family
B142: =$C$14 -> 0
B143: =$C$15 -> 0

Sheet Worksheet (hidden)
B1: 1 | C1: Yes | D1: Embedded | E1: Employee | F1: Copayments | L1: Adjusteable Headers for Utilization Table
B2: 2 | C2: No | D2: Non-Embedded | E2: Employee + Spouse | F2: Coinsurance | G2: Spouse
B3: 3 | E3: Employee + 1 | G3: Dependent
B4: 4 | E4: Employee + Child | G4: Child
B5: 5 | E5: Employee + Child(ren) | G5: Child | H5: Child | I5: Child | J5: Child | K5: Child
B6: 6 | E6: Employee + Family | G6: Spouse | H6: Child | I6: Child | J6: Child | K6: Child
E7: Employee + Children | G7: Child | H7: Child | I7: Child | J7: Child | K7: Child
E8: Associate
E9: Associate + Spouse | G9: Spouse
E10: Associate + 1 | G10: Dependent
E11: Associate + Child | G11: Child
E12: Associate + Child(ren) | G12: Child | H12: Child | I12: Child | J12: Child | K12: Child
E13: Associate + Family | G13: Spouse | H13: Child | I13: Child | J13: Child | K13: Child
E14: Associate + Children | G14: Child | H14: Child | I14: Child | J14: Child | K14: Child
B17: =Calculator!$C$21 -> Employee | C17: =Calculator!D21 ->  | D17: =Calculator!E21 ->  | E17: =Calculator!F21 ->  | F17: =Calculator!G21 ->  | G17: =Calculator!H21 ->  | J17: =Calculator!C21 -> Employee | K17: =Calculator!D21 ->  | L17: =Calculator!E21 ->  | M17: =Calculator!F21 ->  | N17: =Calculator!G21 ->  | O17: =Calculator!H21 ->  | R17: =Calculator!C21 -> Employee | S17: =Calculator!D21 ->  | T17: =Calculator!E21 ->  | U17: =Calculator!F21 ->  | V17: =Calculator!G21 ->  | W17: =Calculator!H21 ->  | Z17: =Calculator!C21 -> Employee | AA17: =Calculator!D21 ->  | AB17: =Calculator!E21 ->  | AC17: =Calculator!F21 ->  | AD17: =Calculator!G21 ->  | AE17: =Calculator!H21 ->  | AH17: =Calculator!C21 -> Employee | AI17: =Calculator!D21 ->  | AJ17: =Calculator!E21 ->  | AK17: =Calculator!F21 ->  | AL17: =Calculator!G21 ->  | AM17: =Calculator!H21 ->  | AP17: =Calculator!C21 -> Employee | AQ17: =Calculator!D21 ->  | AR17: =Calculator!E21 ->  | AS17: =Calculator!F21 ->  | AT17: =Calculator!G21 ->  | AU17: =Calculator!H21 -> 
B18: ='1. Plan Inputs'!F17 -> OAP | J18: ='1. Plan Inputs'!I17 -> HSA 1350 | R18: ='1. Plan Inputs'!L17 -> HSA 2000 | Z18: ='1. Plan Inputs'!O17 -> 0 | AH18: ='1. Plan Inputs'!R17 -> 0 | AP18: ='1. Plan Inputs'!U17 -> 0
A19: Deductible | B19: ='1. Plan Inputs'!G23 -> 250 | C19: =B19 -> 250 | D19: 250 | E19: 250 | F19: 250 | G19: 250 | I19: Deductible | J19: ='1. Plan Inputs'!J23 -> 1350 | K19: =J19 -> 1350 | L19: =K19 -> 1350 | M19: =L19 -> 1350 | N19: =M19 -> 1350 | O19: =N19 -> 1350 | Q19: Deductible | R19: ='1. Plan Inputs'!M23 -> 2000 | S19: =R19 -> 2000 | T19: =S19 -> 2000 | U19: =T19 -> 2000 | V19: =U19 -> 2000 | W19: =V19 -> 2000 | Y19: Deductible | Z19: ='1. Plan Inputs'!P23 -> 0 | AA19: =Z19 -> 0 | AB19: =AA19 -> 0 | AC19: =AB19 -> 0 | AD19: =AC19 -> 0 | AE19: =AD19 -> 0 | AG19: Deductible | AH19: ='1. Plan Inputs'!S23 -> 0 | AI19: =AH19 -> 0 | AJ19: =AI19 -> 0 | AK19: =AJ19 -> 0 | AL19: =AK19 -> 0 | AM19: =AL19 -> 0 | AO19: Deductible | AP19: ='1. Plan Inputs'!V23 -> 0 | AQ19: =AP19 -> 0 | AR19: =AQ19 -> 0 | AS19: =AR19 -> 0 | AT19: =AS19 -> 0 | AU19: =AT19 -> 0
A20: Family Deductible | B20: ='1. Plan Inputs'!G24 -> 500 | C20: 500 | D20: 500 | E20: 500 | F20: 500 | G20: 500 | I20: Family Deductible | J20: ='1. Plan Inputs'!J24 -> 2700 | K20: 2700 | L20: 2700 | M20: 2700 | N20: 2700 | O20: 2700 | Q20: Family Deductible | R20: ='1. Plan Inputs'!M24 -> 4000 | S20: 4000 | T20: 4000 | U20: 4000 | V20: 4000 | W20: 4000 | Y20: Family Deductible | Z20: ='1. Plan Inputs'!P24 -> 0 | AA20: 0 | AB20: 0 | AC20: 0 | AD20: 0 | AE20: 0 | AG20: Family Deductible | AH20: ='1. Plan Inputs'!S24 -> 0 | AI20: 0 | AJ20: 0 | AK20: 0 | AL20: 0 | AM20: 0 | AO20: Family Deductible | AP20: ='1. Plan Inputs'!V24 -> 0 | AQ20: 0 | AR20: 0 | AS20: 0 | AT20: 0 | AU20: 0
A21: Coinsurance | B21: ='1. Plan Inputs'!G28 -> 0.1 | C21: 0.1 | D21: 0.1 | E21: 0.1 | F21: 0.1 | G21: 0.1 | I21: Coinsurance | J21: ='1. Plan Inputs'!J28 -> 0.2 | K21: 0.2 | L21: 0.2 | M21: 0.2 | N21: 0.2 | O21: 0.2 | Q21: Coinsurance | R21: ='1. Plan Inputs'!M28 -> 0.2 | S21: 0.2 | T21: 0.2 | U21: 0.2 | V21: 0.2 | W21: 0.2 | Y21: Coinsurance | Z21: ='1. Plan Inputs'!P28 -> 0 | AA21: 0 | AB21: 0 | AC21: 0 | AD21: 0 | AE21: 0 | AG21: Coinsurance | AH21: ='1. Plan Inputs'!S28 -> 0 | AI21: 0 | AJ21: 0 | AK21: 0 | AL21: 0 | AM21: 0 | AO21: Coinsurance | AP21: ='1. Plan Inputs'!V28 -> 0 | AQ21: 0 | AR21: 0 | AS21: 0 | AT21: 0 | AU21: 0
A22: OOPM | B22: ='1. Plan Inputs'!G30 -> 2500 | C22: =B22 -> 2500 | D22: =C22 -> 2500 | E22: 2500 | F22: 2500 | G22: 2500 | I22: OOPM | J22: ='1. Plan Inputs'!J30 -> 2700 | K22: =J22 -> 2700 | L22: 2700 | M22: 2700 | N22: 2700 | O22: 2700 | Q22: OOPM | R22: ='1. Plan Inputs'!M30 -> 6000 | S22: =R22 -> 6000 | T22: 6000 | U22: 6000 | V22: 6000 | W22: 6000 | Y22: OOPM | Z22: ='1. Plan Inputs'!P30 -> 0 | AA22: =Z22 -> 0 | AB22: 0 | AC22: 0 | AD22: 0 | AE22: 0 | AG22: OOPM | AH22: ='1. Plan Inputs'!S30 -> 0 | AI22: =AH22 -> 0 | AJ22: 0 | AK22: 0 | AL22: 0 | AM22: 0 | AO22: OOPM | AP22: ='1. Plan Inputs'!V30 -> 0 | AQ22: =AP22 -> 0 | AR22: 0 | AS22: 0 | AT22: 0 | AU22: 0
A23: Family OOPM | B23: ='1. Plan Inputs'!G31 -> 5000 | C23: =B23 -> 5000 | D23: 5000 | E23: 5000 | F23: 5000 | G23: 5000 | I23: Family OOPM | J23: ='1. Plan Inputs'!J31 -> 5400 | K23: =J23 -> 5400 | L23: 5400 | M23: 5400 | N23: 5400 | O23: 5400 | Q23: Family OOPM | R23: ='1. Plan Inputs'!M31 -> 12000 | S23: =R23 -> 12000 | T23: 12000 | U23: 12000 | V23: 12000 | W23: 12000 | Y23: Family OOPM | Z23: ='1. Plan Inputs'!P31 -> 0 | AA23: =Z23 -> 0 | AB23: 0 | AC23: 0 | AD23: 0 | AE23: 0 | AG23: Family OOPM | AH23: ='1. Plan Inputs'!S31 -> 0 | AI23: =AH23 -> 0 | AJ23: 0 | AK23: 0 | AL23: 0 | AM23: 0 | AO23: Family OOPM | AP23: ='1. Plan Inputs'!V31 -> 0 | AQ23: =AP23 -> 0 | AR23: 0 | AS23: 0 | AT23: 0 | AU23: 0
A25: Copayment Amounts: | I25: Copayment Amounts: | Q25: Copayment Amounts: | Y25: Copayment Amounts: | AG25: Copayment Amounts: | AO25: Copayment Amounts:
A26: Preventive Copay: | B26: ='1. Plan Inputs'!G41 -> 0 | C26: =B26 -> 0 | D26: =C26 -> 0 | E26: 0 | F26: 0 | G26: 0 | I26: Preventive Copay: | J26: ='1. Plan Inputs'!J41 -> 0 | K26: =J26 -> 0 | L26: =K26 -> 0 | M26: =L26 -> 0 | N26: =M26 -> 0 | O26: =N26 -> 0 | Q26: Preventive Copay: | R26: ='1. Plan Inputs'!M41 -> 0 | S26: =R26 -> 0 | T26: =S26 -> 0 | U26: =T26 -> 0 | V26: =U26 -> 0 | W26: =V26 -> 0 | Y26: Preventive Copay: | Z26: ='1. Plan Inputs'!P41 -> 0 | AA26: =Z26 -> 0 | AB26: =AA26 -> 0 | AC26: =AB26 -> 0 | AD26: =AC26 -> 0 | AE26: =AD26 -> 0 | AG26: Preventive Copay: | AH26: ='1. Plan Inputs'!S41 -> 0 | AI26: =AH26 -> 0 | AJ26: =AI26 -> 0 | AK26: =AJ26 -> 0 | AL26: =AK26 -> 0 | AM26: =AL26 -> 0 | AO26: Preventive Copay: | AP26: ='1. Plan Inputs'!V41 -> 0 | AQ26: =AP26 -> 0 | AR26: =AQ26 -> 0 | AS26: =AR26 -> 0 | AT26: =AS26 -> 0 | AU26: =AT26 -> 0
A27: Inpatient Copay: | B27: ='1. Plan Inputs'!G34 -> 0 | C27: 0 | D27: =C27 -> 0 | E27: 0 | F27: 0 | G27: 0 | I27: Inpatient Copay: | J27: ='1. Plan Inputs'!J34 -> 0 | K27: 0 | L27: 0 | M27: 0 | N27: 0 | O27: 0 | Q27: Inpatient Copay: | R27: ='1. Plan Inputs'!M34 -> 0 | S27: 0 | T27: 0 | U27: 0 | V27: 0 | W27: 0 | Y27: Inpatient Copay: | Z27: ='1. Plan Inputs'!P34 -> 0 | AA27: 0 | AB27: 0 | AC27: 0 | AD27: 0 | AE27: 0 | AG27: Inpatient Copay: | AH27: ='1. Plan Inputs'!S34 -> 0 | AI27: 0 | AJ27: 0 | AK27: 0 | AL27: 0 | AM27: 0 | AO27: Inpatient Copay: | AP27: ='1. Plan Inputs'!V34 -> 0 | AQ27: 0 | AR27: 0 | AS27: 0 | AT27: 0 | AU27: 0
A28: Outpatient Copay: | B28: ='1. Plan Inputs'!G35 -> 0 | C28: 0 | D28: 0 | E28: 0 | F28: 0 | G28: 0 | I28: Outpatient Copay: | J28: ='1. Plan Inputs'!J35 -> 0 | K28: 0 | L28: 0 | M28: 0 | N28: 0 | O28: 0 | Q28: Outpatient Copay: | R28: ='1. Plan Inputs'!M35 -> 0 | S28: 0 | T28: 0 | U28: 0 | V28: 0 | W28: 0 | Y28: Outpatient Copay: | Z28: ='1. Plan Inputs'!P35 -> 0 | AA28: 0 | AB28: 0 | AC28: 0 | AD28: 0 | AE28: 0 | AG28: Outpatient Copay: | AH28: ='1. Plan Inputs'!S35 -> 0 | AI28: 0 | AJ28: 0 | AK28: 0 | AL28: 0 | AM28: 0 | AO28: Outpatient Copay: | AP28: ='1. Plan Inputs'!V35 -> 0 | AQ28: 0 | AR28: 0 | AS28: 0 | AT28: 0 | AU28: 0
A29: Lab/X-Ray/Radiology Copay: | B29: ='1. Plan Inputs'!G36 -> 0 | C29: 0 | D29: 0 | E29: 0 | F29: 0 | G29: 0 | I29: Lab/X-Ray/Radiology Copay: | J29: ='1. Plan Inputs'!J36 -> 0 | K29: 0 | L29: 0 | M29: 0 | N29: 0 | O29: 0 | Q29: Lab/X-Ray/Radiology Copay: | R29: ='1. Plan Inputs'!M36 -> 0 | S29: 0 | T29: 0 | U29: 0 | V29: 0 | W29: 0 | Y29: Lab/X-Ray/Radiology Copay: | Z29: ='1. Plan Inputs'!P36 -> 0 | AA29: 0 | AB29: 0 | AC29: 0 | AD29: 0 | AE29: 0 | AG29: Lab/X-Ray/Radiology Copay: | AH29: ='1. Plan Inputs'!S36 -> 0 | AI29: 0 | AJ29: 0 | AK29: 0 | AL29: 0 | AM29: 0 | AO29: Lab/X-Ray/Radiology Copay: | AP29: ='1. Plan Inputs'!V36 -> 0 | AQ29: 0 | AR29: 0 | AS29: 0 | AT29: 0 | AU29: 0
A30: Emergency Room Copay: | B30: ='1. Plan Inputs'!G38 -> 200 | C30: 200 | D30: 200 | E30: 200 | F30: 200 | G30: 200 | I30: Emergency Room Copay: | J30: ='1. Plan Inputs'!J38 -> 0 | K30: 0 | L30: 0 | M30: 0 | N30: 0 | O30: 0 | Q30: Emergency Room Copay: | R30: ='1. Plan Inputs'!M38 -> 0 | S30: 0 | T30: 0 | U30: 0 | V30: 0 | W30: 0 | Y30: Emergency Room Copay: | Z30: ='1. Plan Inputs'!P38 -> 0 | AA30: 0 | AB30: 0 | AC30: 0 | AD30: 0 | AE30: 0 | AG30: Emergency Room Copay: | AH30: ='1. Plan Inputs'!S38 -> 0 | AI30: 0 | AJ30: 0 | AK30: 0 | AL30: 0 | AM30: 0 | AO30: Emergency Room Copay: | AP30: ='1. Plan Inputs'!V38 -> 0 | AQ30: 0 | AR30: 0 | AS30: 0 | AT30: 0 | AU30: 0
A31: Urgent Care: | B31: ='1. Plan Inputs'!G39 -> 75 | C31: =B31 -> 75 | D31: =C31 -> 75 | E31: =D31 -> 75 | F31: =E31 -> 75 | G31: =F31 -> 75 | I31: Urgent Care: | J31: ='1. Plan Inputs'!J39 -> 0 | K31: 0 | L31: 0 | M31: 0 | N31: 0 | O31: 0 | Q31: Urgent Care: | R31: ='1. Plan Inputs'!M39 -> 0 | S31: 0 | T31: 0 | U31: 0 | V31: 0 | W31: 0 | Y31: Urgent Care: | Z31: ='1. Plan Inputs'!P39 -> 0 | AA31: 0 | AB31: 0 | AC31: 0 | AD31: 0 | AE31: 0 | AG31: Urgent Care: | AH31: ='1. Plan Inputs'!S39 -> 0 | AI31: 0 | AJ31: 0 | AK31: 0 | AL31: 0 | AM31: 0 | AO31: Urgent Care: | AP31: ='1. Plan Inputs'!V39 -> 0 | AQ31: 0 | AR31: 0 | AS31: 0 | AT31: 0 | AU31: 0
A32: PCP Office Visit Copay: | B32: ='1. Plan Inputs'!G42 -> 25 | C32: 25 | D32: 25 | E32: 25 | F32: 25 | G32: 25 | I32: PCP Office Visit Copay: | J32: ='1. Plan Inputs'!J42 -> 0 | K32: 0 | L32: 0 | M32: 0 | N32: 0 | O32: 0 | Q32: PCP Office Visit Copay: | R32: ='1. Plan Inputs'!M42 -> 0 | S32: 0 | T32: 0 | U32: 0 | V32: 0 | W32: 0 | Y32: PCP Office Visit Copay: | Z32: ='1. Plan Inputs'!P42 -> 0 | AA32: 0 | AB32: 0 | AC32: 0 | AD32: 0 | AE32: 0 | AG32: PCP Office Visit Copay: | AH32: ='1. Plan Inputs'!S42 -> 0 | AI32: 0 | AJ32: 0 | AK32: 0 | AL32: 0 | AM32: 0 | AO32: PCP Office Visit Copay: | AP32: ='1. Plan Inputs'!V42 -> 0 | AQ32: 0 | AR32: 0 | AS32: 0 | AT32: 0 | AU32: 0
A33: Specialist Office Visit Copay: | B33: ='1. Plan Inputs'!G43 -> 50 | C33: 50 | D33: 50 | E33: 50 | F33: 50 | G33: 50 | I33: Specialist Office Visit Copay: | J33: ='1. Plan Inputs'!J43 -> 0 | K33: 0 | L33: 0 | M33: 0 | N33: 0 | O33: 0 | Q33: Specialist Office Visit Copay: | R33: ='1. Plan Inputs'!M43 -> 0 | S33: 0 | T33: 0 | U33: 0 | V33: 0 | W33: 0 | Y33: Specialist Office Visit Copay: | Z33: ='1. Plan Inputs'!P43 -> 0 | AA33: 0 | AB33: 0 | AC33: 0 | AD33: 0 | AE33: 0 | AG33: Specialist Office Visit Copay: | AH33: ='1. Plan Inputs'!S43 -> 0 | AI33: 0 | AJ33: 0 | AK33: 0 | AL33: 0 | AM33: 0 | AO33: Specialist Office Visit Copay: | AP33: ='1. Plan Inputs'!V43 -> 0 | AQ33: 0 | AR33: 0 | AS33: 0 | AT33: 0 | AU33: 0
A34: Chiropractor Copay: | B34: ='1. Plan Inputs'!G44 -> 25 | C34: 25 | D34: 25 | E34: 25 | F34: 25 | G34: 25 | I34: Chiropractor Copay: | J34: ='1. Plan Inputs'!J44 -> 0 | K34: 0 | L34: 0 | M34: 0 | N34: 0 | O34: 0 | Q34: Chiropractor Copay: | R34: ='1. Plan Inputs'!M44 -> 0 | S34: 0 | T34: 0 | U34: 0 | V34: 0 | W34: 0 | Y34: Chiropractor Copay: | Z34: ='1. Plan Inputs'!P44 -> 0 | AA34: 0 | AB34: 0 | AC34: 0 | AD34: 0 | AE34: 0 | AG34: Chiropractor Copay: | AH34: ='1. Plan Inputs'!S44 -> 0 | AI34: 0 | AJ34: 0 | AK34: 0 | AL34: 0 | AM34: 0 | AO34: Chiropractor Copay: | AP34: ='1. Plan Inputs'!V44 -> 0 | AQ34: 0 | AR34: 0 | AS34: 0 | AT34: 0 | AU34: 0
A35: Rx Generic (Retail): | B35: ='1. Plan Inputs'!F53 -> 10 | C35: 10 | D35: 10 | E35: 10 | F35: 10 | G35: 10 | I35: Rx Generic (Retail): | J35: ='1. Plan Inputs'!I53 -> 10 | K35: 10 | L35: 10 | M35: 10 | N35: 10 | O35: 10 | Q35: Rx Generic (Retail): | R35: ='1. Plan Inputs'!L53 -> 10 | S35: 10 | T35: 10 | U35: 10 | V35: 10 | W35: 10 | Y35: Rx Generic (Retail): | Z35: ='1. Plan Inputs'!O53 -> 0 | AA35: 0 | AB35: 0 | AC35: 0 | AD35: 0 | AE35: 0 | AG35: Rx Generic (Retail): | AH35: ='1. Plan Inputs'!R53 -> 0 | AI35: 0 | AJ35: 0 | AK35: 0 | AL35: 0 | AM35: 0 | AO35: Rx Generic (Retail): | AP35: ='1. Plan Inputs'!U53 -> 0 | AQ35: 0 | AR35: 0 | AS35: 0 | AT35: 0 | AU35: 0
A36: Rx Brand Formulary (Retail): | B36: ='1. Plan Inputs'!F54 -> 35 | C36: 35 | D36: 35 | E36: 35 | F36: 35 | G36: 35 | I36: Rx Brand Formulary (Retail): | J36: ='1. Plan Inputs'!I54 -> 35 | K36: 35 | L36: 35 | M36: 35 | N36: 35 | O36: 35 | Q36: Rx Brand Formulary (Retail): | R36: ='1. Plan Inputs'!L54 -> 35 | S36: 35 | T36: 35 | U36: 35 | V36: 35 | W36: 35 | Y36: Rx Brand Formulary (Retail): | Z36: ='1. Plan Inputs'!O54 -> 0 | AA36: 0 | AB36: 0 | AC36: 0 | AD36: 0 | AE36: 0 | AG36: Rx Brand Formulary (Retail): | AH36: ='1. Plan Inputs'!R54 -> 0 | AI36: 0 | AJ36: 0 | AK36: 0 | AL36: 0 | AM36: 0 | AO36: Rx Brand Formulary (Retail): | AP36: ='1. Plan Inputs'!U54 -> 0 | AQ36: 0 | AR36: 0 | AS36: 0 | AT36: 0 | AU36: 0
A37: Rx Brand Non-Formulary (Retail): | B37: ='1. Plan Inputs'!F55 -> 60 | C37: 60 | D37: 60 | E37: 60 | F37: 60 | G37: 60 | I37: Rx Brand Non-Formulary (Retail): | J37: ='1. Plan Inputs'!I55 -> 60 | K37: 60 | L37: 60 | M37: 60 | N37: 60 | O37: 60 | Q37: Rx Brand Non-Formulary (Retail): | R37: ='1. Plan Inputs'!L55 -> 60 | S37: 60 | T37: 60 | U37: 60 | V37: 60 | W37: 60 | Y37: Rx Brand Non-Formulary (Retail): | Z37: ='1. Plan Inputs'!O55 -> 0 | AA37: 0 | AB37: 0 | AC37: 0 | AD37: 0 | AE37: 0 | AG37: Rx Brand Non-Formulary (Retail): | AH37: ='1. Plan Inputs'!R55 -> 0 | AI37: 0 | AJ37: 0 | AK37: 0 | AL37: 0 | AM37: 0 | AO37: Rx Brand Non-Formulary (Retail): | AP37: ='1. Plan Inputs'!U55 -> 0 | AQ37: 0 | AR37: 0 | AS37: 0 | AT37: 0 | AU37: 0
A38: Rx Specialty (Retail): | B38: ='1. Plan Inputs'!F56 -> 60 | C38: =B38 -> 60 | D38: =C38 -> 60 | E38: =D38 -> 60 | F38: =E38 -> 60 | G38: =F38 -> 60 | I38: Rx Specialty (Retail): | J38: ='1. Plan Inputs'!I56 -> 60 | K38: 60 | L38: 60 | M38: 60 | N38: 60 | O38: 60 | Q38: Rx Specialty (Retail): | R38: ='1. Plan Inputs'!L56 -> 60 | S38: 60 | T38: 60 | U38: 60 | V38: 60 | W38: 60 | Y38: Rx Specialty (Retail): | Z38: ='1. Plan Inputs'!O56 -> 0 | AA38: 0 | AB38: 0 | AC38: 0 | AD38: 0 | AE38: 0 | AG38: Rx Specialty (Retail): | AH38: ='1. Plan Inputs'!R56 -> 0 | AI38: 0 | AJ38: 0 | AK38: 0 | AL38: 0 | AM38: 0 | AO38: Rx Specialty (Retail): | AP38: ='1. Plan Inputs'!U56 -> 0 | AQ38: 0 | AR38: 0 | AS38: 0 | AT38: 0 | AU38: 0
A39: Rx Generic (Mail): | B39: ='1. Plan Inputs'!F57 -> 20 | C39: 20 | D39: 20 | E39: 20 | F39: 20 | G39: 20 | I39: Rx Generic (Mail): | J39: ='1. Plan Inputs'!I57 -> 20 | K39: 20 | L39: 20 | M39: 20 | N39: 20 | O39: 20 | Q39: Rx Generic (Mail): | R39: ='1. Plan Inputs'!L57 -> 20 | S39: 20 | T39: 20 | U39: 20 | V39: 20 | W39: 20 | Y39: Rx Generic (Mail): | Z39: ='1. Plan Inputs'!O57 -> 0 | AA39: 0 | AB39: 0 | AC39: 0 | AD39: 0 | AE39: 0 | AG39: Rx Generic (Mail): | AH39: ='1. Plan Inputs'!R57 -> 0 | AI39: 0 | AJ39: 0 | AK39: 0 | AL39: 0 | AM39: 0 | AO39: Rx Generic (Mail): | AP39: ='1. Plan Inputs'!U57 -> 0 | AQ39: 0 | AR39: 0 | AS39: 0 | AT39: 0 | AU39: 0
A40: Rx Brand Formulary (Mail): | B40: ='1. Plan Inputs'!F58 -> 70 | C40: 70 | D40: 70 | E40: 70 | F40: 70 | G40: 70 | I40: Rx Brand Formulary (Mail): | J40: ='1. Plan Inputs'!I58 -> 70 | K40: 70 | L40: 70 | M40: 70 | N40: 70 | O40: 70 | Q40: Rx Brand Formulary (Mail): | R40: ='1. Plan Inputs'!L58 -> 70 | S40: 70 | T40: 70 | U40: 70 | V40: 70 | W40: 70 | Y40: Rx Brand Formulary (Mail): | Z40: ='1. Plan Inputs'!O58 -> 0 | AA40: 0 | AB40: 0 | AC40: 0 | AD40: 0 | AE40: 0 | AG40: Rx Brand Formulary (Mail): | AH40: ='1. Plan Inputs'!R58 -> 0 | AI40: 0 | AJ40: 0 | AK40: 0 | AL40: 0 | AM40: 0 | AO40: Rx Brand Formulary (Mail): | AP40: ='1. Plan Inputs'!U58 -> 0 | AQ40: 0 | AR40: 0 | AS40: 0 | AT40: 0 | AU40: 0
A41: Rx Brand Non-Formulary (Mail): | B41: ='1. Plan Inputs'!F59 -> 120 | C41: 120 | D41: 120 | E41: 120 | F41: 120 | G41: 120 | I41: Rx Brand Non-Formulary (Mail): | J41: ='1. Plan Inputs'!I59 -> 120 | K41: 120 | L41: 120 | M41: 120 | N41: 120 | O41: 120 | Q41: Rx Brand Non-Formulary (Mail): | R41: ='1. Plan Inputs'!L59 -> 120 | S41: 120 | T41: 120 | U41: 120 | V41: 120 | W41: 120 | Y41: Rx Brand Non-Formulary (Mail): | Z41: ='1. Plan Inputs'!O59 -> 0 | AA41: 0 | AB41: 0 | AC41: 0 | AD41: 0 | AE41: 0 | AG41: Rx Brand Non-Formulary (Mail): | AH41: ='1. Plan Inputs'!R59 -> 0 | AI41: 0 | AJ41: 0 | AK41: 0 | AL41: 0 | AM41: 0 | AO41: Rx Brand Non-Formulary (Mail): | AP41: ='1. Plan Inputs'!U59 -> 0 | AQ41: 0 | AR41: 0 | AS41: 0 | AT41: 0 | AU41: 0
A42: Rx Specialty (Mail): | B42: ='1. Plan Inputs'!F60 -> 120 | C42: 120 | D42: 120 | E42: 120 | F42: 120 | G42: 120 | I42: Rx Specialty (Mail): | J42: ='1. Plan Inputs'!I60 -> 120 | K42: 120 | L42: 120 | M42: 120 | N42: 120 | O42: 120 | Q42: Rx Specialty (Mail): | R42: ='1. Plan Inputs'!L60 -> 120 | S42: 120 | T42: 120 | U42: 120 | V42: 120 | W42: 120 | Y42: Rx Specialty (Mail): | Z42: ='1. Plan Inputs'!O60 -> 0 | AA42: 0 | AB42: 0 | AC42: 0 | AD42: 0 | AE42: 0 | AG42: Rx Specialty (Mail): | AH42: ='1. Plan Inputs'!R60 -> 0 | AI42: 0 | AJ42: 0 | AK42: 0 | AL42: 0 | AM42: 0 | AO42: Rx Specialty (Mail): | AP42: ='1. Plan Inputs'!U60 -> 0 | AQ42: 0 | AR42: 0 | AS42: 0 | AT42: 0 | AU42: 0
A44: Number of Services: | I44: Number of Services: | Q44: Number of Services: | Y44: Number of Services: | AG44: Number of Services: | AO44: Number of Services:
A45: Preventive Visits: | B45: =Calculator!C22 -> 0 | C45: =Calculator!D22 -> 0 | D45: =Calculator!E22 -> 0 | E45: =Calculator!F22 -> 0 | F45: =Calculator!G22 -> 0 | G45: =Calculator!H22 -> 0 | I45: Preventive Visits: | J45: =Calculator!C22 -> 0 | K45: =Calculator!D22 -> 0 | L45: =Calculator!E22 -> 0 | M45: =Calculator!F22 -> 0 | N45: =Calculator!G22 -> 0 | O45: =Calculator!H22 -> 0 | Q45: Preventive Visits: | R45: =Calculator!C22 -> 0 | S45: =Calculator!D22 -> 0 | T45: =Calculator!E22 -> 0 | U45: =Calculator!F22 -> 0 | V45: =Calculator!G22 -> 0 | W45: =Calculator!H22 -> 0 | Y45: Preventive Visits: | Z45: =Calculator!C22 -> 0 | AA45: =Calculator!D22 -> 0 | AB45: =Calculator!E22 -> 0 | AC45: =Calculator!F22 -> 0 | AD45: =Calculator!G22 -> 0 | AE45: =Calculator!H22 -> 0 | AG45: Preventive Visits: | AH45: =Calculator!C22 -> 0 | AI45: =Calculator!D22 -> 0 | AJ45: =Calculator!E22 -> 0 | AK45: =Calculator!F22 -> 0 | AL45: =Calculator!G22 -> 0 | AM45: =Calculator!H22 -> 0 | AO45: Preventive Visits: | AP45: =Calculator!C22 -> 0 | AQ45: =Calculator!D22 -> 0 | AR45: =Calculator!E22 -> 0 | AS45: =Calculator!F22 -> 0 | AT45: =Calculator!G22 -> 0 | AU45: =Calculator!H22 -> 0
A46: Hospitalizations: | B46: =Calculator!C23 -> 0 | C46: =Calculator!D23 -> 0 | D46: =Calculator!E23 -> 0 | E46: =Calculator!F23 -> 0 | F46: =Calculator!G23 -> 0 | G46: =Calculator!H23 -> 0 | I46: Hospitalizations: | J46: =Calculator!C23 -> 0 | K46: =Calculator!D23 -> 0 | L46: =Calculator!E23 -> 0 | M46: =Calculator!F23 -> 0 | N46: =Calculator!G23 -> 0 | O46: =Calculator!H23 -> 0 | Q46: Hospitalizations: | R46: =Calculator!C23 -> 0 | S46: =Calculator!D23 -> 0 | T46: =Calculator!E23 -> 0 | U46: =Calculator!F23 -> 0 | V46: =Calculator!G23 -> 0 | W46: =Calculator!H23 -> 0 | Y46: Hospitalizations: | Z46: =Calculator!C23 -> 0 | AA46: =Calculator!D23 -> 0 | AB46: =Calculator!E23 -> 0 | AC46: =Calculator!F23 -> 0 | AD46: =Calculator!G23 -> 0 | AE46: =Calculator!H23 -> 0 | AG46: Hospitalizations: | AH46: =Calculator!C23 -> 0 | AI46: =Calculator!D23 -> 0 | AJ46: =Calculator!E23 -> 0 | AK46: =Calculator!F23 -> 0 | AL46: =Calculator!G23 -> 0 | AM46: =Calculator!H23 -> 0 | AO46: Hospitalizations: | AP46: =Calculator!C23 -> 0 | AQ46: =Calculator!D23 -> 0 | AR46: =Calculator!E23 -> 0 | AS46: =Calculator!F23 -> 0 | AT46: =Calculator!G23 -> 0 | AU46: =Calculator!H23 -> 0
A47: Outpatient Services: | B47: =Calculator!C24 -> 0 | C47: =Calculator!D24 -> 0 | D47: =Calculator!E24 -> 0 | E47: =Calculator!F24 -> 0 | F47: =Calculator!G24 -> 0 | G47: =Calculator!H24 -> 0 | I47: Outpatient Services: | J47: =Calculator!C24 -> 0 | K47: =Calculator!D24 -> 0 | L47: =Calculator!E24 -> 0 | M47: =Calculator!F24 -> 0 | N47: =Calculator!G24 -> 0 | O47: =Calculator!H24 -> 0 | Q47: Outpatient Services: | R47: =Calculator!C24 -> 0 | S47: =Calculator!D24 -> 0 | T47: =Calculator!E24 -> 0 | U47: =Calculator!F24 -> 0 | V47: =Calculator!G24 -> 0 | W47: =Calculator!H24 -> 0 | Y47: Outpatient Services: | Z47: =Calculator!C24 -> 0 | AA47: =Calculator!D24 -> 0 | AB47: =Calculator!E24 -> 0 | AC47: =Calculator!F24 -> 0 | AD47: =Calculator!G24 -> 0 | AE47: =Calculator!H24 -> 0 | AG47: Outpatient Services: | AH47: =Calculator!C24 -> 0 | AI47: =Calculator!D24 -> 0 | AJ47: =Calculator!E24 -> 0 | AK47: =Calculator!F24 -> 0 | AL47: =Calculator!G24 -> 0 | AM47: =Calculator!H24 -> 0 | AO47: Outpatient Services: | AP47: =Calculator!C24 -> 0 | AQ47: =Calculator!D24 -> 0 | AR47: =Calculator!E24 -> 0 | AS47: =Calculator!F24 -> 0 | AT47: =Calculator!G24 -> 0 | AU47: =Calculator!H24 -> 0
A48: Lab/X-Ray/Radiology Services: | B48: =Calculator!C25 -> 0 | C48: =Calculator!D25 -> 0 | D48: =Calculator!E25 -> 0 | E48: =Calculator!F25 -> 0 | F48: =Calculator!G25 -> 0 | G48: =Calculator!H25 -> 0 | I48: Lab/X-Ray/Radiology Services: | J48: =Calculator!C25 -> 0 | K48: =Calculator!D25 -> 0 | L48: =Calculator!E25 -> 0 | M48: =Calculator!F25 -> 0 | N48: =Calculator!G25 -> 0 | O48: =Calculator!H25 -> 0 | Q48: Lab/X-Ray/Radiology Services: | R48: =Calculator!C25 -> 0 | S48: =Calculator!D25 -> 0 | T48: =Calculator!E25 -> 0 | U48: =Calculator!F25 -> 0 | V48: =Calculator!G25 -> 0 | W48: =Calculator!H25 -> 0 | Y48: Lab/X-Ray/Radiology Services: | Z48: =Calculator!C25 -> 0 | AA48: =Calculator!D25 -> 0 | AB48: =Calculator!E25 -> 0 | AC48: =Calculator!F25 -> 0 | AD48: =Calculator!G25 -> 0 | AE48: =Calculator!H25 -> 0 | AG48: Lab/X-Ray/Radiology Services: | AH48: =Calculator!C25 -> 0 | AI48: =Calculator!D25 -> 0 | AJ48: =Calculator!E25 -> 0 | AK48: =Calculator!F25 -> 0 | AL48: =Calculator!G25 -> 0 | AM48: =Calculator!H25 -> 0 | AO48: Lab/X-Ray/Radiology Services: | AP48: =Calculator!C25 -> 0 | AQ48: =Calculator!D25 -> 0 | AR48: =Calculator!E25 -> 0 | AS48: =Calculator!F25 -> 0 | AT48: =Calculator!G25 -> 0 | AU48: =Calculator!H25 -> 0
A49: Emergency Room Visits: | B49: =Calculator!C26 -> 0 | C49: =Calculator!D26 -> 0 | D49: =Calculator!E26 -> 0 | E49: =Calculator!F26 -> 0 | F49: =Calculator!G26 -> 0 | G49: =Calculator!H26 -> 0 | I49: Emergency Room Visits: | J49: =Calculator!C26 -> 0 | K49: =Calculator!D26 -> 0 | L49: =Calculator!E26 -> 0 | M49: =Calculator!F26 -> 0 | N49: =Calculator!G26 -> 0 | O49: =Calculator!H26 -> 0 | Q49: Emergency Room Visits: | R49: =Calculator!C26 -> 0 | S49: =Calculator!D26 -> 0 | T49: =Calculator!E26 -> 0 | U49: =Calculator!F26 -> 0 | V49: =Calculator!G26 -> 0 | W49: =Calculator!H26 -> 0 | Y49: Emergency Room Visits: | Z49: =Calculator!C26 -> 0 | AA49: =Calculator!D26 -> 0 | AB49: =Calculator!E26 -> 0 | AC49: =Calculator!F26 -> 0 | AD49: =Calculator!G26 -> 0 | AE49: =Calculator!H26 -> 0 | AG49: Emergency Room Visits: | AH49: =Calculator!C26 -> 0 | AI49: =Calculator!D26 -> 0 | AJ49: =Calculator!E26 -> 0 | AK49: =Calculator!F26 -> 0 | AL49: =Calculator!G26 -> 0 | AM49: =Calculator!H26 -> 0 | AO49: Emergency Room Visits: | AP49: =Calculator!C26 -> 0 | AQ49: =Calculator!D26 -> 0 | AR49: =Calculator!E26 -> 0 | AS49: =Calculator!F26 -> 0 | AT49: =Calculator!G26 -> 0 | AU49: =Calculator!H26 -> 0
A50: Urgent Care: | B50: =Calculator!C27 -> 0 | C50: =Calculator!D27 -> 0 | D50: =Calculator!E27 -> 0 | E50: =Calculator!F27 -> 0 | F50: =Calculator!G27 -> 0 | G50: =Calculator!H27 -> 0 | I50: Urgent Care: | J50: =Calculator!C27 -> 0 | K50: =Calculator!D27 -> 0 | L50: =Calculator!E27 -> 0 | M50: =Calculator!F27 -> 0 | N50: =Calculator!G27 -> 0 | O50: =Calculator!H27 -> 0 | Q50: Urgent Care: | R50: =Calculator!C27 -> 0 | S50: =Calculator!D27 -> 0 | T50: =Calculator!E27 -> 0 | U50: =Calculator!F27 -> 0 | V50: =Calculator!G27 -> 0 | W50: =Calculator!H27 -> 0 | Y50: Urgent Care: | Z50: =Calculator!C27 -> 0 | AA50: =Calculator!D27 -> 0 | AB50: =Calculator!E27 -> 0 | AC50: =Calculator!F27 -> 0 | AD50: =Calculator!G27 -> 0 | AE50: =Calculator!H27 -> 0 | AG50: Urgent Care: | AH50: =Calculator!C27 -> 0 | AI50: =Calculator!D27 -> 0 | AJ50: =Calculator!E27 -> 0 | AK50: =Calculator!F27 -> 0 | AL50: =Calculator!G27 -> 0 | AM50: =Calculator!H27 -> 0 | AO50: Urgent Care: | AP50: =Calculator!C27 -> 0 | AQ50: =Calculator!D27 -> 0 | AR50: =Calculator!E27 -> 0 | AS50: =Calculator!F27 -> 0 | AT50: =Calculator!G27 -> 0 | AU50: =Calculator!H27 -> 0
A51: PCP Office Visits: | B51: =Calculator!C28 -> 0 | C51: =Calculator!D28 -> 0 | D51: =Calculator!E28 -> 0 | E51: =Calculator!F28 -> 0 | F51: =Calculator!G28 -> 0 | G51: =Calculator!H28 -> 0 | I51: PCP Office Visits: | J51: =Calculator!C28 -> 0 | K51: =Calculator!D28 -> 0 | L51: =Calculator!E28 -> 0 | M51: =Calculator!F28 -> 0 | N51: =Calculator!G28 -> 0 | O51: =Calculator!H28 -> 0 | Q51: PCP Office Visits: | R51: =Calculator!C28 -> 0 | S51: =Calculator!D28 -> 0 | T51: =Calculator!E28 -> 0 | U51: =Calculator!F28 -> 0 | V51: =Calculator!G28 -> 0 | W51: =Calculator!H28 -> 0 | Y51: PCP Office Visits: | Z51: =Calculator!C28 -> 0 | AA51: =Calculator!D28 -> 0 | AB51: =Calculator!E28 -> 0 | AC51: =Calculator!F28 -> 0 | AD51: =Calculator!G28 -> 0 | AE51: =Calculator!H28 -> 0 | AG51: PCP Office Visits: | AH51: =Calculator!C28 -> 0 | AI51: =Calculator!D28 -> 0 | AJ51: =Calculator!E28 -> 0 | AK51: =Calculator!F28 -> 0 | AL51: =Calculator!G28 -> 0 | AM51: =Calculator!H28 -> 0 | AO51: PCP Office Visits: | AP51: =Calculator!C28 -> 0 | AQ51: =Calculator!D28 -> 0 | AR51: =Calculator!E28 -> 0 | AS51: =Calculator!F28 -> 0 | AT51: =Calculator!G28 -> 0 | AU51: =Calculator!H28 -> 0
A52: Specialist Office Visits: | B52: =Calculator!C29 -> 0 | C52: =Calculator!D29 -> 0 | D52: =Calculator!E29 -> 0 | E52: =Calculator!F29 -> 0 | F52: =Calculator!G29 -> 0 | G52: =Calculator!H29 -> 0 | I52: Specialist Office Visits: | J52: =Calculator!C29 -> 0 | K52: =Calculator!D29 -> 0 | L52: =Calculator!E29 -> 0 | M52: =Calculator!F29 -> 0 | N52: =Calculator!G29 -> 0 | O52: =Calculator!H29 -> 0 | Q52: Specialist Office Visits: | R52: =Calculator!C29 -> 0 | S52: =Calculator!D29 -> 0 | T52: =Calculator!E29 -> 0 | U52: =Calculator!F29 -> 0 | V52: =Calculator!G29 -> 0 | W52: =Calculator!H29 -> 0 | Y52: Specialist Office Visits: | Z52: =Calculator!C29 -> 0 | AA52: =Calculator!D29 -> 0 | AB52: =Calculator!E29 -> 0 | AC52: =Calculator!F29 -> 0 | AD52: =Calculator!G29 -> 0 | AE52: =Calculator!H29 -> 0 | AG52: Specialist Office Visits: | AH52: =Calculator!C29 -> 0 | AI52: =Calculator!D29 -> 0 | AJ52: =Calculator!E29 -> 0 | AK52: =Calculator!F29 -> 0 | AL52: =Calculator!G29 -> 0 | AM52: =Calculator!H29 -> 0 | AO52: Specialist Office Visits: | AP52: =Calculator!C29 -> 0 | AQ52: =Calculator!D29 -> 0 | AR52: =Calculator!E29 -> 0 | AS52: =Calculator!F29 -> 0 | AT52: =Calculator!G29 -> 0 | AU52: =Calculator!H29 -> 0
A53: Chiropractor Vists: | B53: =Calculator!C30 -> 0 | C53: =Calculator!D30 -> 0 | D53: =Calculator!E30 -> 0 | E53: =Calculator!F30 -> 0 | F53: =Calculator!G30 -> 0 | G53: =Calculator!H30 -> 0 | I53: Chiropractor Vists: | J53: =Calculator!C30 -> 0 | K53: =Calculator!D30 -> 0 | L53: =Calculator!E30 -> 0 | M53: =Calculator!F30 -> 0 | N53: =Calculator!G30 -> 0 | O53: =Calculator!H30 -> 0 | Q53: Chiropractor Vists: | R53: =Calculator!C30 -> 0 | S53: =Calculator!D30 -> 0 | T53: =Calculator!E30 -> 0 | U53: =Calculator!F30 -> 0 | V53: =Calculator!G30 -> 0 | W53: =Calculator!H30 -> 0 | Y53: Chiropractor Vists: | Z53: =Calculator!C30 -> 0 | AA53: =Calculator!D30 -> 0 | AB53: =Calculator!E30 -> 0 | AC53: =Calculator!F30 -> 0 | AD53: =Calculator!G30 -> 0 | AE53: =Calculator!H30 -> 0 | AG53: Chiropractor Vists: | AH53: =Calculator!C30 -> 0 | AI53: =Calculator!D30 -> 0 | AJ53: =Calculator!E30 -> 0 | AK53: =Calculator!F30 -> 0 | AL53: =Calculator!G30 -> 0 | AM53: =Calculator!H30 -> 0 | AO53: Chiropractor Vists: | AP53: =Calculator!C30 -> 0 | AQ53: =Calculator!D30 -> 0 | AR53: =Calculator!E30 -> 0 | AS53: =Calculator!F30 -> 0 | AT53: =Calculator!G30 -> 0 | AU53: =Calculator!H30 -> 0
A54: Rx Generic (Retail): | B54: =Calculator!C31 -> 0 | C54: =Calculator!D31 -> 0 | D54: =Calculator!E31 -> 0 | E54: =Calculator!F31 -> 0 | F54: =Calculator!G31 -> 0 | G54: =Calculator!H31 -> 0 | I54: Rx Generic (Retail): | J54: =Calculator!C31 -> 0 | K54: =Calculator!D31 -> 0 | L54: =Calculator!E31 -> 0 | M54: =Calculator!F31 -> 0 | N54: =Calculator!G31 -> 0 | O54: =Calculator!H31 -> 0 | Q54: Rx Generic (Retail): | R54: =Calculator!C31 -> 0 | S54: =Calculator!D31 -> 0 | T54: =Calculator!E31 -> 0 | U54: =Calculator!F31 -> 0 | V54: =Calculator!G31 -> 0 | W54: =Calculator!H31 -> 0 | Y54: Rx Generic (Retail): | Z54: =Calculator!C31 -> 0 | AA54: =Calculator!D31 -> 0 | AB54: =Calculator!E31 -> 0 | AC54: =Calculator!F31 -> 0 | AD54: =Calculator!G31 -> 0 | AE54: =Calculator!H31 -> 0 | AG54: Rx Generic (Retail): | AH54: =Calculator!C31 -> 0 | AI54: =Calculator!D31 -> 0 | AJ54: =Calculator!E31 -> 0 | AK54: =Calculator!F31 -> 0 | AL54: =Calculator!G31 -> 0 | AM54: =Calculator!H31 -> 0 | AO54: Rx Generic (Retail): | AP54: =Calculator!C31 -> 0 | AQ54: =Calculator!D31 -> 0 | AR54: =Calculator!E31 -> 0 | AS54: =Calculator!F31 -> 0 | AT54: =Calculator!G31 -> 0 | AU54: =Calculator!H31 -> 0
A55: Rx Brand Formulary (Retail): | B55: =Calculator!C32 -> 0 | C55: =Calculator!D32 -> 0 | D55: =Calculator!E32 -> 0 | E55: =Calculator!F32 -> 0 | F55: =Calculator!G32 -> 0 | G55: =Calculator!H32 -> 0 | I55: Rx Brand Formulary (Retail): | J55: =Calculator!C32 -> 0 | K55: =Calculator!D32 -> 0 | L55: =Calculator!E32 -> 0 | M55: =Calculator!F32 -> 0 | N55: =Calculator!G32 -> 0 | O55: =Calculator!H32 -> 0 | Q55: Rx Brand Formulary (Retail): | R55: =Calculator!C32 -> 0 | S55: =Calculator!D32 -> 0 | T55: =Calculator!E32 -> 0 | U55: =Calculator!F32 -> 0 | V55: =Calculator!G32 -> 0 | W55: =Calculator!H32 -> 0 | Y55: Rx Brand Formulary (Retail): | Z55: =Calculator!C32 -> 0 | AA55: =Calculator!D32 -> 0 | AB55: =Calculator!E32 -> 0 | AC55: =Calculator!F32 -> 0 | AD55: =Calculator!G32 -> 0 | AE55: =Calculator!H32 -> 0 | AG55: Rx Brand Formulary (Retail): | AH55: =Calculator!C32 -> 0 | AI55: =Calculator!D32 -> 0 | AJ55: =Calculator!E32 -> 0 | AK55: =Calculator!F32 -> 0 | AL55: =Calculator!G32 -> 0 | AM55: =Calculator!H32 -> 0 | AO55: Rx Brand Formulary (Retail): | AP55: =Calculator!C32 -> 0 | AQ55: =Calculator!D32 -> 0 | AR55: =Calculator!E32 -> 0 | AS55: =Calculator!F32 -> 0 | AT55: =Calculator!G32 -> 0 | AU55: =Calculator!H32 -> 0
A56: Rx Brand Non-Formulary (Retail): | B56: =Calculator!C33 -> 0 | C56: =Calculator!D33 -> 0 | D56: =Calculator!E33 -> 0 | E56: =Calculator!F33 -> 0 | F56: =Calculator!G33 -> 0 | G56: =Calculator!H33 -> 0 | I56: Rx Brand Non-Formulary (Retail): | J56: =Calculator!C33 -> 0 | K56: =Calculator!D33 -> 0 | L56: =Calculator!E33 -> 0 | M56: =Calculator!F33 -> 0 | N56: =Calculator!G33 -> 0 | O56: =Calculator!H33 -> 0 | Q56: Rx Brand Non-Formulary (Retail): | R56: =Calculator!C33 -> 0 | S56: =Calculator!D33 -> 0 | T56: =Calculator!E33 -> 0 | U56: =Calculator!F33 -> 0 | V56: =Calculator!G33 -> 0 | W56: =Calculator!H33 -> 0 | Y56: Rx Brand Non-Formulary (Retail): | Z56: =Calculator!C33 -> 0 | AA56: =Calculator!D33 -> 0 | AB56: =Calculator!E33 -> 0 | AC56: =Calculator!F33 -> 0 | AD56: =Calculator!G33 -> 0 | AE56: =Calculator!H33 -> 0 | AG56: Rx Brand Non-Formulary (Retail): | AH56: =Calculator!C33 -> 0 | AI56: =Calculator!D33 -> 0 | AJ56: =Calculator!E33 -> 0 | AK56: =Calculator!F33 -> 0 | AL56: =Calculator!G33 -> 0 | AM56: =Calculator!H33 -> 0 | AO56: Rx Brand Non-Formulary (Retail): | AP56: =Calculator!C33 -> 0 | AQ56: =Calculator!D33 -> 0 | AR56: =Calculator!E33 -> 0 | AS56: =Calculator!F33 -> 0 | AT56: =Calculator!G33 -> 0 | AU56: =Calculator!H33 -> 0
A57: Rx Specialty (Retail): | B57: =Calculator!C34 -> 0 | C57: =Calculator!D34 -> 0 | D57: =Calculator!E34 -> 0 | E57: =Calculator!F34 -> 0 | F57: =Calculator!G34 -> 0 | G57: =Calculator!H34 -> 0 | I57: Rx Specialty (Retail): | J57: =Calculator!C34 -> 0 | K57: =Calculator!D34 -> 0 | L57: =Calculator!E34 -> 0 | M57: =Calculator!F34 -> 0 | N57: =Calculator!G34 -> 0 | O57: =Calculator!H34 -> 0 | Q57: Rx Specialty (Retail): | R57: =Calculator!C34 -> 0 | S57: =Calculator!D34 -> 0 | T57: =Calculator!E34 -> 0 | U57: =Calculator!F34 -> 0 | V57: =Calculator!G34 -> 0 | W57: =Calculator!H34 -> 0 | Y57: Rx Specialty (Retail): | Z57: =Calculator!C34 -> 0 | AA57: =Calculator!D34 -> 0 | AB57: =Calculator!E34 -> 0 | AC57: =Calculator!F34 -> 0 | AD57: =Calculator!G34 -> 0 | AE57: =Calculator!H34 -> 0 | AG57: Rx Specialty (Retail): | AH57: =Calculator!C34 -> 0 | AI57: =Calculator!D34 -> 0 | AJ57: =Calculator!E34 -> 0 | AK57: =Calculator!F34 -> 0 | AL57: =Calculator!G34 -> 0 | AM57: =Calculator!H34 -> 0 | AO57: Rx Specialty (Retail): | AP57: =Calculator!C34 -> 0 | AQ57: =Calculator!D34 -> 0 | AR57: =Calculator!E34 -> 0 | AS57: =Calculator!F34 -> 0 | AT57: =Calculator!G34 -> 0 | AU57: =Calculator!H34 -> 0
A58: Rx Generic (Mail): | B58: =Calculator!C35 -> 0 | C58: =Calculator!D35 -> 0 | D58: =Calculator!E35 -> 0 | E58: =Calculator!F35 -> 0 | F58: =Calculator!G35 -> 0 | G58: =Calculator!H35 -> 0 | I58: Rx Generic (Mail): | J58: =Calculator!C35 -> 0 | K58: =Calculator!D35 -> 0 | L58: =Calculator!E35 -> 0 | M58: =Calculator!F35 -> 0 | N58: =Calculator!G35 -> 0 | O58: =Calculator!H35 -> 0 | Q58: Rx Generic (Mail): | R58: =Calculator!C35 -> 0 | S58: =Calculator!D35 -> 0 | T58: =Calculator!E35 -> 0 | U58: =Calculator!F35 -> 0 | V58: =Calculator!G35 -> 0 | W58: =Calculator!H35 -> 0 | Y58: Rx Generic (Mail): | Z58: =Calculator!C35 -> 0 | AA58: =Calculator!D35 -> 0 | AB58: =Calculator!E35 -> 0 | AC58: =Calculator!F35 -> 0 | AD58: =Calculator!G35 -> 0 | AE58: =Calculator!H35 -> 0 | AG58: Rx Generic (Mail): | AH58: =Calculator!C35 -> 0 | AI58: =Calculator!D35 -> 0 | AJ58: =Calculator!E35 -> 0 | AK58: =Calculator!F35 -> 0 | AL58: =Calculator!G35 -> 0 | AM58: =Calculator!H35 -> 0 | AO58: Rx Generic (Mail): | AP58: =Calculator!C35 -> 0 | AQ58: =Calculator!D35 -> 0 | AR58: =Calculator!E35 -> 0 | AS58: =Calculator!F35 -> 0 | AT58: =Calculator!G35 -> 0 | AU58: =Calculator!H35 -> 0
A59: Rx Brand Formulary (Mail): | B59: =Calculator!C36 -> 0 | C59: =Calculator!D36 -> 0 | D59: =Calculator!E36 -> 0 | E59: =Calculator!F36 -> 0 | F59: =Calculator!G36 -> 0 | G59: =Calculator!H36 -> 0 | I59: Rx Brand Formulary (Mail): | J59: =Calculator!C36 -> 0 | K59: =Calculator!D36 -> 0 | L59: =Calculator!E36 -> 0 | M59: =Calculator!F36 -> 0 | N59: =Calculator!G36 -> 0 | O59: =Calculator!H36 -> 0 | Q59: Rx Brand Formulary (Mail): | R59: =Calculator!C36 -> 0 | S59: =Calculator!D36 -> 0 | T59: =Calculator!E36 -> 0 | U59: =Calculator!F36 -> 0 | V59: =Calculator!G36 -> 0 | W59: =Calculator!H36 -> 0 | Y59: Rx Brand Formulary (Mail): | Z59: =Calculator!C36 -> 0 | AA59: =Calculator!D36 -> 0 | AB59: =Calculator!E36 -> 0 | AC59: =Calculator!F36 -> 0 | AD59: =Calculator!G36 -> 0 | AE59: =Calculator!H36 -> 0 | AG59: Rx Brand Formulary (Mail): | AH59: =Calculator!C36 -> 0 | AI59: =Calculator!D36 -> 0 | AJ59: =Calculator!E36 -> 0 | AK59: =Calculator!F36 -> 0 | AL59: =Calculator!G36 -> 0 | AM59: =Calculator!H36 -> 0 | AO59: Rx Brand Formulary (Mail): | AP59: =Calculator!C36 -> 0 | AQ59: =Calculator!D36 -> 0 | AR59: =Calculator!E36 -> 0 | AS59: =Calculator!F36 -> 0 | AT59: =Calculator!G36 -> 0 | AU59: =Calculator!H36 -> 0
A60: Rx Brand Non-Formulary (Mail): | B60: =Calculator!C37 -> 0 | C60: =Calculator!D37 -> 0 | D60: =Calculator!E37 -> 0 | E60: =Calculator!F37 -> 0 | F60: =Calculator!G37 -> 0 | G60: =Calculator!H37 -> 0 | I60: Rx Brand Non-Formulary (Mail): | J60: =Calculator!C37 -> 0 | K60: =Calculator!D37 -> 0 | L60: =Calculator!E37 -> 0 | M60: =Calculator!F37 -> 0 | N60: =Calculator!G37 -> 0 | O60: =Calculator!H37 -> 0 | Q60: Rx Brand Non-Formulary (Mail): | R60: =Calculator!C37 -> 0 | S60: =Calculator!D37 -> 0 | T60: =Calculator!E37 -> 0 | U60: =Calculator!F37 -> 0 | V60: =Calculator!G37 -> 0 | W60: =Calculator!H37 -> 0 | Y60: Rx Brand Non-Formulary (Mail): | Z60: =Calculator!C37 -> 0 | AA60: =Calculator!D37 -> 0 | AB60: =Calculator!E37 -> 0 | AC60: =Calculator!F37 -> 0 | AD60: =Calculator!G37 -> 0 | AE60: =Calculator!H37 -> 0 | AG60: Rx Brand Non-Formulary (Mail): | AH60: =Calculator!C37 -> 0 | AI60: =Calculator!D37 -> 0 | AJ60: =Calculator!E37 -> 0 | AK60: =Calculator!F37 -> 0 | AL60: =Calculator!G37 -> 0 | AM60: =Calculator!H37 -> 0 | AO60: Rx Brand Non-Formulary (Mail): | AP60: =Calculator!C37 -> 0 | AQ60: =Calculator!D37 -> 0 | AR60: =Calculator!E37 -> 0 | AS60: =Calculator!F37 -> 0 | AT60: =Calculator!G37 -> 0 | AU60: =Calculator!H37 -> 0
A61: Rx Specialty (Mail): | B61: =Calculator!C38 -> 0 | C61: =Calculator!D38 -> 0 | D61: =Calculator!E38 -> 0 | E61: =Calculator!F38 -> 0 | F61: =Calculator!G38 -> 0 | G61: =Calculator!H38 -> 0 | I61: Rx Specialty (Mail): | J61: =Calculator!C38 -> 0 | K61: =Calculator!D38 -> 0 | L61: =Calculator!E38 -> 0 | M61: =Calculator!F38 -> 0 | N61: =Calculator!G38 -> 0 | O61: =Calculator!H38 -> 0 | Q61: Rx Specialty (Mail): | R61: =Calculator!C38 -> 0 | S61: =Calculator!D38 -> 0 | T61: =Calculator!E38 -> 0 | U61: =Calculator!F38 -> 0 | V61: =Calculator!G38 -> 0 | W61: =Calculator!H38 -> 0 | Y61: Rx Specialty (Mail): | Z61: =Calculator!C38 -> 0 | AA61: =Calculator!D38 -> 0 | AB61: =Calculator!E38 -> 0 | AC61: =Calculator!F38 -> 0 | AD61: =Calculator!G38 -> 0 | AE61: =Calculator!H38 -> 0 | AG61: Rx Specialty (Mail): | AH61: =Calculator!C38 -> 0 | AI61: =Calculator!D38 -> 0 | AJ61: =Calculator!E38 -> 0 | AK61: =Calculator!F38 -> 0 | AL61: =Calculator!G38 -> 0 | AM61: =Calculator!H38 -> 0 | AO61: Rx Specialty (Mail): | AP61: =Calculator!C38 -> 0 | AQ61: =Calculator!D38 -> 0 | AR61: =Calculator!E38 -> 0 | AS61: =Calculator!F38 -> 0 | AT61: =Calculator!G38 -> 0 | AU61: =Calculator!H38 -> 0
A63: Allowed Amounts: | I63: Allowed Amounts: | Q63: Allowed Amounts: | Y63: Allowed Amounts: | AG63: Allowed Amounts: | AO63: Allowed Amounts:
A64: Preventive Visit: | B64: =Calculator!C43 -> 128.8575 | C64: =B64 -> 128.8575 | D64: =C64 -> 128.8575 | E64: 128.8575 | F64: 128.8575 | G64: 128.8575 | I64: Preventive Visit: | J64: =B64 -> 128.8575 | K64: =J64 -> 128.8575 | L64: =K64 -> 128.8575 | M64: =L64 -> 128.8575 | N64: =M64 -> 128.8575 | O64: =N64 -> 128.8575 | Q64: Preventive Visit: | R64: =J64 -> 128.8575 | S64: =R64 -> 128.8575 | T64: =S64 -> 128.8575 | U64: =T64 -> 128.8575 | V64: =U64 -> 128.8575 | W64: =V64 -> 128.8575 | Y64: Preventive Visit: | Z64: =R64 -> 128.8575 | AA64: =Z64 -> 128.8575 | AB64: =AA64 -> 128.8575 | AC64: =AB64 -> 128.8575 | AD64: =AC64 -> 128.8575 | AE64: =AD64 -> 128.8575 | AG64: Preventive Visit: | AH64: =Z64 -> 128.8575 | AI64: =AH64 -> 128.8575 | AJ64: =AI64 -> 128.8575 | AK64: =AJ64 -> 128.8575 | AL64: =AK64 -> 128.8575 | AM64: =AL64 -> 128.8575 | AO64: Preventive Visit: | AP64: =AH64 -> 128.8575 | AQ64: =AP64 -> 128.8575 | AR64: =AQ64 -> 128.8575 | AS64: =AR64 -> 128.8575 | AT64: =AS64 -> 128.8575 | AU64: =AT64 -> 128.8575
A65: Hospitalization: | B65: =Calculator!C44 -> 4362 | C65: =B65 -> 4362 | D65: =C65 -> 4362 | E65: 4362 | F65: 4362 | G65: 4362 | I65: Hospitalization: | J65: =B65 -> 4362 | K65: =J65 -> 4362 | L65: 4362 | M65: 4362 | N65: 4362 | O65: 4362 | Q65: Hospitalization: | R65: =J65 -> 4362 | S65: =R65 -> 4362 | T65: 4362 | U65: 4362 | V65: 4362 | W65: 4362 | Y65: Hospitalization: | Z65: =R65 -> 4362 | AA65: =Z65 -> 4362 | AB65: 4362 | AC65: 4362 | AD65: 4362 | AE65: 4362 | AG65: Hospitalization: | AH65: =Z65 -> 4362 | AI65: =AH65 -> 4362 | AJ65: 4362 | AK65: 4362 | AL65: 4362 | AM65: 4362 | AO65: Hospitalization: | AP65: =AH65 -> 4362 | AQ65: =AP65 -> 4362 | AR65: 4362 | AS65: 4362 | AT65: 4362 | AU65: 4362
A66: Outpatient Service: | B66: =Calculator!C45 -> 1293.968887 | C66: 1293.968887 | D66: =C66 -> 1293.968887 | E66: 1293.968887 | F66: 1293.968887 | G66: 1293.968887 | I66: Outpatient Service: | J66: 1293.968887 | K66: 1293.968887 | L66: 1293.968887 | M66: 1293.968887 | N66: 1293.968887 | O66: 1293.968887 | Q66: Outpatient Service: | R66: 1293.968887 | S66: 1293.968887 | T66: 1293.968887 | U66: 1293.968887 | V66: 1293.968887 | W66: 1293.968887 | Y66: Outpatient Service: | Z66: 1293.968887 | AA66: 1293.968887 | AB66: 1293.968887 | AC66: 1293.968887 | AD66: 1293.968887 | AE66: 1293.968887 | AG66: Outpatient Service: | AH66: 1293.968887 | AI66: 1293.968887 | AJ66: 1293.968887 | AK66: 1293.968887 | AL66: 1293.968887 | AM66: 1293.968887 | AO66: Outpatient Service: | AP66: 1293.968887 | AQ66: 1293.968887 | AR66: 1293.968887 | AS66: 1293.968887 | AT66: 1293.968887 | AU66: 1293.968887
A67: Lab/X-Ray/Radiology Service: | B67: =Calculator!C46 -> 260.05 | C67: 260.05 | D67: =C67 -> 260.05 | E67: 260.05 | F67: 260.05 | G67: 260.05 | I67: Lab/X-Ray/Radiology Service: | J67: 260.05 | K67: 260.05 | L67: 260.05 | M67: 260.05 | N67: 260.05 | O67: 260.05 | Q67: Lab/X-Ray/Radiology Service: | R67: 260.05 | S67: 260.05 | T67: 260.05 | U67: 260.05 | V67: 260.05 | W67: 260.05 | Y67: Lab/X-Ray/Radiology Service: | Z67: 260.05 | AA67: 260.05 | AB67: 260.05 | AC67: 260.05 | AD67: 260.05 | AE67: 260.05 | AG67: Lab/X-Ray/Radiology Service: | AH67: 260.05 | AI67: 260.05 | AJ67: 260.05 | AK67: 260.05 | AL67: 260.05 | AM67: 260.05 | AO67: Lab/X-Ray/Radiology Service: | AP67: 260.05 | AQ67: 260.05 | AR67: 260.05 | AS67: 260.05 | AT67: 260.05 | AU67: 260.05
A68: Emergency Room Visit: | B68: =Calculator!C47 -> 1849 | C68: 1849 | D68: =C68 -> 1849 | E68: 1849 | F68: 1849 | G68: 1849 | I68: Emergency Room Visit: | J68: 1849 | K68: 1849 | L68: 1849 | M68: 1849 | N68: 1849 | O68: 1849 | Q68: Emergency Room Visit: | R68: 1849 | S68: 1849 | T68: 1849 | U68: 1849 | V68: 1849 | W68: 1849 | Y68: Emergency Room Visit: | Z68: 1849 | AA68: 1849 | AB68: 1849 | AC68: 1849 | AD68: 1849 | AE68: 1849 | AG68: Emergency Room Visit: | AH68: 1849 | AI68: 1849 | AJ68: 1849 | AK68: 1849 | AL68: 1849 | AM68: 1849 | AO68: Emergency Room Visit: | AP68: 1849 | AQ68: 1849 | AR68: 1849 | AS68: 1849 | AT68: 1849 | AU68: 1849
A69: Urgent Care Visit: | B69: =Calculator!C48 -> 138 | C69: 138 | D69: =C69 -> 138 | E69: 138 | F69: 138 | G69: 138 | I69: Urgent Care Visit: | J69: 138 | K69: 138 | L69: 138 | M69: 138 | N69: 138 | O69: 138 | Q69: Urgent Care Visit: | R69: 138 | S69: 138 | T69: 138 | U69: 138 | V69: 138 | W69: 138 | Y69: Urgent Care Visit: | Z69: 138 | AA69: 138 | AB69: 138 | AC69: 138 | AD69: 138 | AE69: 138 | AG69: Urgent Care Visit: | AH69: 138 | AI69: 138 | AJ69: 138 | AK69: 138 | AL69: 138 | AM69: 138 | AO69: Urgent Care Visit: | AP69: 138 | AQ69: 138 | AR69: 138 | AS69: 138 | AT69: 138 | AU69: 138
A70: PCP Office Visit: | B70: =Calculator!C49 -> 130.9618333 | C70: 130.9618333 | D70: =C70 -> 130.9618333 | E70: 130.9618333 | F70: 130.9618333 | G70: 130.9618333 | I70: PCP Office Visit: | J70: 130.9618333 | K70: 130.9618333 | L70: 130.9618333 | M70: 130.9618333 | N70: 130.9618333 | O70: 130.9618333 | Q70: PCP Office Visit: | R70: 130.9618333 | S70: 130.9618333 | T70: 130.9618333 | U70: 130.9618333 | V70: 130.9618333 | W70: 130.9618333 | Y70: PCP Office Visit: | Z70: 130.9618333 | AA70: 130.9618333 | AB70: 130.9618333 | AC70: 130.9618333 | AD70: 130.9618333 | AE70: 130.9618333 | AG70: PCP Office Visit: | AH70: 130.9618333 | AI70: 130.9618333 | AJ70: 130.9618333 | AK70: 130.9618333 | AL70: 130.9618333 | AM70: 130.9618333 | AO70: PCP Office Visit: | AP70: 130.9618333 | AQ70: 130.9618333 | AR70: 130.9618333 | AS70: 130.9618333 | AT70: 130.9618333 | AU70: 130.9618333
A71: Specialist Office Visit: | B71: =Calculator!C50 -> 189.62 | C71: 189.62 | D71: =C71 -> 189.62 | E71: 189.62 | F71: 189.62 | G71: 189.62 | I71: Specialist Office Visit: | J71: 189.62 | K71: 189.62 | L71: 189.62 | M71: 189.62 | N71: 189.62 | O71: 189.62 | Q71: Specialist Office Visit: | R71: 189.62 | S71: 189.62 | T71: 189.62 | U71: 189.62 | V71: 189.62 | W71: 189.62 | Y71: Specialist Office Visit: | Z71: 189.62 | AA71: 189.62 | AB71: 189.62 | AC71: 189.62 | AD71: 189.62 | AE71: 189.62 | AG71: Specialist Office Visit: | AH71: 189.62 | AI71: 189.62 | AJ71: 189.62 | AK71: 189.62 | AL71: 189.62 | AM71: 189.62 | AO71: Specialist Office Visit: | AP71: 189.62 | AQ71: 189.62 | AR71: 189.62 | AS71: 189.62 | AT71: 189.62 | AU71: 189.62
A72: Chiropractor Visit: | B72: =Calculator!C51 -> 34.5 | C72: 34.5 | D72: =C72 -> 34.5 | E72: 34.5 | F72: 34.5 | G72: 34.5 | I72: Chiropractor Visit: | J72: 34.5 | K72: 34.5 | L72: 34.5 | M72: 34.5 | N72: 34.5 | O72: 34.5 | Q72: Chiropractor Visit: | R72: 34.5 | S72: 34.5 | T72: 34.5 | U72: 34.5 | V72: 34.5 | W72: 34.5 | Y72: Chiropractor Visit: | Z72: 34.5 | AA72: 34.5 | AB72: 34.5 | AC72: 34.5 | AD72: 34.5 | AE72: 34.5 | AG72: Chiropractor Visit: | AH72: 34.5 | AI72: 34.5 | AJ72: 34.5 | AK72: 34.5 | AL72: 34.5 | AM72: 34.5 | AO72: Chiropractor Visit: | AP72: 34.5 | AQ72: 34.5 | AR72: 34.5 | AS72: 34.5 | AT72: 34.5 | AU72: 34.5
A73: Rx Generic (Retail): | B73: =Calculator!C52 -> 31 | C73: 31 | D73: =C73 -> 31 | E73: 31 | F73: 31 | G73: 31 | I73: Rx Generic (Retail): | J73: 31 | K73: 31 | L73: 31 | M73: 31 | N73: 31 | O73: 31 | Q73: Rx Generic (Retail): | R73: 31 | S73: 31 | T73: 31 | U73: 31 | V73: 31 | W73: 31 | Y73: Rx Generic (Retail): | Z73: 31 | AA73: 31 | AB73: 31 | AC73: 31 | AD73: 31 | AE73: 31 | AG73: Rx Generic (Retail): | AH73: 31 | AI73: 31 | AJ73: 31 | AK73: 31 | AL73: 31 | AM73: 31 | AO73: Rx Generic (Retail): | AP73: 31 | AQ73: 31 | AR73: 31 | AS73: 31 | AT73: 31 | AU73: 31
A74: Rx Brand Formulary (Retail): | B74: =Calculator!C53 -> 292 | C74: 292 | D74: =C74 -> 292 | E74: 292 | F74: 292 | G74: 292 | I74: Rx Brand Formulary (Retail): | J74: 292 | K74: 292 | L74: 292 | M74: 292 | N74: 292 | O74: 292 | Q74: Rx Brand Formulary (Retail): | R74: 292 | S74: 292 | T74: 292 | U74: 292 | V74: 292 | W74: 292 | Y74: Rx Brand Formulary (Retail): | Z74: 292 | AA74: 292 | AB74: 292 | AC74: 292 | AD74: 292 | AE74: 292 | AG74: Rx Brand Formulary (Retail): | AH74: 292 | AI74: 292 | AJ74: 292 | AK74: 292 | AL74: 292 | AM74: 292 | AO74: Rx Brand Formulary (Retail): | AP74: 292 | AQ74: 292 | AR74: 292 | AS74: 292 | AT74: 292 | AU74: 292
A75: Rx Brand Non-Formulary (Retail): | B75: =Calculator!C54 -> 292 | C75: 292 | D75: =C75 -> 292 | E75: 292 | F75: 292 | G75: 292 | I75: Rx Brand Non-Formulary (Retail): | J75: 292 | K75: 292 | L75: 292 | M75: 292 | N75: 292 | O75: 292 | Q75: Rx Brand Non-Formulary (Retail): | R75: 292 | S75: 292 | T75: 292 | U75: 292 | V75: 292 | W75: 292 | Y75: Rx Brand Non-Formulary (Retail): | Z75: 292 | AA75: 292 | AB75: 292 | AC75: 292 | AD75: 292 | AE75: 292 | AG75: Rx Brand Non-Formulary (Retail): | AH75: 292 | AI75: 292 | AJ75: 292 | AK75: 292 | AL75: 292 | AM75: 292 | AO75: Rx Brand Non-Formulary (Retail): | AP75: 292 | AQ75: 292 | AR75: 292 | AS75: 292 | AT75: 292 | AU75: 292
A76: Rx Specialty (Retail): | B76: =Calculator!C55 -> 2733 | C76: 2733 | D76: =C76 -> 2733 | E76: 2733 | F76: 2733 | G76: 2733 | I76: Rx Specialty (Retail): | J76: 2733 | K76: 2733 | L76: 2733 | M76: 2733 | N76: 2733 | O76: 2733 | Q76: Rx Specialty (Retail): | R76: 2733 | S76: 2733 | T76: 2733 | U76: 2733 | V76: 2733 | W76: 2733 | Y76: Rx Specialty (Retail): | Z76: 2733 | AA76: 2733 | AB76: 2733 | AC76: 2733 | AD76: 2733 | AE76: 2733 | AG76: Rx Specialty (Retail): | AH76: 2733 | AI76: 2733 | AJ76: 2733 | AK76: 2733 | AL76: 2733 | AM76: 2733 | AO76: Rx Specialty (Retail): | AP76: 2733 | AQ76: 2733 | AR76: 2733 | AS76: 2733 | AT76: 2733 | AU76: 2733
A77: Rx Generic (Mail): | B77: =B73*3 -> 93 | C77: 93 | D77: =C77 -> 93 | E77: 93 | F77: 93 | G77: 93 | I77: Rx Generic (Mail): | J77: 93 | K77: 93 | L77: 93 | M77: 93 | N77: 93 | O77: 93 | Q77: Rx Generic (Mail): | R77: 93 | S77: 93 | T77: 93 | U77: 93 | V77: 93 | W77: 93 | Y77: Rx Generic (Mail): | Z77: 93 | AA77: 93 | AB77: 93 | AC77: 93 | AD77: 93 | AE77: 93 | AG77: Rx Generic (Mail): | AH77: 93 | AI77: 93 | AJ77: 93 | AK77: 93 | AL77: 93 | AM77: 93 | AO77: Rx Generic (Mail): | AP77: 93 | AQ77: 93 | AR77: 93 | AS77: 93 | AT77: 93 | AU77: 93
A78: Rx Brand Formulary (Mail): | B78: =B74*3 -> 876 | C78: 876 | D78: =C78 -> 876 | E78: 876 | F78: 876 | G78: 876 | I78: Rx Brand Formulary (Mail): | J78: 876 | K78: 876 | L78: 876 | M78: 876 | N78: 876 | O78: 876 | Q78: Rx Brand Formulary (Mail): | R78: 876 | S78: 876 | T78: 876 | U78: 876 | V78: 876 | W78: 876 | Y78: Rx Brand Formulary (Mail): | Z78: 876 | AA78: 876 | AB78: 876 | AC78: 876 | AD78: 876 | AE78: 876 | AG78: Rx Brand Formulary (Mail): | AH78: 876 | AI78: 876 | AJ78: 876 | AK78: 876 | AL78: 876 | AM78: 876 | AO78: Rx Brand Formulary (Mail): | AP78: 876 | AQ78: 876 | AR78: 876 | AS78: 876 | AT78: 876 | AU78: 876
A79: Rx Brand Non-Formulary (Mail): | B79: =B75*3 -> 876 | C79: 876 | D79: =C79 -> 876 | E79: 876 | F79: 876 | G79: 876 | I79: Rx Brand Non-Formulary (Mail): | J79: 876 | K79: 876 | L79: 876 | M79: 876 | N79: 876 | O79: 876 | Q79: Rx Brand Non-Formulary (Mail): | R79: 876 | S79: 876 | T79: 876 | U79: 876 | V79: 876 | W79: 876 | Y79: Rx Brand Non-Formulary (Mail): | Z79: 876 | AA79: 876 | AB79: 876 | AC79: 876 | AD79: 876 | AE79: 876 | AG79: Rx Brand Non-Formulary (Mail): | AH79: 876 | AI79: 876 | AJ79: 876 | AK79: 876 | AL79: 876 | AM79: 876 | AO79: Rx Brand Non-Formulary (Mail): | AP79: 876 | AQ79: 876 | AR79: 876 | AS79: 876 | AT79: 876 | AU79: 876
A80: Rx Specialty (Mail): | B80: =B76*3 -> 8199 | C80: 8199 | D80: =C80 -> 8199 | E80: 8199 | F80: 8199 | G80: 8199 | I80: Rx Specialty (Mail): | J80: 8199 | K80: 8199 | L80: 8199 | M80: 8199 | N80: 8199 | O80: 8199 | Q80: Rx Specialty (Mail): | R80: 8199 | S80: 8199 | T80: 8199 | U80: 8199 | V80: 8199 | W80: 8199 | Y80: Rx Specialty (Mail): | Z80: 8199 | AA80: 8199 | AB80: 8199 | AC80: 8199 | AD80: 8199 | AE80: 8199 | AG80: Rx Specialty (Mail): | AH80: 8199 | AI80: 8199 | AJ80: 8199 | AK80: 8199 | AL80: 8199 | AM80: 8199 | AO80: Rx Specialty (Mail): | AP80: 8199 | AQ80: 8199 | AR80: 8199 | AS80: 8199 | AT80: 8199 | AU80: 8199
A82: Copayments: | I82: Copayments: | Q82: Copayments: | Y82: Copayments: | AG82: Copayments: | AO82: Copayments:
A83: Preventive Visit: | B83: =B45*B26 -> 0 | C83: =C45*C26 -> 0 | D83: 0 | E83: 0 | F83: 0 | G83: 0 | I83: Preventive Visit: | J83: =J45*J26 -> 0 | K83: =K45*K26 -> 0 | L83: 0 | M83: 0 | N83: 0 | O83: 0 | Q83: Preventive Visit: | R83: =R45*R26 -> 0 | S83: =S45*S26 -> 0 | T83: 0 | U83: 0 | V83: 0 | W83: 0 | Y83: Preventive Visit: | Z83: =Z45*Z26 -> 0 | AA83: =AA45*AA26 -> 0 | AB83: 0 | AC83: 0 | AD83: 0 | AE83: 0 | AG83: Preventive Visit: | AH83: =AH45*AH26 -> 0 | AI83: =AI45*AI26 -> 0 | AJ83: 0 | AK83: 0 | AL83: 0 | AM83: 0 | AO83: Preventive Visit: | AP83: =AP45*AP26 -> 0 | AQ83: =AQ45*AQ26 -> 0 | AR83: 0 | AS83: 0 | AT83: 0 | AU83: 0
A84: Hospitalization: | B84: =B46*B27 -> 0 | C84: =C46*C27 -> 0 | D84: 0 | E84: 0 | F84: 0 | G84: 0 | I84: Hospitalization: | J84: =J46*J27 -> 0 | K84: 0 | L84: 0 | M84: 0 | N84: 0 | O84: 0 | Q84: Hospitalization: | R84: =R46*R27 -> 0 | S84: 0 | T84: 0 | U84: 0 | V84: 0 | W84: 0 | Y84: Hospitalization: | Z84: =Z46*Z27 -> 0 | AA84: 0 | AB84: 0 | AC84: 0 | AD84: 0 | AE84: 0 | AG84: Hospitalization: | AH84: =AH46*AH27 -> 0 | AI84: 0 | AJ84: 0 | AK84: 0 | AL84: 0 | AM84: 0 | AO84: Hospitalization: | AP84: =AP46*AP27 -> 0 | AQ84: 0 | AR84: 0 | AS84: 0 | AT84: 0 | AU84: 0
A85: Outpatient Service: | B85: 0 | C85: =C47*C28 -> 0 | D85: 0 | E85: 0 | F85: 0 | G85: 0 | I85: Outpatient Service: | J85: 0 | K85: 0 | L85: 0 | M85: 0 | N85: 0 | O85: 0 | Q85: Outpatient Service: | R85: =R47*R28 -> 0 | S85: 0 | T85: 0 | U85: 0 | V85: 0 | W85: 0 | Y85: Outpatient Service: | Z85: =Z47*Z28 -> 0 | AA85: 0 | AB85: 0 | AC85: 0 | AD85: 0 | AE85: 0 | AG85: Outpatient Service: | AH85: =AH47*AH28 -> 0 | AI85: 0 | AJ85: 0 | AK85: 0 | AL85: 0 | AM85: 0 | AO85: Outpatient Service: | AP85: =AP47*AP28 -> 0 | AQ85: 0 | AR85: 0 | AS85: 0 | AT85: 0 | AU85: 0
A86: Lab/X-Ray/Radiology Service: | B86: 0 | C86: =C48*C29 -> 0 | D86: 0 | E86: 0 | F86: 0 | G86: 0 | I86: Lab/X-Ray/Radiology Service: | J86: 0 | K86: 0 | L86: 0 | M86: 0 | N86: 0 | O86: 0 | Q86: Lab/X-Ray/Radiology Service: | R86: =R48*R29 -> 0 | S86: 0 | T86: 0 | U86: 0 | V86: 0 | W86: 0 | Y86: Lab/X-Ray/Radiology Service: | Z86: =Z48*Z29 -> 0 | AA86: 0 | AB86: 0 | AC86: 0 | AD86: 0 | AE86: 0 | AG86: Lab/X-Ray/Radiology Service: | AH86: =AH48*AH29 -> 0 | AI86: 0 | AJ86: 0 | AK86: 0 | AL86: 0 | AM86: 0 | AO86: Lab/X-Ray/Radiology Service: | AP86: =AP48*AP29 -> 0 | AQ86: 0 | AR86: 0 | AS86: 0 | AT86: 0 | AU86: 0
A87: Emergency Room Visit: | B87: 0 | C87: =C49*C30 -> 0 | D87: 0 | E87: 0 | F87: 0 | G87: 0 | I87: Emergency Room Visit: | J87: 0 | K87: 0 | L87: 0 | M87: 0 | N87: 0 | O87: 0 | Q87: Emergency Room Visit: | R87: =R49*R30 -> 0 | S87: 0 | T87: 0 | U87: 0 | V87: 0 | W87: 0 | Y87: Emergency Room Visit: | Z87: =Z49*Z30 -> 0 | AA87: 0 | AB87: 0 | AC87: 0 | AD87: 0 | AE87: 0 | AG87: Emergency Room Visit: | AH87: =AH49*AH30 -> 0 | AI87: 0 | AJ87: 0 | AK87: 0 | AL87: 0 | AM87: 0 | AO87: Emergency Room Visit: | AP87: =AP49*AP30 -> 0 | AQ87: 0 | AR87: 0 | AS87: 0 | AT87: 0 | AU87: 0
A88: Urgent Care Visit: | B88: 0 | C88: =C50*C31 -> 0 | D88: 0 | E88: 0 | F88: 0 | G88: 0 | I88: Urgent Care Visit: | J88: 0 | K88: 0 | L88: 0 | M88: 0 | N88: 0 | O88: 0 | Q88: Urgent Care Visit: | R88: =R50*R31 -> 0 | S88: 0 | T88: 0 | U88: 0 | V88: 0 | W88: 0 | Y88: Urgent Care Visit: | Z88: =Z50*Z31 -> 0 | AA88: 0 | AB88: 0 | AC88: 0 | AD88: 0 | AE88: 0 | AG88: Urgent Care Visit: | AH88: =AH50*AH31 -> 0 | AI88: 0 | AJ88: 0 | AK88: 0 | AL88: 0 | AM88: 0 | AO88: Urgent Care Visit: | AP88: =AP50*AP31 -> 0 | AQ88: 0 | AR88: 0 | AS88: 0 | AT88: 0 | AU88: 0
A89: PCP Office Visit: | B89: 0 | C89: =C51*C32 -> 0 | D89: 0 | E89: 0 | F89: 0 | G89: 0 | I89: PCP Office Visit: | J89: 0 | K89: 0 | L89: 0 | M89: 0 | N89: 0 | O89: 0 | Q89: PCP Office Visit: | R89: =R51*R32 -> 0 | S89: 0 | T89: 0 | U89: 0 | V89: 0 | W89: 0 | Y89: PCP Office Visit: | Z89: =Z51*Z32 -> 0 | AA89: 0 | AB89: 0 | AC89: 0 | AD89: 0 | AE89: 0 | AG89: PCP Office Visit: | AH89: =AH51*AH32 -> 0 | AI89: 0 | AJ89: 0 | AK89: 0 | AL89: 0 | AM89: 0 | AO89: PCP Office Visit: | AP89: =AP51*AP32 -> 0 | AQ89: 0 | AR89: 0 | AS89: 0 | AT89: 0 | AU89: 0
A90: Specialist Office Visit: | B90: 0 | C90: =C52*C33 -> 0 | D90: 0 | E90: 0 | F90: 0 | G90: 0 | I90: Specialist Office Visit: | J90: 0 | K90: 0 | L90: 0 | M90: 0 | N90: 0 | O90: 0 | Q90: Specialist Office Visit: | R90: =R52*R33 -> 0 | S90: 0 | T90: 0 | U90: 0 | V90: 0 | W90: 0 | Y90: Specialist Office Visit: | Z90: =Z52*Z33 -> 0 | AA90: 0 | AB90: 0 | AC90: 0 | AD90: 0 | AE90: 0 | AG90: Specialist Office Visit: | AH90: =AH52*AH33 -> 0 | AI90: 0 | AJ90: 0 | AK90: 0 | AL90: 0 | AM90: 0 | AO90: Specialist Office Visit: | AP90: =AP52*AP33 -> 0 | AQ90: 0 | AR90: 0 | AS90: 0 | AT90: 0 | AU90: 0
A91: Chiropractor Visit: | B91: 0 | C91: =C53*C34 -> 0 | D91: 0 | E91: 0 | F91: 0 | G91: 0 | I91: Chiropractor Visit: | J91: 0 | K91: 0 | L91: 0 | M91: 0 | N91: 0 | O91: 0 | Q91: Chiropractor Visit: | R91: =R53*R34 -> 0 | S91: 0 | T91: 0 | U91: 0 | V91: 0 | W91: 0 | Y91: Chiropractor Visit: | Z91: =Z53*Z34 -> 0 | AA91: 0 | AB91: 0 | AC91: 0 | AD91: 0 | AE91: 0 | AG91: Chiropractor Visit: | AH91: =AH53*AH34 -> 0 | AI91: 0 | AJ91: 0 | AK91: 0 | AL91: 0 | AM91: 0 | AO91: Chiropractor Visit: | AP91: =AP53*AP34 -> 0 | AQ91: 0 | AR91: 0 | AS91: 0 | AT91: 0 | AU91: 0
A92: Rx Generic (Retail): | B92: =IF('1. Plan Inputs'!$G$50="Yes",0,B54*B73*$B158) -> 0 | C92: =IF('1. Plan Inputs'!$G$50="Yes",0,C54*C73*$B158) -> 0 | D92: =IF('1. Plan Inputs'!$G$50="Yes",0,D54*D73*$B158) -> 0 | E92: =IF('1. Plan Inputs'!$G$50="Yes",0,E54*E73*$B158) -> 0 | F92: =IF('1. Plan Inputs'!$G$50="Yes",0,F54*F73*$B158) -> 0 | G92: =IF('1. Plan Inputs'!$G$50="Yes",0,G54*G73*$B158) -> 0 | I92: Rx Generic (Retail): | J92: =IF('1. Plan Inputs'!$J$50="Yes",0,J54*J73*$J158) -> 0 | K92: =IF('1. Plan Inputs'!$J$50="Yes",0,K54*K73*$J158) -> 0 | L92: =IF('1. Plan Inputs'!$J$50="Yes",0,L54*L73*$J158) -> 0 | M92: =IF('1. Plan Inputs'!$J$50="Yes",0,M54*M73*$J158) -> 0 | N92: =IF('1. Plan Inputs'!$J$50="Yes",0,N54*N73*$J158) -> 0 | O92: =IF('1. Plan Inputs'!$J$50="Yes",0,O54*O73*$J158) -> 0 | Q92: Rx Generic (Retail): | R92: =IF('1. Plan Inputs'!$M$50="Yes",0,R54*R73*$R158) -> 0 | S92: =IF('1. Plan Inputs'!$M$50="Yes",0,S54*S73*$R158) -> 0 | T92: =IF('1. Plan Inputs'!$M$50="Yes",0,T54*T73*$R158) -> 0 | U92: =IF('1. Plan Inputs'!$M$50="Yes",0,U54*U73*$R158) -> 0 | V92: =IF('1. Plan Inputs'!$M$50="Yes",0,V54*V73*$R158) -> 0 | W92: =IF('1. Plan Inputs'!$M$50="Yes",0,W54*W73*$R158) -> 0 | Y92: Rx Generic (Retail): | Z92: =IF('1. Plan Inputs'!$P$50="Yes",0,Z54*Z73*$Z158) -> 0 | AA92: =IF('1. Plan Inputs'!$P$50="Yes",0,AA54*AA73*$Z158) -> 0 | AB92: =IF('1. Plan Inputs'!$P$50="Yes",0,AB54*AB73*$Z158) -> 0 | AC92: =IF('1. Plan Inputs'!$P$50="Yes",0,AC54*AC73*$Z158) -> 0 | AD92: =IF('1. Plan Inputs'!$P$50="Yes",0,AD54*AD73*$Z158) -> 0 | AE92: =IF('1. Plan Inputs'!$P$50="Yes",0,AE54*AE73*$Z158) -> 0 | AG92: Rx Generic (Retail): | AH92: =IF('1. Plan Inputs'!$S$50="Yes",0,AH54*AH73*$AH158) -> 0 | AI92: =IF('1. Plan Inputs'!$S$50="Yes",0,AI54*AI73*$AH158) -> 0 | AJ92: =IF('1. Plan Inputs'!$S$50="Yes",0,AJ54*AJ73*$AH158) -> 0 | AK92: =IF('1. Plan Inputs'!$S$50="Yes",0,AK54*AK73*$AH158) -> 0 | AL92: =IF('1. Plan Inputs'!$S$50="Yes",0,AL54*AL73*$AH158) -> 0 | AM92: =IF('1. Plan Inputs'!$S$50="Yes",0,AM54*AM73*$AH158) -> 0 | AO92: Rx Generic (Retail): | AP92: =IF('1. Plan Inputs'!$V$50="Yes",0,AP54*AP73*$AP158) -> 0 | AQ92: =IF('1. Plan Inputs'!$V$50="Yes",0,AQ54*AQ73*$AP158) -> 0 | AR92: =IF('1. Plan Inputs'!$V$50="Yes",0,AR54*AR73*$AP158) -> 0 | AS92: =IF('1. Plan Inputs'!$V$50="Yes",0,AS54*AS73*$AP158) -> 0 | AT92: =IF('1. Plan Inputs'!$V$50="Yes",0,AT54*AT73*$AP158) -> 0 | AU92: =IF('1. Plan Inputs'!$V$50="Yes",0,AU54*AU73*$AP158) -> 0
A93: Rx Brand Formulary (Retail): | B93: =IF('1. Plan Inputs'!$G$50="Yes",0,B55*B74*$B159) -> 0 | C93: =IF('1. Plan Inputs'!$G$50="Yes",0,C55*C74*$B159) -> 0 | D93: =IF('1. Plan Inputs'!$G$50="Yes",0,D55*D74*$B159) -> 0 | E93: =IF('1. Plan Inputs'!$G$50="Yes",0,E55*E74*$B159) -> 0 | F93: =IF('1. Plan Inputs'!$G$50="Yes",0,F55*F74*$B159) -> 0 | G93: =IF('1. Plan Inputs'!$G$50="Yes",0,G55*G74*$B159) -> 0 | I93: Rx Brand Formulary (Retail): | J93: =IF('1. Plan Inputs'!$J$50="Yes",0,J55*J74*$J159) -> 0 | K93: =IF('1. Plan Inputs'!$J$50="Yes",0,K55*K74*$J159) -> 0 | L93: =IF('1. Plan Inputs'!$J$50="Yes",0,L55*L74*$J159) -> 0 | M93: =IF('1. Plan Inputs'!$J$50="Yes",0,M55*M74*$J159) -> 0 | N93: =IF('1. Plan Inputs'!$J$50="Yes",0,N55*N74*$J159) -> 0 | O93: =IF('1. Plan Inputs'!$J$50="Yes",0,O55*O74*$J159) -> 0 | Q93: Rx Brand Formulary (Retail): | R93: =IF('1. Plan Inputs'!$M$50="Yes",0,R55*R74*$R159) -> 0 | S93: =IF('1. Plan Inputs'!$M$50="Yes",0,S55*S74*$R159) -> 0 | T93: =IF('1. Plan Inputs'!$M$50="Yes",0,T55*T74*$R159) -> 0 | U93: =IF('1. Plan Inputs'!$M$50="Yes",0,U55*U74*$R159) -> 0 | V93: =IF('1. Plan Inputs'!$M$50="Yes",0,V55*V74*$R159) -> 0 | W93: =IF('1. Plan Inputs'!$M$50="Yes",0,W55*W74*$R159) -> 0 | Y93: Rx Brand Formulary (Retail): | Z93: =IF('1. Plan Inputs'!$P$50="Yes",0,Z55*Z74*$Z159) -> 0 | AA93: =IF('1. Plan Inputs'!$P$50="Yes",0,AA55*AA74*$Z159) -> 0 | AB93: =IF('1. Plan Inputs'!$P$50="Yes",0,AB55*AB74*$Z159) -> 0 | AC93: =IF('1. Plan Inputs'!$P$50="Yes",0,AC55*AC74*$Z159) -> 0 | AD93: =IF('1. Plan Inputs'!$P$50="Yes",0,AD55*AD74*$Z159) -> 0 | AE93: =IF('1. Plan Inputs'!$P$50="Yes",0,AE55*AE74*$Z159) -> 0 | AG93: Rx Brand Formulary (Retail): | AH93: =IF('1. Plan Inputs'!$S$50="Yes",0,AH55*AH74*$AH159) -> 0 | AI93: =IF('1. Plan Inputs'!$S$50="Yes",0,AI55*AI74*$AH159) -> 0 | AJ93: =IF('1. Plan Inputs'!$S$50="Yes",0,AJ55*AJ74*$AH159) -> 0 | AK93: =IF('1. Plan Inputs'!$S$50="Yes",0,AK55*AK74*$AH159) -> 0 | AL93: =IF('1. Plan Inputs'!$S$50="Yes",0,AL55*AL74*$AH159) -> 0 | AM93: =IF('1. Plan Inputs'!$S$50="Yes",0,AM55*AM74*$AH159) -> 0 | AO93: Rx Brand Formulary (Retail): | AP93: =IF('1. Plan Inputs'!$V$50="Yes",0,AP55*AP74*$AP159) -> 0 | AQ93: =IF('1. Plan Inputs'!$V$50="Yes",0,AQ55*AQ74*$AP159) -> 0 | AR93: =IF('1. Plan Inputs'!$V$50="Yes",0,AR55*AR74*$AP159) -> 0 | AS93: =IF('1. Plan Inputs'!$V$50="Yes",0,AS55*AS74*$AP159) -> 0 | AT93: =IF('1. Plan Inputs'!$V$50="Yes",0,AT55*AT74*$AP159) -> 0 | AU93: =IF('1. Plan Inputs'!$V$50="Yes",0,AU55*AU74*$AP159) -> 0
A94: Rx Brand Non-Formulary (Retail): | B94: =IF('1. Plan Inputs'!$G$50="Yes",0,B56*B75*$B160) -> 0 | C94: =IF('1. Plan Inputs'!$G$50="Yes",0,C56*C75*$B160) -> 0 | D94: =IF('1. Plan Inputs'!$G$50="Yes",0,D56*D75*$B160) -> 0 | E94: =IF('1. Plan Inputs'!$G$50="Yes",0,E56*E75*$B160) -> 0 | F94: =IF('1. Plan Inputs'!$G$50="Yes",0,F56*F75*$B160) -> 0 | G94: =IF('1. Plan Inputs'!$G$50="Yes",0,G56*G75*$B160) -> 0 | I94: Rx Brand Non-Formulary (Retail): | J94: =IF('1. Plan Inputs'!$J$50="Yes",0,J56*J75*$J160) -> 0 | K94: =IF('1. Plan Inputs'!$J$50="Yes",0,K56*K75*$J160) -> 0 | L94: =IF('1. Plan Inputs'!$J$50="Yes",0,L56*L75*$J160) -> 0 | M94: =IF('1. Plan Inputs'!$J$50="Yes",0,M56*M75*$J160) -> 0 | N94: =IF('1. Plan Inputs'!$J$50="Yes",0,N56*N75*$J160) -> 0 | O94: =IF('1. Plan Inputs'!$J$50="Yes",0,O56*O75*$J160) -> 0 | Q94: Rx Brand Non-Formulary (Retail): | R94: =IF('1. Plan Inputs'!$M$50="Yes",0,R56*R75*$R160) -> 0 | S94: =IF('1. Plan Inputs'!$M$50="Yes",0,S56*S75*$R160) -> 0 | T94: =IF('1. Plan Inputs'!$M$50="Yes",0,T56*T75*$R160) -> 0 | U94: =IF('1. Plan Inputs'!$M$50="Yes",0,U56*U75*$R160) -> 0 | V94: =IF('1. Plan Inputs'!$M$50="Yes",0,V56*V75*$R160) -> 0 | W94: =IF('1. Plan Inputs'!$M$50="Yes",0,W56*W75*$R160) -> 0 | Y94: Rx Brand Non-Formulary (Retail): | Z94: =IF('1. Plan Inputs'!$P$50="Yes",0,Z56*Z75*$Z160) -> 0 | AA94: =IF('1. Plan Inputs'!$P$50="Yes",0,AA56*AA75*$Z160) -> 0 | AB94: =IF('1. Plan Inputs'!$P$50="Yes",0,AB56*AB75*$Z160) -> 0 | AC94: =IF('1. Plan Inputs'!$P$50="Yes",0,AC56*AC75*$Z160) -> 0 | AD94: =IF('1. Plan Inputs'!$P$50="Yes",0,AD56*AD75*$Z160) -> 0 | AE94: =IF('1. Plan Inputs'!$P$50="Yes",0,AE56*AE75*$Z160) -> 0 | AG94: Rx Brand Non-Formulary (Retail): | AH94: =IF('1. Plan Inputs'!$S$50="Yes",0,AH56*AH75*$AH160) -> 0 | AI94: =IF('1. Plan Inputs'!$S$50="Yes",0,AI56*AI75*$AH160) -> 0 | AJ94: =IF('1. Plan Inputs'!$S$50="Yes",0,AJ56*AJ75*$AH160) -> 0 | AK94: =IF('1. Plan Inputs'!$S$50="Yes",0,AK56*AK75*$AH160) -> 0 | AL94: =IF('1. Plan Inputs'!$S$50="Yes",0,AL56*AL75*$AH160) -> 0 | AM94: =IF('1. Plan Inputs'!$S$50="Yes",0,AM56*AM75*$AH160) -> 0 | AO94: Rx Brand Non-Formulary (Retail): | AP94: =IF('1. Plan Inputs'!$V$50="Yes",0,AP56*AP75*$AP160) -> 0 | AQ94: =IF('1. Plan Inputs'!$V$50="Yes",0,AQ56*AQ75*$AP160) -> 0 | AR94: =IF('1. Plan Inputs'!$V$50="Yes",0,AR56*AR75*$AP160) -> 0 | AS94: =IF('1. Plan Inputs'!$V$50="Yes",0,AS56*AS75*$AP160) -> 0 | AT94: =IF('1. Plan Inputs'!$V$50="Yes",0,AT56*AT75*$AP160) -> 0 | AU94: =IF('1. Plan Inputs'!$V$50="Yes",0,AU56*AU75*$AP160) -> 0
A95: Rx Specialty (Retail): | B95: =IF('1. Plan Inputs'!$G$50="Yes",0,B57*B76*$B161) -> 0 | C95: =IF('1. Plan Inputs'!$G$50="Yes",0,C57*C76*$B161) -> 0 | D95: =IF('1. Plan Inputs'!$G$50="Yes",0,D57*D76*$B161) -> 0 | E95: =IF('1. Plan Inputs'!$G$50="Yes",0,E57*E76*$B161) -> 0 | F95: =IF('1. Plan Inputs'!$G$50="Yes",0,F57*F76*$B161) -> 0 | G95: =IF('1. Plan Inputs'!$G$50="Yes",0,G57*G76*$B161) -> 0 | I95: Rx Specialty (Retail): | J95: =IF('1. Plan Inputs'!$J$50="Yes",0,J57*J76*$J161) -> 0 | K95: =IF('1. Plan Inputs'!$J$50="Yes",0,K57*K76*$J161) -> 0 | L95: =IF('1. Plan Inputs'!$J$50="Yes",0,L57*L76*$J161) -> 0 | M95: =IF('1. Plan Inputs'!$J$50="Yes",0,M57*M76*$J161) -> 0 | N95: =IF('1. Plan Inputs'!$J$50="Yes",0,N57*N76*$J161) -> 0 | O95: =IF('1. Plan Inputs'!$J$50="Yes",0,O57*O76*$J161) -> 0 | Q95: Rx Specialty (Retail): | R95: =IF('1. Plan Inputs'!$M$50="Yes",0,R57*R76*$R161) -> 0 | S95: =IF('1. Plan Inputs'!$M$50="Yes",0,S57*S76*$R161) -> 0 | T95: =IF('1. Plan Inputs'!$M$50="Yes",0,T57*T76*$R161) -> 0 | U95: =IF('1. Plan Inputs'!$M$50="Yes",0,U57*U76*$R161) -> 0 | V95: =IF('1. Plan Inputs'!$M$50="Yes",0,V57*V76*$R161) -> 0 | W95: =IF('1. Plan Inputs'!$M$50="Yes",0,W57*W76*$R161) -> 0 | Y95: Rx Specialty (Retail): | Z95: =IF('1. Plan Inputs'!$P$50="Yes",0,Z57*Z76*$Z161) -> 0 | AA95: =IF('1. Plan Inputs'!$P$50="Yes",0,AA57*AA76*$Z161) -> 0 | AB95: =IF('1. Plan Inputs'!$P$50="Yes",0,AB57*AB76*$Z161) -> 0 | AC95: =IF('1. Plan Inputs'!$P$50="Yes",0,AC57*AC76*$Z161) -> 0 | AD95: =IF('1. Plan Inputs'!$P$50="Yes",0,AD57*AD76*$Z161) -> 0 | AE95: =IF('1. Plan Inputs'!$P$50="Yes",0,AE57*AE76*$Z161) -> 0 | AG95: Rx Specialty (Retail): | AH95: =IF('1. Plan Inputs'!$S$50="Yes",0,AH57*AH76*$AH161) -> 0 | AI95: =IF('1. Plan Inputs'!$S$50="Yes",0,AI57*AI76*$AH161) -> 0 | AJ95: =IF('1. Plan Inputs'!$S$50="Yes",0,AJ57*AJ76*$AH161) -> 0 | AK95: =IF('1. Plan Inputs'!$S$50="Yes",0,AK57*AK76*$AH161) -> 0 | AL95: =IF('1. Plan Inputs'!$S$50="Yes",0,AL57*AL76*$AH161) -> 0 | AM95: =IF('1. Plan Inputs'!$S$50="Yes",0,AM57*AM76*$AH161) -> 0 | AO95: Rx Specialty (Retail): | AP95: =IF('1. Plan Inputs'!$V$50="Yes",0,AP57*AP76*$AP161) -> 0 | AQ95: =IF('1. Plan Inputs'!$V$50="Yes",0,AQ57*AQ76*$AP161) -> 0 | AR95: =IF('1. Plan Inputs'!$V$50="Yes",0,AR57*AR76*$AP161) -> 0 | AS95: =IF('1. Plan Inputs'!$V$50="Yes",0,AS57*AS76*$AP161) -> 0 | AT95: =IF('1. Plan Inputs'!$V$50="Yes",0,AT57*AT76*$AP161) -> 0 | AU95: =IF('1. Plan Inputs'!$V$50="Yes",0,AU57*AU76*$AP161) -> 0
A96: Rx Generic (Mail): | B96: =IF('1. Plan Inputs'!$G$50="Yes",0,B58*B77*$B162) -> 0 | C96: =IF('1. Plan Inputs'!$G$50="Yes",0,C58*C77*$B162) -> 0 | D96: =IF('1. Plan Inputs'!$G$50="Yes",0,D58*D77*$B162) -> 0 | E96: =IF('1. Plan Inputs'!$G$50="Yes",0,E58*E77*$B162) -> 0 | F96: =IF('1. Plan Inputs'!$G$50="Yes",0,F58*F77*$B162) -> 0 | G96: =IF('1. Plan Inputs'!$G$50="Yes",0,G58*G77*$B162) -> 0 | I96: Rx Generic (Mail): | J96: =IF('1. Plan Inputs'!$J$50="Yes",0,J58*J77*$J162) -> 0 | K96: =IF('1. Plan Inputs'!$J$50="Yes",0,K58*K77*$J162) -> 0 | L96: =IF('1. Plan Inputs'!$J$50="Yes",0,L58*L77*$J162) -> 0 | M96: =IF('1. Plan Inputs'!$J$50="Yes",0,M58*M77*$J162) -> 0 | N96: =IF('1. Plan Inputs'!$J$50="Yes",0,N58*N77*$J162) -> 0 | O96: =IF('1. Plan Inputs'!$J$50="Yes",0,O58*O77*$J162) -> 0 | Q96: Rx Generic (Mail): | R96: =IF('1. Plan Inputs'!$M$50="Yes",0,R58*R77*$R162) -> 0 | S96: =IF('1. Plan Inputs'!$M$50="Yes",0,S58*S77*$R162) -> 0 | T96: =IF('1. Plan Inputs'!$M$50="Yes",0,T58*T77*$R162) -> 0 | U96: =IF('1. Plan Inputs'!$M$50="Yes",0,U58*U77*$R162) -> 0 | V96: =IF('1. Plan Inputs'!$M$50="Yes",0,V58*V77*$R162) -> 0 | W96: =IF('1. Plan Inputs'!$M$50="Yes",0,W58*W77*$R162) -> 0 | Y96: Rx Generic (Mail): | Z96: =IF('1. Plan Inputs'!$P$50="Yes",0,Z58*Z77*$Z162) -> 0 | AA96: =IF('1. Plan Inputs'!$P$50="Yes",0,AA58*AA77*$Z162) -> 0 | AB96: =IF('1. Plan Inputs'!$P$50="Yes",0,AB58*AB77*$Z162) -> 0 | AC96: =IF('1. Plan Inputs'!$P$50="Yes",0,AC58*AC77*$Z162) -> 0 | AD96: =IF('1. Plan Inputs'!$P$50="Yes",0,AD58*AD77*$Z162) -> 0 | AE96: =IF('1. Plan Inputs'!$P$50="Yes",0,AE58*AE77*$Z162) -> 0 | AG96: Rx Generic (Mail): | AH96: =IF('1. Plan Inputs'!$S$50="Yes",0,AH58*AH77*$AH162) -> 0 | AI96: =IF('1. Plan Inputs'!$S$50="Yes",0,AI58*AI77*$AH162) -> 0 | AJ96: =IF('1. Plan Inputs'!$S$50="Yes",0,AJ58*AJ77*$AH162) -> 0 | AK96: =IF('1. Plan Inputs'!$S$50="Yes",0,AK58*AK77*$AH162) -> 0 | AL96: =IF('1. Plan Inputs'!$S$50="Yes",0,AL58*AL77*$AH162) -> 0 | AM96: =IF('1. Plan Inputs'!$S$50="Yes",0,AM58*AM77*$AH162) -> 0 | AO96: Rx Generic (Mail): | AP96: =IF('1. Plan Inputs'!$V$50="Yes",0,AP58*AP77*$AP162) -> 0 | AQ96: =IF('1. Plan Inputs'!$V$50="Yes",0,AQ58*AQ77*$AP162) -> 0 | AR96: =IF('1. Plan Inputs'!$V$50="Yes",0,AR58*AR77*$AP162) -> 0 | AS96: =IF('1. Plan Inputs'!$V$50="Yes",0,AS58*AS77*$AP162) -> 0 | AT96: =IF('1. Plan Inputs'!$V$50="Yes",0,AT58*AT77*$AP162) -> 0 | AU96: =IF('1. Plan Inputs'!$V$50="Yes",0,AU58*AU77*$AP162) -> 0
A97: Rx Brand Formulary (Mail): | B97: =IF('1. Plan Inputs'!$G$50="Yes",0,B59*B78*$B163) -> 0 | C97: =IF('1. Plan Inputs'!$G$50="Yes",0,C59*C78*$B163) -> 0 | D97: =IF('1. Plan Inputs'!$G$50="Yes",0,D59*D78*$B163) -> 0 | E97: =IF('1. Plan Inputs'!$G$50="Yes",0,E59*E78*$B163) -> 0 | F97: =IF('1. Plan Inputs'!$G$50="Yes",0,F59*F78*$B163) -> 0 | G97: =IF('1. Plan Inputs'!$G$50="Yes",0,G59*G78*$B163) -> 0 | I97: Rx Brand Formulary (Mail): | J97: =IF('1. Plan Inputs'!$J$50="Yes",0,J59*J78*$J163) -> 0 | K97: =IF('1. Plan Inputs'!$J$50="Yes",0,K59*K78*$J163) -> 0 | L97: =IF('1. Plan Inputs'!$J$50="Yes",0,L59*L78*$J163) -> 0 | M97: =IF('1. Plan Inputs'!$J$50="Yes",0,M59*M78*$J163) -> 0 | N97: =IF('1. Plan Inputs'!$J$50="Yes",0,N59*N78*$J163) -> 0 | O97: =IF('1. Plan Inputs'!$J$50="Yes",0,O59*O78*$J163) -> 0 | Q97: Rx Brand Formulary (Mail): | R97: =IF('1. Plan Inputs'!$M$50="Yes",0,R59*R78*$R163) -> 0 | S97: =IF('1. Plan Inputs'!$M$50="Yes",0,S59*S78*$R163) -> 0 | T97: =IF('1. Plan Inputs'!$M$50="Yes",0,T59*T78*$R163) -> 0 | U97: =IF('1. Plan Inputs'!$M$50="Yes",0,U59*U78*$R163) -> 0 | V97: =IF('1. Plan Inputs'!$M$50="Yes",0,V59*V78*$R163) -> 0 | W97: =IF('1. Plan Inputs'!$M$50="Yes",0,W59*W78*$R163) -> 0 | Y97: Rx Brand Formulary (Mail): | Z97: =IF('1. Plan Inputs'!$P$50="Yes",0,Z59*Z78*$Z163) -> 0 | AA97: =IF('1. Plan Inputs'!$P$50="Yes",0,AA59*AA78*$Z163) -> 0 | AB97: =IF('1. Plan Inputs'!$P$50="Yes",0,AB59*AB78*$Z163) -> 0 | AC97: =IF('1. Plan Inputs'!$P$50="Yes",0,AC59*AC78*$Z163) -> 0 | AD97: =IF('1. Plan Inputs'!$P$50="Yes",0,AD59*AD78*$Z163) -> 0 | AE97: =IF('1. Plan Inputs'!$P$50="Yes",0,AE59*AE78*$Z163) -> 0 | AG97: Rx Brand Formulary (Mail): | AH97: =IF('1. Plan Inputs'!$S$50="Yes",0,AH59*AH78*$AH163) -> 0 | AI97: =IF('1. Plan Inputs'!$S$50="Yes",0,AI59*AI78*$AH163) -> 0 | AJ97: =IF('1. Plan Inputs'!$S$50="Yes",0,AJ59*AJ78*$AH163) -> 0 | AK97: =IF('1. Plan Inputs'!$S$50="Yes",0,AK59*AK78*$AH163) -> 0 | AL97: =IF('1. Plan Inputs'!$S$50="Yes",0,AL59*AL78*$AH163) -> 0 | AM97: =IF('1. Plan Inputs'!$S$50="Yes",0,AM59*AM78*$AH163) -> 0 | AO97: Rx Brand Formulary (Mail): | AP97: =IF('1. Plan Inputs'!$V$50="Yes",0,AP59*AP78*$AP163) -> 0 | AQ97: =IF('1. Plan Inputs'!$V$50="Yes",0,AQ59*AQ78*$AP163) -> 0 | AR97: =IF('1. Plan Inputs'!$V$50="Yes",0,AR59*AR78*$AP163) -> 0 | AS97: =IF('1. Plan Inputs'!$V$50="Yes",0,AS59*AS78*$AP163) -> 0 | AT97: =IF('1. Plan Inputs'!$V$50="Yes",0,AT59*AT78*$AP163) -> 0 | AU97: =IF('1. Plan Inputs'!$V$50="Yes",0,AU59*AU78*$AP163) -> 0
A98: Rx Brand Non-Formulary (Mail): | B98: =IF('1. Plan Inputs'!$G$50="Yes",0,B60*B79*$B164) -> 0 | C98: =IF('1. Plan Inputs'!$G$50="Yes",0,C60*C79*$B164) -> 0 | D98: =IF('1. Plan Inputs'!$G$50="Yes",0,D60*D79*$B164) -> 0 | E98: =IF('1. Plan Inputs'!$G$50="Yes",0,E60*E79*$B164) -> 0 | F98: =IF('1. Plan Inputs'!$G$50="Yes",0,F60*F79*$B164) -> 0 | G98: =IF('1. Plan Inputs'!$G$50="Yes",0,G60*G79*$B164) -> 0 | I98: Rx Brand Non-Formulary (Mail): | J98: =IF('1. Plan Inputs'!$J$50="Yes",0,J60*J79*$J164) -> 0 | K98: =IF('1. Plan Inputs'!$J$50="Yes",0,K60*K79*$J164) -> 0 | L98: =IF('1. Plan Inputs'!$J$50="Yes",0,L60*L79*$J164) -> 0 | M98: =IF('1. Plan Inputs'!$J$50="Yes",0,M60*M79*$J164) -> 0 | N98: =IF('1. Plan Inputs'!$J$50="Yes",0,N60*N79*$J164) -> 0 | O98: =IF('1. Plan Inputs'!$J$50="Yes",0,O60*O79*$J164) -> 0 | Q98: Rx Brand Non-Formulary (Mail): | R98: =IF('1. Plan Inputs'!$M$50="Yes",0,R60*R79*$R164) -> 0 | S98: =IF('1. Plan Inputs'!$M$50="Yes",0,S60*S79*$R164) -> 0 | T98: =IF('1. Plan Inputs'!$M$50="Yes",0,T60*T79*$R164) -> 0 | U98: =IF('1. Plan Inputs'!$M$50="Yes",0,U60*U79*$R164) -> 0 | V98: =IF('1. Plan Inputs'!$M$50="Yes",0,V60*V79*$R164) -> 0 | W98: =IF('1. Plan Inputs'!$M$50="Yes",0,W60*W79*$R164) -> 0 | Y98: Rx Brand Non-Formulary (Mail): | Z98: =IF('1. Plan Inputs'!$P$50="Yes",0,Z60*Z79*$Z164) -> 0 | AA98: =IF('1. Plan Inputs'!$P$50="Yes",0,AA60*AA79*$Z164) -> 0 | AB98: =IF('1. Plan Inputs'!$P$50="Yes",0,AB60*AB79*$Z164) -> 0 | AC98: =IF('1. Plan Inputs'!$P$50="Yes",0,AC60*AC79*$Z164) -> 0 | AD98: =IF('1. Plan Inputs'!$P$50="Yes",0,AD60*AD79*$Z164) -> 0 | AE98: =IF('1. Plan Inputs'!$P$50="Yes",0,AE60*AE79*$Z164) -> 0 | AG98: Rx Brand Non-Formulary (Mail): | AH98: =IF('1. Plan Inputs'!$S$50="Yes",0,AH60*AH79*$AH164) -> 0 | AI98: =IF('1. Plan Inputs'!$S$50="Yes",0,AI60*AI79*$AH164) -> 0 | AJ98: =IF('1. Plan Inputs'!$S$50="Yes",0,AJ60*AJ79*$AH164) -> 0 | AK98: =IF('1. Plan Inputs'!$S$50="Yes",0,AK60*AK79*$AH164) -> 0 | AL98: =IF('1. Plan Inputs'!$S$50="Yes",0,AL60*AL79*$AH164) -> 0 | AM98: =IF('1. Plan Inputs'!$S$50="Yes",0,AM60*AM79*$AH164) -> 0 | AO98: Rx Brand Non-Formulary (Mail): | AP98: =IF('1. Plan Inputs'!$V$50="Yes",0,AP60*AP79*$AP164) -> 0 | AQ98: =IF('1. Plan Inputs'!$V$50="Yes",0,AQ60*AQ79*$AP164) -> 0 | AR98: =IF('1. Plan Inputs'!$V$50="Yes",0,AR60*AR79*$AP164) -> 0 | AS98: =IF('1. Plan Inputs'!$V$50="Yes",0,AS60*AS79*$AP164) -> 0 | AT98: =IF('1. Plan Inputs'!$V$50="Yes",0,AT60*AT79*$AP164) -> 0 | AU98: =IF('1. Plan Inputs'!$V$50="Yes",0,AU60*AU79*$AP164) -> 0
A99: Rx Specialty (Mail): | B99: =IF('1. Plan Inputs'!$G$50="Yes",0,B61*B80*$B165) -> 0 | C99: =IF('1. Plan Inputs'!$G$50="Yes",0,C61*C80*$B165) -> 0 | D99: =IF('1. Plan Inputs'!$G$50="Yes",0,D61*D80*$B165) -> 0 | E99: =IF('1. Plan Inputs'!$G$50="Yes",0,E61*E80*$B165) -> 0 | F99: =IF('1. Plan Inputs'!$G$50="Yes",0,F61*F80*$B165) -> 0 | G99: =IF('1. Plan Inputs'!$G$50="Yes",0,G61*G80*$B165) -> 0 | I99: Rx Specialty (Mail): | J99: =IF('1. Plan Inputs'!$J$50="Yes",0,J61*J80*$J165) -> 0 | K99: =IF('1. Plan Inputs'!$J$50="Yes",0,K61*K80*$J165) -> 0 | L99: =IF('1. Plan Inputs'!$J$50="Yes",0,L61*L80*$J165) -> 0 | M99: =IF('1. Plan Inputs'!$J$50="Yes",0,M61*M80*$J165) -> 0 | N99: =IF('1. Plan Inputs'!$J$50="Yes",0,N61*N80*$J165) -> 0 | O99: =IF('1. Plan Inputs'!$J$50="Yes",0,O61*O80*$J165) -> 0 | Q99: Rx Specialty (Mail): | R99: =IF('1. Plan Inputs'!$M$50="Yes",0,R61*R80*$R165) -> 0 | S99: =IF('1. Plan Inputs'!$M$50="Yes",0,S61*S80*$R165) -> 0 | T99: =IF('1. Plan Inputs'!$M$50="Yes",0,T61*T80*$R165) -> 0 | U99: =IF('1. Plan Inputs'!$M$50="Yes",0,U61*U80*$R165) -> 0 | V99: =IF('1. Plan Inputs'!$M$50="Yes",0,V61*V80*$R165) -> 0 | W99: =IF('1. Plan Inputs'!$M$50="Yes",0,W61*W80*$R165) -> 0 | Y99: Rx Specialty (Mail): | Z99: =IF('1. Plan Inputs'!$P$50="Yes",0,Z61*Z80*$Z165) -> 0 | AA99: =IF('1. Plan Inputs'!$P$50="Yes",0,AA61*AA80*$Z165) -> 0 | AB99: =IF('1. Plan Inputs'!$P$50="Yes",0,AB61*AB80*$Z165) -> 0 | AC99: =IF('1. Plan Inputs'!$P$50="Yes",0,AC61*AC80*$Z165) -> 0 | AD99: =IF('1. Plan Inputs'!$P$50="Yes",0,AD61*AD80*$Z165) -> 0 | AE99: =IF('1. Plan Inputs'!$P$50="Yes",0,AE61*AE80*$Z165) -> 0 | AG99: Rx Specialty (Mail): | AH99: =IF('1. Plan Inputs'!$S$50="Yes",0,AH61*AH80*$AH165) -> 0 | AI99: =IF('1. Plan Inputs'!$S$50="Yes",0,AI61*AI80*$AH165) -> 0 | AJ99: =IF('1. Plan Inputs'!$S$50="Yes",0,AJ61*AJ80*$AH165) -> 0 | AK99: =IF('1. Plan Inputs'!$S$50="Yes",0,AK61*AK80*$AH165) -> 0 | AL99: =IF('1. Plan Inputs'!$S$50="Yes",0,AL61*AL80*$AH165) -> 0 | AM99: =IF('1. Plan Inputs'!$S$50="Yes",0,AM61*AM80*$AH165) -> 0 | AO99: Rx Specialty (Mail): | AP99: =IF('1. Plan Inputs'!$V$50="Yes",0,AP61*AP80*$AP165) -> 0 | AQ99: =IF('1. Plan Inputs'!$V$50="Yes",0,AQ61*AQ80*$AP165) -> 0 | AR99: =IF('1. Plan Inputs'!$V$50="Yes",0,AR61*AR80*$AP165) -> 0 | AS99: =IF('1. Plan Inputs'!$V$50="Yes",0,AS61*AS80*$AP165) -> 0 | AT99: =IF('1. Plan Inputs'!$V$50="Yes",0,AT61*AT80*$AP165) -> 0 | AU99: =IF('1. Plan Inputs'!$V$50="Yes",0,AU61*AU80*$AP165) -> 0
A101: Applies Towards Deductible and Coinsurance: | I101: Applies Towards Deductible and Coinsurance: | Q101: Applies Towards Deductible and Coinsurance: | Y101: Applies Towards Deductible and Coinsurance: | AG101: Applies Towards Deductible and Coinsurance: | AO101: Applies Towards Deductible and Coinsurance:
A102: Preventive Visit: | B102: =MAX(IF('1. Plan Inputs'!$F41="Yes",Worksheet!B64*Worksheet!B45,0)-B83,0) -> 0 | C102: =MAX(IF('1. Plan Inputs'!$F41="Yes",Worksheet!C64*Worksheet!C45,0)-C83,0) -> 0 | D102: =MAX(IF('1. Plan Inputs'!$F41="Yes",Worksheet!D64*Worksheet!D45,0)-D83,0) -> 0 | E102: =MAX(IF('1. Plan Inputs'!$F41="Yes",Worksheet!E64*Worksheet!E45,0)-E83,0) -> 0 | F102: =MAX(IF('1. Plan Inputs'!$F41="Yes",Worksheet!F64*Worksheet!F45,0)-F83,0) -> 0 | G102: =MAX(IF('1. Plan Inputs'!$F41="Yes",Worksheet!G64*Worksheet!G45,0)-G83,0) -> 0 | I102: Preventive Visit: | J102: =MAX(IF('1. Plan Inputs'!$I41="Yes",Worksheet!J64*Worksheet!J45,0)-J83,0) -> 0 | K102: =MAX(IF('1. Plan Inputs'!$I41="Yes",Worksheet!K64*Worksheet!K45,0)-K83,0) -> 0 | L102: =MAX(IF('1. Plan Inputs'!$I41="Yes",Worksheet!L64*Worksheet!L45,0)-L83,0) -> 0 | M102: =MAX(IF('1. Plan Inputs'!$I41="Yes",Worksheet!M64*Worksheet!M45,0)-M83,0) -> 0 | N102: =MAX(IF('1. Plan Inputs'!$I41="Yes",Worksheet!N64*Worksheet!N45,0)-N83,0) -> 0 | O102: =MAX(IF('1. Plan Inputs'!$I41="Yes",Worksheet!O64*Worksheet!O45,0)-O83,0) -> 0 | Q102: Preventive Visit: | R102: =MAX(IF('1. Plan Inputs'!$L41="Yes",Worksheet!R64*Worksheet!R45,0)-R83,0) -> 0 | S102: =MAX(IF('1. Plan Inputs'!$L41="Yes",Worksheet!S64*Worksheet!S45,0)-S83,0) -> 0 | T102: =MAX(IF('1. Plan Inputs'!$L41="Yes",Worksheet!T64*Worksheet!T45,0)-T83,0) -> 0 | U102: =MAX(IF('1. Plan Inputs'!$L41="Yes",Worksheet!U64*Worksheet!U45,0)-U83,0) -> 0 | V102: =MAX(IF('1. Plan Inputs'!$L41="Yes",Worksheet!V64*Worksheet!V45,0)-V83,0) -> 0 | W102: =MAX(IF('1. Plan Inputs'!$L41="Yes",Worksheet!W64*Worksheet!W45,0)-W83,0) -> 0 | Y102: Preventive Visit: | Z102: =MAX(IF('1. Plan Inputs'!$O41="Yes",Worksheet!Z64*Worksheet!Z45,0)-Z83,0) -> 0 | AA102: =MAX(IF('1. Plan Inputs'!$O41="Yes",Worksheet!AA64*Worksheet!AA45,0)-AA83,0) -> 0 | AB102: =MAX(IF('1. Plan Inputs'!$O41="Yes",Worksheet!AB64*Worksheet!AB45,0)-AB83,0) -> 0 | AC102: =MAX(IF('1. Plan Inputs'!$O41="Yes",Worksheet!AC64*Worksheet!AC45,0)-AC83,0) -> 0 | AD102: =MAX(IF('1. Plan Inputs'!$O41="Yes",Worksheet!AD64*Worksheet!AD45,0)-AD83,0) -> 0 | AE102: =MAX(IF('1. Plan Inputs'!$O41="Yes",Worksheet!AE64*Worksheet!AE45,0)-AE83,0) -> 0 | AG102: Preventive Visit: | AH102: =MAX(IF('1. Plan Inputs'!$R41="Yes",Worksheet!AH64*Worksheet!AH45,0)-AH83,0) -> 0 | AI102: =MAX(IF('1. Plan Inputs'!$R41="Yes",Worksheet!AI64*Worksheet!AI45,0)-AI83,0) -> 0 | AJ102: =MAX(IF('1. Plan Inputs'!$R41="Yes",Worksheet!AJ64*Worksheet!AJ45,0)-AJ83,0) -> 0 | AK102: =MAX(IF('1. Plan Inputs'!$R41="Yes",Worksheet!AK64*Worksheet!AK45,0)-AK83,0) -> 0 | AL102: =MAX(IF('1. Plan Inputs'!$R41="Yes",Worksheet!AL64*Worksheet!AL45,0)-AL83,0) -> 0 | AM102: =MAX(IF('1. Plan Inputs'!$R41="Yes",Worksheet!AM64*Worksheet!AM45,0)-AM83,0) -> 0 | AO102: Preventive Visit: | AP102: =MAX(IF('1. Plan Inputs'!$U41="Yes",Worksheet!AP64*Worksheet!AP45,0)-AP83,0) -> 0 | AQ102: =MAX(IF('1. Plan Inputs'!$U41="Yes",Worksheet!AQ64*Worksheet!AQ45,0)-AQ83,0) -> 0 | AR102: =MAX(IF('1. Plan Inputs'!$U41="Yes",Worksheet!AR64*Worksheet!AR45,0)-AR83,0) -> 0 | AS102: =MAX(IF('1. Plan Inputs'!$U41="Yes",Worksheet!AS64*Worksheet!AS45,0)-AS83,0) -> 0 | AT102: =MAX(IF('1. Plan Inputs'!$U41="Yes",Worksheet!AT64*Worksheet!AT45,0)-AT83,0) -> 0 | AU102: =MAX(IF('1. Plan Inputs'!$U41="Yes",Worksheet!AU64*Worksheet!AU45,0)-AU83,0) -> 0
A103: Hospitalization: | B103: =MAX(IF('1. Plan Inputs'!$F34="Yes",Worksheet!B65*Worksheet!B46,0)-B84,0) -> 0 | C103: =MAX(IF('1. Plan Inputs'!$F34="Yes",Worksheet!C65*Worksheet!C46,0)-C84,0) -> 0 | D103: =MAX(IF('1. Plan Inputs'!$F34="Yes",Worksheet!D65*Worksheet!D46,0)-D84,0) -> 0 | E103: =MAX(IF('1. Plan Inputs'!$F34="Yes",Worksheet!E65*Worksheet!E46,0)-E84,0) -> 0 | F103: =MAX(IF('1. Plan Inputs'!$F34="Yes",Worksheet!F65*Worksheet!F46,0)-F84,0) -> 0 | G103: =MAX(IF('1. Plan Inputs'!$F34="Yes",Worksheet!G65*Worksheet!G46,0)-G84,0) -> 0 | I103: Hospitalization: | J103: =MAX(IF('1. Plan Inputs'!$I34="Yes",Worksheet!J65*Worksheet!J46,0)-J84,0) -> 0 | K103: =MAX(IF('1. Plan Inputs'!$I34="Yes",Worksheet!K65*Worksheet!K46,0)-K84,0) -> 0 | L103: =MAX(IF('1. Plan Inputs'!$I34="Yes",Worksheet!L65*Worksheet!L46,0)-L84,0) -> 0 | M103: =MAX(IF('1. Plan Inputs'!$I34="Yes",Worksheet!M65*Worksheet!M46,0)-M84,0) -> 0 | N103: =MAX(IF('1. Plan Inputs'!$I34="Yes",Worksheet!N65*Worksheet!N46,0)-N84,0) -> 0 | O103: =MAX(IF('1. Plan Inputs'!$I34="Yes",Worksheet!O65*Worksheet!O46,0)-O84,0) -> 0 | Q103: Hospitalization: | R103: =MAX(IF('1. Plan Inputs'!$L34="Yes",Worksheet!R65*Worksheet!R46,0)-R84,0) -> 0 | S103: =MAX(IF('1. Plan Inputs'!$L34="Yes",Worksheet!S65*Worksheet!S46,0)-S84,0) -> 0 | T103: =MAX(IF('1. Plan Inputs'!$L34="Yes",Worksheet!T65*Worksheet!T46,0)-T84,0) -> 0 | U103: =MAX(IF('1. Plan Inputs'!$L34="Yes",Worksheet!U65*Worksheet!U46,0)-U84,0) -> 0 | V103: =MAX(IF('1. Plan Inputs'!$L34="Yes",Worksheet!V65*Worksheet!V46,0)-V84,0) -> 0 | W103: =MAX(IF('1. Plan Inputs'!$L34="Yes",Worksheet!W65*Worksheet!W46,0)-W84,0) -> 0 | Y103: Hospitalization: | Z103: =MAX(IF('1. Plan Inputs'!$O34="Yes",Worksheet!Z65*Worksheet!Z46,0)-Z84,0) -> 0 | AA103: =MAX(IF('1. Plan Inputs'!$O34="Yes",Worksheet!AA65*Worksheet!AA46,0)-AA84,0) -> 0 | AB103: =MAX(IF('1. Plan Inputs'!$O34="Yes",Worksheet!AB65*Worksheet!AB46,0)-AB84,0) -> 0 | AC103: =MAX(IF('1. Plan Inputs'!$O34="Yes",Worksheet!AC65*Worksheet!AC46,0)-AC84,0) -> 0 | AD103: =MAX(IF('1. Plan Inputs'!$O34="Yes",Worksheet!AD65*Worksheet!AD46,0)-AD84,0) -> 0 | AE103: =MAX(IF('1. Plan Inputs'!$O34="Yes",Worksheet!AE65*Worksheet!AE46,0)-AE84,0) -> 0 | AG103: Hospitalization: | AH103: =MAX(IF('1. Plan Inputs'!$R34="Yes",Worksheet!AH65*Worksheet!AH46,0)-AH84,0) -> 0 | AI103: =MAX(IF('1. Plan Inputs'!$R34="Yes",Worksheet!AI65*Worksheet!AI46,0)-AI84,0) -> 0 | AJ103: =MAX(IF('1. Plan Inputs'!$R34="Yes",Worksheet!AJ65*Worksheet!AJ46,0)-AJ84,0) -> 0 | AK103: =MAX(IF('1. Plan Inputs'!$R34="Yes",Worksheet!AK65*Worksheet!AK46,0)-AK84,0) -> 0 | AL103: =MAX(IF('1. Plan Inputs'!$R34="Yes",Worksheet!AL65*Worksheet!AL46,0)-AL84,0) -> 0 | AM103: =MAX(IF('1. Plan Inputs'!$R34="Yes",Worksheet!AM65*Worksheet!AM46,0)-AM84,0) -> 0 | AO103: Hospitalization: | AP103: =MAX(IF('1. Plan Inputs'!$U34="Yes",Worksheet!AP65*Worksheet!AP46,0)-AP84,0) -> 0 | AQ103: =MAX(IF('1. Plan Inputs'!$U34="Yes",Worksheet!AQ65*Worksheet!AQ46,0)-AQ84,0) -> 0 | AR103: =MAX(IF('1. Plan Inputs'!$U34="Yes",Worksheet!AR65*Worksheet!AR46,0)-AR84,0) -> 0 | AS103: =MAX(IF('1. Plan Inputs'!$U34="Yes",Worksheet!AS65*Worksheet!AS46,0)-AS84,0) -> 0 | AT103: =MAX(IF('1. Plan Inputs'!$U34="Yes",Worksheet!AT65*Worksheet!AT46,0)-AT84,0) -> 0 | AU103: =MAX(IF('1. Plan Inputs'!$U34="Yes",Worksheet!AU65*Worksheet!AU46,0)-AU84,0) -> 0
A104: Outpatient Service: | B104: =MAX(IF('1. Plan Inputs'!$F35="Yes",Worksheet!B66*Worksheet!B47,0)-B85,0) -> 0 | C104: =MAX(IF('1. Plan Inputs'!$F35="Yes",Worksheet!C66*Worksheet!C47,0)-C85,0) -> 0 | D104: =MAX(IF('1. Plan Inputs'!$F35="Yes",Worksheet!D66*Worksheet!D47,0)-D85,0) -> 0 | E104: =MAX(IF('1. Plan Inputs'!$F35="Yes",Worksheet!E66*Worksheet!E47,0)-E85,0) -> 0 | F104: =MAX(IF('1. Plan Inputs'!$F35="Yes",Worksheet!F66*Worksheet!F47,0)-F85,0) -> 0 | G104: =MAX(IF('1. Plan Inputs'!$F35="Yes",Worksheet!G66*Worksheet!G47,0)-G85,0) -> 0 | I104: Outpatient Service: | J104: =MAX(IF('1. Plan Inputs'!$I35="Yes",Worksheet!J66*Worksheet!J47,0)-J85,0) -> 0 | K104: =MAX(IF('1. Plan Inputs'!$I35="Yes",Worksheet!K66*Worksheet!K47,0)-K85,0) -> 0 | L104: =MAX(IF('1. Plan Inputs'!$I35="Yes",Worksheet!L66*Worksheet!L47,0)-L85,0) -> 0 | M104: =MAX(IF('1. Plan Inputs'!$I35="Yes",Worksheet!M66*Worksheet!M47,0)-M85,0) -> 0 | N104: =MAX(IF('1. Plan Inputs'!$I35="Yes",Worksheet!N66*Worksheet!N47,0)-N85,0) -> 0 | O104: =MAX(IF('1. Plan Inputs'!$I35="Yes",Worksheet!O66*Worksheet!O47,0)-O85,0) -> 0 | Q104: Outpatient Service: | R104: =MAX(IF('1. Plan Inputs'!$L35="Yes",Worksheet!R66*Worksheet!R47,0)-R85,0) -> 0 | S104: =MAX(IF('1. Plan Inputs'!$L35="Yes",Worksheet!S66*Worksheet!S47,0)-S85,0) -> 0 | T104: =MAX(IF('1. Plan Inputs'!$L35="Yes",Worksheet!T66*Worksheet!T47,0)-T85,0) -> 0 | U104: =MAX(IF('1. Plan Inputs'!$L35="Yes",Worksheet!U66*Worksheet!U47,0)-U85,0) -> 0 | V104: =MAX(IF('1. Plan Inputs'!$L35="Yes",Worksheet!V66*Worksheet!V47,0)-V85,0) -> 0 | W104: =MAX(IF('1. Plan Inputs'!$L35="Yes",Worksheet!W66*Worksheet!W47,0)-W85,0) -> 0 | Y104: Outpatient Service: | Z104: =MAX(IF('1. Plan Inputs'!$O35="Yes",Worksheet!Z66*Worksheet!Z47,0)-Z85,0) -> 0 | AA104: =MAX(IF('1. Plan Inputs'!$O35="Yes",Worksheet!AA66*Worksheet!AA47,0)-AA85,0) -> 0 | AB104: =MAX(IF('1. Plan Inputs'!$O35="Yes",Worksheet!AB66*Worksheet!AB47,0)-AB85,0) -> 0 | AC104: =MAX(IF('1. Plan Inputs'!$O35="Yes",Worksheet!AC66*Worksheet!AC47,0)-AC85,0) -> 0 | AD104: =MAX(IF('1. Plan Inputs'!$O35="Yes",Worksheet!AD66*Worksheet!AD47,0)-AD85,0) -> 0 | AE104: =MAX(IF('1. Plan Inputs'!$O35="Yes",Worksheet!AE66*Worksheet!AE47,0)-AE85,0) -> 0 | AG104: Outpatient Service: | AH104: =MAX(IF('1. Plan Inputs'!$R35="Yes",Worksheet!AH66*Worksheet!AH47,0)-AH85,0) -> 0 | AI104: =MAX(IF('1. Plan Inputs'!$R35="Yes",Worksheet!AI66*Worksheet!AI47,0)-AI85,0) -> 0 | AJ104: =MAX(IF('1. Plan Inputs'!$R35="Yes",Worksheet!AJ66*Worksheet!AJ47,0)-AJ85,0) -> 0 | AK104: =MAX(IF('1. Plan Inputs'!$R35="Yes",Worksheet!AK66*Worksheet!AK47,0)-AK85,0) -> 0 | AL104: =MAX(IF('1. Plan Inputs'!$R35="Yes",Worksheet!AL66*Worksheet!AL47,0)-AL85,0) -> 0 | AM104: =MAX(IF('1. Plan Inputs'!$R35="Yes",Worksheet!AM66*Worksheet!AM47,0)-AM85,0) -> 0 | AO104: Outpatient Service: | AP104: =MAX(IF('1. Plan Inputs'!$U35="Yes",Worksheet!AP66*Worksheet!AP47,0)-AP85,0) -> 0 | AQ104: =MAX(IF('1. Plan Inputs'!$U35="Yes",Worksheet!AQ66*Worksheet!AQ47,0)-AQ85,0) -> 0 | AR104: =MAX(IF('1. Plan Inputs'!$U35="Yes",Worksheet!AR66*Worksheet!AR47,0)-AR85,0) -> 0 | AS104: =MAX(IF('1. Plan Inputs'!$U35="Yes",Worksheet!AS66*Worksheet!AS47,0)-AS85,0) -> 0 | AT104: =MAX(IF('1. Plan Inputs'!$U35="Yes",Worksheet!AT66*Worksheet!AT47,0)-AT85,0) -> 0 | AU104: =MAX(IF('1. Plan Inputs'!$U35="Yes",Worksheet!AU66*Worksheet!AU47,0)-AU85,0) -> 0
A105: Lab/X-Ray/Radiology Service: | B105: =MAX(IF('1. Plan Inputs'!$F36="Yes",Worksheet!B67*Worksheet!B48,0)-B86,0) -> 0 | C105: =MAX(IF('1. Plan Inputs'!$F36="Yes",Worksheet!C67*Worksheet!C48,0)-C86,0) -> 0 | D105: =MAX(IF('1. Plan Inputs'!$F36="Yes",Worksheet!D67*Worksheet!D48,0)-D86,0) -> 0 | E105: =MAX(IF('1. Plan Inputs'!$F36="Yes",Worksheet!E67*Worksheet!E48,0)-E86,0) -> 0 | F105: =MAX(IF('1. Plan Inputs'!$F36="Yes",Worksheet!F67*Worksheet!F48,0)-F86,0) -> 0 | G105: =MAX(IF('1. Plan Inputs'!$F36="Yes",Worksheet!G67*Worksheet!G48,0)-G86,0) -> 0 | I105: Lab/X-Ray/Radiology Service: | J105: =MAX(IF('1. Plan Inputs'!$I36="Yes",Worksheet!J67*Worksheet!J48,0)-J86,0) -> 0 | K105: =MAX(IF('1. Plan Inputs'!$I36="Yes",Worksheet!K67*Worksheet!K48,0)-K86,0) -> 0 | L105: =MAX(IF('1. Plan Inputs'!$I36="Yes",Worksheet!L67*Worksheet!L48,0)-L86,0) -> 0 | M105: =MAX(IF('1. Plan Inputs'!$I36="Yes",Worksheet!M67*Worksheet!M48,0)-M86,0) -> 0 | N105: =MAX(IF('1. Plan Inputs'!$I36="Yes",Worksheet!N67*Worksheet!N48,0)-N86,0) -> 0 | O105: =MAX(IF('1. Plan Inputs'!$I36="Yes",Worksheet!O67*Worksheet!O48,0)-O86,0) -> 0 | Q105: Lab/X-Ray/Radiology Service: | R105: =MAX(IF('1. Plan Inputs'!$L36="Yes",Worksheet!R67*Worksheet!R48,0)-R86,0) -> 0 | S105: =MAX(IF('1. Plan Inputs'!$L36="Yes",Worksheet!S67*Worksheet!S48,0)-S86,0) -> 0 | T105: =MAX(IF('1. Plan Inputs'!$L36="Yes",Worksheet!T67*Worksheet!T48,0)-T86,0) -> 0 | U105: =MAX(IF('1. Plan Inputs'!$L36="Yes",Worksheet!U67*Worksheet!U48,0)-U86,0) -> 0 | V105: =MAX(IF('1. Plan Inputs'!$L36="Yes",Worksheet!V67*Worksheet!V48,0)-V86,0) -> 0 | W105: =MAX(IF('1. Plan Inputs'!$L36="Yes",Worksheet!W67*Worksheet!W48,0)-W86,0) -> 0 | Y105: Lab/X-Ray/Radiology Service: | Z105: =MAX(IF('1. Plan Inputs'!$O36="Yes",Worksheet!Z67*Worksheet!Z48,0)-Z86,0) -> 0 | AA105: =MAX(IF('1. Plan Inputs'!$O36="Yes",Worksheet!AA67*Worksheet!AA48,0)-AA86,0) -> 0 | AB105: =MAX(IF('1. Plan Inputs'!$O36="Yes",Worksheet!AB67*Worksheet!AB48,0)-AB86,0) -> 0 | AC105: =MAX(IF('1. Plan Inputs'!$O36="Yes",Worksheet!AC67*Worksheet!AC48,0)-AC86,0) -> 0 | AD105: =MAX(IF('1. Plan Inputs'!$O36="Yes",Worksheet!AD67*Worksheet!AD48,0)-AD86,0) -> 0 | AE105: =MAX(IF('1. Plan Inputs'!$O36="Yes",Worksheet!AE67*Worksheet!AE48,0)-AE86,0) -> 0 | AG105: Lab/X-Ray/Radiology Service: | AH105: =MAX(IF('1. Plan Inputs'!$R36="Yes",Worksheet!AH67*Worksheet!AH48,0)-AH86,0) -> 0 | AI105: =MAX(IF('1. Plan Inputs'!$R36="Yes",Worksheet!AI67*Worksheet!AI48,0)-AI86,0) -> 0 | AJ105: =MAX(IF('1. Plan Inputs'!$R36="Yes",Worksheet!AJ67*Worksheet!AJ48,0)-AJ86,0) -> 0 | AK105: =MAX(IF('1. Plan Inputs'!$R36="Yes",Worksheet!AK67*Worksheet!AK48,0)-AK86,0) -> 0 | AL105: =MAX(IF('1. Plan Inputs'!$R36="Yes",Worksheet!AL67*Worksheet!AL48,0)-AL86,0) -> 0 | AM105: =MAX(IF('1. Plan Inputs'!$R36="Yes",Worksheet!AM67*Worksheet!AM48,0)-AM86,0) -> 0 | AO105: Lab/X-Ray/Radiology Service: | AP105: =MAX(IF('1. Plan Inputs'!$U36="Yes",Worksheet!AP67*Worksheet!AP48,0)-AP86,0) -> 0 | AQ105: =MAX(IF('1. Plan Inputs'!$U36="Yes",Worksheet!AQ67*Worksheet!AQ48,0)-AQ86,0) -> 0 | AR105: =MAX(IF('1. Plan Inputs'!$U36="Yes",Worksheet!AR67*Worksheet!AR48,0)-AR86,0) -> 0 | AS105: =MAX(IF('1. Plan Inputs'!$U36="Yes",Worksheet!AS67*Worksheet!AS48,0)-AS86,0) -> 0 | AT105: =MAX(IF('1. Plan Inputs'!$U36="Yes",Worksheet!AT67*Worksheet!AT48,0)-AT86,0) -> 0 | AU105: =MAX(IF('1. Plan Inputs'!$U36="Yes",Worksheet!AU67*Worksheet!AU48,0)-AU86,0) -> 0
A106: Emergency Room Visit: | B106: =MAX(IF('1. Plan Inputs'!$F38="Yes",Worksheet!B68*Worksheet!B49,0)-B87,0) -> 0 | C106: =MAX(IF('1. Plan Inputs'!$F38="Yes",Worksheet!C68*Worksheet!C49,0)-C87,0) -> 0 | D106: =MAX(IF('1. Plan Inputs'!$F38="Yes",Worksheet!D68*Worksheet!D49,0)-D87,0) -> 0 | E106: =MAX(IF('1. Plan Inputs'!$F38="Yes",Worksheet!E68*Worksheet!E49,0)-E87,0) -> 0 | F106: =MAX(IF('1. Plan Inputs'!$F38="Yes",Worksheet!F68*Worksheet!F49,0)-F87,0) -> 0 | G106: =MAX(IF('1. Plan Inputs'!$F38="Yes",Worksheet!G68*Worksheet!G49,0)-G87,0) -> 0 | I106: Emergency Room Visit: | J106: =MAX(IF('1. Plan Inputs'!$I38="Yes",Worksheet!J68*Worksheet!J49,0)-J87,0) -> 0 | K106: =MAX(IF('1. Plan Inputs'!$I38="Yes",Worksheet!K68*Worksheet!K49,0)-K87,0) -> 0 | L106: =MAX(IF('1. Plan Inputs'!$I38="Yes",Worksheet!L68*Worksheet!L49,0)-L87,0) -> 0 | M106: =MAX(IF('1. Plan Inputs'!$I38="Yes",Worksheet!M68*Worksheet!M49,0)-M87,0) -> 0 | N106: =MAX(IF('1. Plan Inputs'!$I38="Yes",Worksheet!N68*Worksheet!N49,0)-N87,0) -> 0 | O106: =MAX(IF('1. Plan Inputs'!$I38="Yes",Worksheet!O68*Worksheet!O49,0)-O87,0) -> 0 | Q106: Emergency Room Visit: | R106: =MAX(IF('1. Plan Inputs'!$L38="Yes",Worksheet!R68*Worksheet!R49,0)-R87,0) -> 0 | S106: =MAX(IF('1. Plan Inputs'!$L38="Yes",Worksheet!S68*Worksheet!S49,0)-S87,0) -> 0 | T106: =MAX(IF('1. Plan Inputs'!$L38="Yes",Worksheet!T68*Worksheet!T49,0)-T87,0) -> 0 | U106: =MAX(IF('1. Plan Inputs'!$L38="Yes",Worksheet!U68*Worksheet!U49,0)-U87,0) -> 0 | V106: =MAX(IF('1. Plan Inputs'!$L38="Yes",Worksheet!V68*Worksheet!V49,0)-V87,0) -> 0 | W106: =MAX(IF('1. Plan Inputs'!$L38="Yes",Worksheet!W68*Worksheet!W49,0)-W87,0) -> 0 | Y106: Emergency Room Visit: | Z106: =MAX(IF('1. Plan Inputs'!$O38="Yes",Worksheet!Z68*Worksheet!Z49,0)-Z87,0) -> 0 | AA106: =MAX(IF('1. Plan Inputs'!$O38="Yes",Worksheet!AA68*Worksheet!AA49,0)-AA87,0) -> 0 | AB106: =MAX(IF('1. Plan Inputs'!$O38="Yes",Worksheet!AB68*Worksheet!AB49,0)-AB87,0) -> 0 | AC106: =MAX(IF('1. Plan Inputs'!$O38="Yes",Worksheet!AC68*Worksheet!AC49,0)-AC87,0) -> 0 | AD106: =MAX(IF('1. Plan Inputs'!$O38="Yes",Worksheet!AD68*Worksheet!AD49,0)-AD87,0) -> 0 | AE106: =MAX(IF('1. Plan Inputs'!$O38="Yes",Worksheet!AE68*Worksheet!AE49,0)-AE87,0) -> 0 | AG106: Emergency Room Visit: | AH106: =MAX(IF('1. Plan Inputs'!$R38="Yes",Worksheet!AH68*Worksheet!AH49,0)-AH87,0) -> 0 | AI106: =MAX(IF('1. Plan Inputs'!$R38="Yes",Worksheet!AI68*Worksheet!AI49,0)-AI87,0) -> 0 | AJ106: =MAX(IF('1. Plan Inputs'!$R38="Yes",Worksheet!AJ68*Worksheet!AJ49,0)-AJ87,0) -> 0 | AK106: =MAX(IF('1. Plan Inputs'!$R38="Yes",Worksheet!AK68*Worksheet!AK49,0)-AK87,0) -> 0 | AL106: =MAX(IF('1. Plan Inputs'!$R38="Yes",Worksheet!AL68*Worksheet!AL49,0)-AL87,0) -> 0 | AM106: =MAX(IF('1. Plan Inputs'!$R38="Yes",Worksheet!AM68*Worksheet!AM49,0)-AM87,0) -> 0 | AO106: Emergency Room Visit: | AP106: =MAX(IF('1. Plan Inputs'!$U38="Yes",Worksheet!AP68*Worksheet!AP49,0)-AP87,0) -> 0 | AQ106: =MAX(IF('1. Plan Inputs'!$U38="Yes",Worksheet!AQ68*Worksheet!AQ49,0)-AQ87,0) -> 0 | AR106: =MAX(IF('1. Plan Inputs'!$U38="Yes",Worksheet!AR68*Worksheet!AR49,0)-AR87,0) -> 0 | AS106: =MAX(IF('1. Plan Inputs'!$U38="Yes",Worksheet!AS68*Worksheet!AS49,0)-AS87,0) -> 0 | AT106: =MAX(IF('1. Plan Inputs'!$U38="Yes",Worksheet!AT68*Worksheet!AT49,0)-AT87,0) -> 0 | AU106: =MAX(IF('1. Plan Inputs'!$U38="Yes",Worksheet!AU68*Worksheet!AU49,0)-AU87,0) -> 0
A107: Urgent Care Visit: | B107: =MAX(IF('1. Plan Inputs'!$F39="Yes",Worksheet!B69*Worksheet!B50,0)-B88,0) -> 0 | C107: =MAX(IF('1. Plan Inputs'!$F39="Yes",Worksheet!C69*Worksheet!C50,0)-C88,0) -> 0 | D107: =MAX(IF('1. Plan Inputs'!$F39="Yes",Worksheet!D69*Worksheet!D50,0)-D88,0) -> 0 | E107: =MAX(IF('1. Plan Inputs'!$F39="Yes",Worksheet!E69*Worksheet!E50,0)-E88,0) -> 0 | F107: =MAX(IF('1. Plan Inputs'!$F39="Yes",Worksheet!F69*Worksheet!F50,0)-F88,0) -> 0 | G107: =MAX(IF('1. Plan Inputs'!$F39="Yes",Worksheet!G69*Worksheet!G50,0)-G88,0) -> 0 | I107: Urgent Care Visit: | J107: =MAX(IF('1. Plan Inputs'!$I39="Yes",Worksheet!J69*Worksheet!J50,0)-J88,0) -> 0 | K107: =MAX(IF('1. Plan Inputs'!$I39="Yes",Worksheet!K69*Worksheet!K50,0)-K88,0) -> 0 | L107: =MAX(IF('1. Plan Inputs'!$I39="Yes",Worksheet!L69*Worksheet!L50,0)-L88,0) -> 0 | M107: =MAX(IF('1. Plan Inputs'!$I39="Yes",Worksheet!M69*Worksheet!M50,0)-M88,0) -> 0 | N107: =MAX(IF('1. Plan Inputs'!$I39="Yes",Worksheet!N69*Worksheet!N50,0)-N88,0) -> 0 | O107: =MAX(IF('1. Plan Inputs'!$I39="Yes",Worksheet!O69*Worksheet!O50,0)-O88,0) -> 0 | Q107: Urgent Care Visit: | R107: =MAX(IF('1. Plan Inputs'!$L39="Yes",Worksheet!R69*Worksheet!R50,0)-R88,0) -> 0 | S107: =MAX(IF('1. Plan Inputs'!$L39="Yes",Worksheet!S69*Worksheet!S50,0)-S88,0) -> 0 | T107: =MAX(IF('1. Plan Inputs'!$L39="Yes",Worksheet!T69*Worksheet!T50,0)-T88,0) -> 0 | U107: =MAX(IF('1. Plan Inputs'!$L39="Yes",Worksheet!U69*Worksheet!U50,0)-U88,0) -> 0 | V107: =MAX(IF('1. Plan Inputs'!$L39="Yes",Worksheet!V69*Worksheet!V50,0)-V88,0) -> 0 | W107: =MAX(IF('1. Plan Inputs'!$L39="Yes",Worksheet!W69*Worksheet!W50,0)-W88,0) -> 0 | Y107: Urgent Care Visit: | Z107: =MAX(IF('1. Plan Inputs'!$O39="Yes",Worksheet!Z69*Worksheet!Z50,0)-Z88,0) -> 0 | AA107: =MAX(IF('1. Plan Inputs'!$O39="Yes",Worksheet!AA69*Worksheet!AA50,0)-AA88,0) -> 0 | AB107: =MAX(IF('1. Plan Inputs'!$O39="Yes",Worksheet!AB69*Worksheet!AB50,0)-AB88,0) -> 0 | AC107: =MAX(IF('1. Plan Inputs'!$O39="Yes",Worksheet!AC69*Worksheet!AC50,0)-AC88,0) -> 0 | AD107: =MAX(IF('1. Plan Inputs'!$O39="Yes",Worksheet!AD69*Worksheet!AD50,0)-AD88,0) -> 0 | AE107: =MAX(IF('1. Plan Inputs'!$O39="Yes",Worksheet!AE69*Worksheet!AE50,0)-AE88,0) -> 0 | AG107: Urgent Care Visit: | AH107: =MAX(IF('1. Plan Inputs'!$R39="Yes",Worksheet!AH69*Worksheet!AH50,0)-AH88,0) -> 0 | AI107: =MAX(IF('1. Plan Inputs'!$R39="Yes",Worksheet!AI69*Worksheet!AI50,0)-AI88,0) -> 0 | AJ107: =MAX(IF('1. Plan Inputs'!$R39="Yes",Worksheet!AJ69*Worksheet!AJ50,0)-AJ88,0) -> 0 | AK107: =MAX(IF('1. Plan Inputs'!$R39="Yes",Worksheet!AK69*Worksheet!AK50,0)-AK88,0) -> 0 | AL107: =MAX(IF('1. Plan Inputs'!$R39="Yes",Worksheet!AL69*Worksheet!AL50,0)-AL88,0) -> 0 | AM107: =MAX(IF('1. Plan Inputs'!$R39="Yes",Worksheet!AM69*Worksheet!AM50,0)-AM88,0) -> 0 | AO107: Urgent Care Visit: | AP107: =MAX(IF('1. Plan Inputs'!$U39="Yes",Worksheet!AP69*Worksheet!AP50,0)-AP88,0) -> 0 | AQ107: =MAX(IF('1. Plan Inputs'!$U39="Yes",Worksheet!AQ69*Worksheet!AQ50,0)-AQ88,0) -> 0 | AR107: =MAX(IF('1. Plan Inputs'!$U39="Yes",Worksheet!AR69*Worksheet!AR50,0)-AR88,0) -> 0 | AS107: =MAX(IF('1. Plan Inputs'!$U39="Yes",Worksheet!AS69*Worksheet!AS50,0)-AS88,0) -> 0 | AT107: =MAX(IF('1. Plan Inputs'!$U39="Yes",Worksheet!AT69*Worksheet!AT50,0)-AT88,0) -> 0 | AU107: =MAX(IF('1. Plan Inputs'!$U39="Yes",Worksheet!AU69*Worksheet!AU50,0)-AU88,0) -> 0
A108: PCP Office Visit: | B108: =MAX(IF('1. Plan Inputs'!$F42="Yes",Worksheet!B70*Worksheet!B51,0)-B89,0) -> 0 | C108: =MAX(IF('1. Plan Inputs'!$F42="Yes",Worksheet!C70*Worksheet!C51,0)-C89,0) -> 0 | D108: =MAX(IF('1. Plan Inputs'!$F42="Yes",Worksheet!D70*Worksheet!D51,0)-D89,0) -> 0 | E108: =MAX(IF('1. Plan Inputs'!$F42="Yes",Worksheet!E70*Worksheet!E51,0)-E89,0) -> 0 | F108: =MAX(IF('1. Plan Inputs'!$F42="Yes",Worksheet!F70*Worksheet!F51,0)-F89,0) -> 0 | G108: =MAX(IF('1. Plan Inputs'!$F42="Yes",Worksheet!G70*Worksheet!G51,0)-G89,0) -> 0 | I108: PCP Office Visit: | J108: =MAX(IF('1. Plan Inputs'!$I42="Yes",Worksheet!J70*Worksheet!J51,0)-J89,0) -> 0 | K108: =MAX(IF('1. Plan Inputs'!$I42="Yes",Worksheet!K70*Worksheet!K51,0)-K89,0) -> 0 | L108: =MAX(IF('1. Plan Inputs'!$I42="Yes",Worksheet!L70*Worksheet!L51,0)-L89,0) -> 0 | M108: =MAX(IF('1. Plan Inputs'!$I42="Yes",Worksheet!M70*Worksheet!M51,0)-M89,0) -> 0 | N108: =MAX(IF('1. Plan Inputs'!$I42="Yes",Worksheet!N70*Worksheet!N51,0)-N89,0) -> 0 | O108: =MAX(IF('1. Plan Inputs'!$I42="Yes",Worksheet!O70*Worksheet!O51,0)-O89,0) -> 0 | Q108: PCP Office Visit: | R108: =MAX(IF('1. Plan Inputs'!$L42="Yes",Worksheet!R70*Worksheet!R51,0)-R89,0) -> 0 | S108: =MAX(IF('1. Plan Inputs'!$L42="Yes",Worksheet!S70*Worksheet!S51,0)-S89,0) -> 0 | T108: =MAX(IF('1. Plan Inputs'!$L42="Yes",Worksheet!T70*Worksheet!T51,0)-T89,0) -> 0 | U108: =MAX(IF('1. Plan Inputs'!$L42="Yes",Worksheet!U70*Worksheet!U51,0)-U89,0) -> 0 | V108: =MAX(IF('1. Plan Inputs'!$L42="Yes",Worksheet!V70*Worksheet!V51,0)-V89,0) -> 0 | W108: =MAX(IF('1. Plan Inputs'!$L42="Yes",Worksheet!W70*Worksheet!W51,0)-W89,0) -> 0 | Y108: PCP Office Visit: | Z108: =MAX(IF('1. Plan Inputs'!$O42="Yes",Worksheet!Z70*Worksheet!Z51,0)-Z89,0) -> 0 | AA108: =MAX(IF('1. Plan Inputs'!$O42="Yes",Worksheet!AA70*Worksheet!AA51,0)-AA89,0) -> 0 | AB108: =MAX(IF('1. Plan Inputs'!$O42="Yes",Worksheet!AB70*Worksheet!AB51,0)-AB89,0) -> 0 | AC108: =MAX(IF('1. Plan Inputs'!$O42="Yes",Worksheet!AC70*Worksheet!AC51,0)-AC89,0) -> 0 | AD108: =MAX(IF('1. Plan Inputs'!$O42="Yes",Worksheet!AD70*Worksheet!AD51,0)-AD89,0) -> 0 | AE108: =MAX(IF('1. Plan Inputs'!$O42="Yes",Worksheet!AE70*Worksheet!AE51,0)-AE89,0) -> 0 | AG108: PCP Office Visit: | AH108: =MAX(IF('1. Plan Inputs'!$R42="Yes",Worksheet!AH70*Worksheet!AH51,0)-AH89,0) -> 0 | AI108: =MAX(IF('1. Plan Inputs'!$R42="Yes",Worksheet!AI70*Worksheet!AI51,0)-AI89,0) -> 0 | AJ108: =MAX(IF('1. Plan Inputs'!$R42="Yes",Worksheet!AJ70*Worksheet!AJ51,0)-AJ89,0) -> 0 | AK108: =MAX(IF('1. Plan Inputs'!$R42="Yes",Worksheet!AK70*Worksheet!AK51,0)-AK89,0) -> 0 | AL108: =MAX(IF('1. Plan Inputs'!$R42="Yes",Worksheet!AL70*Worksheet!AL51,0)-AL89,0) -> 0 | AM108: =MAX(IF('1. Plan Inputs'!$R42="Yes",Worksheet!AM70*Worksheet!AM51,0)-AM89,0) -> 0 | AO108: PCP Office Visit: | AP108: =MAX(IF('1. Plan Inputs'!$U42="Yes",Worksheet!AP70*Worksheet!AP51,0)-AP89,0) -> 0 | AQ108: =MAX(IF('1. Plan Inputs'!$U42="Yes",Worksheet!AQ70*Worksheet!AQ51,0)-AQ89,0) -> 0 | AR108: =MAX(IF('1. Plan Inputs'!$U42="Yes",Worksheet!AR70*Worksheet!AR51,0)-AR89,0) -> 0 | AS108: =MAX(IF('1. Plan Inputs'!$U42="Yes",Worksheet!AS70*Worksheet!AS51,0)-AS89,0) -> 0 | AT108: =MAX(IF('1. Plan Inputs'!$U42="Yes",Worksheet!AT70*Worksheet!AT51,0)-AT89,0) -> 0 | AU108: =MAX(IF('1. Plan Inputs'!$U42="Yes",Worksheet!AU70*Worksheet!AU51,0)-AU89,0) -> 0
A109: Specialist Office Visit: | B109: =MAX(IF('1. Plan Inputs'!$F43="Yes",Worksheet!B71*Worksheet!B52,0)-B90,0) -> 0 | C109: =MAX(IF('1. Plan Inputs'!$F43="Yes",Worksheet!C71*Worksheet!C52,0)-C90,0) -> 0 | D109: =MAX(IF('1. Plan Inputs'!$F43="Yes",Worksheet!D71*Worksheet!D52,0)-D90,0) -> 0 | E109: =MAX(IF('1. Plan Inputs'!$F43="Yes",Worksheet!E71*Worksheet!E52,0)-E90,0) -> 0 | F109: =MAX(IF('1. Plan Inputs'!$F43="Yes",Worksheet!F71*Worksheet!F52,0)-F90,0) -> 0 | G109: =MAX(IF('1. Plan Inputs'!$F43="Yes",Worksheet!G71*Worksheet!G52,0)-G90,0) -> 0 | I109: Specialist Office Visit: | J109: =MAX(IF('1. Plan Inputs'!$I43="Yes",Worksheet!J71*Worksheet!J52,0)-J90,0) -> 0 | K109: =MAX(IF('1. Plan Inputs'!$I43="Yes",Worksheet!K71*Worksheet!K52,0)-K90,0) -> 0 | L109: =MAX(IF('1. Plan Inputs'!$I43="Yes",Worksheet!L71*Worksheet!L52,0)-L90,0) -> 0 | M109: =MAX(IF('1. Plan Inputs'!$I43="Yes",Worksheet!M71*Worksheet!M52,0)-M90,0) -> 0 | N109: =MAX(IF('1. Plan Inputs'!$I43="Yes",Worksheet!N71*Worksheet!N52,0)-N90,0) -> 0 | O109: =MAX(IF('1. Plan Inputs'!$I43="Yes",Worksheet!O71*Worksheet!O52,0)-O90,0) -> 0 | Q109: Specialist Office Visit: | R109: =MAX(IF('1. Plan Inputs'!$L43="Yes",Worksheet!R71*Worksheet!R52,0)-R90,0) -> 0 | S109: =MAX(IF('1. Plan Inputs'!$L43="Yes",Worksheet!S71*Worksheet!S52,0)-S90,0) -> 0 | T109: =MAX(IF('1. Plan Inputs'!$L43="Yes",Worksheet!T71*Worksheet!T52,0)-T90,0) -> 0 | U109: =MAX(IF('1. Plan Inputs'!$L43="Yes",Worksheet!U71*Worksheet!U52,0)-U90,0) -> 0 | V109: =MAX(IF('1. Plan Inputs'!$L43="Yes",Worksheet!V71*Worksheet!V52,0)-V90,0) -> 0 | W109: =MAX(IF('1. Plan Inputs'!$L43="Yes",Worksheet!W71*Worksheet!W52,0)-W90,0) -> 0 | Y109: Specialist Office Visit: | Z109: =MAX(IF('1. Plan Inputs'!$O43="Yes",Worksheet!Z71*Worksheet!Z52,0)-Z90,0) -> 0 | AA109: =MAX(IF('1. Plan Inputs'!$O43="Yes",Worksheet!AA71*Worksheet!AA52,0)-AA90,0) -> 0 | AB109: =MAX(IF('1. Plan Inputs'!$O43="Yes",Worksheet!AB71*Worksheet!AB52,0)-AB90,0) -> 0 | AC109: =MAX(IF('1. Plan Inputs'!$O43="Yes",Worksheet!AC71*Worksheet!AC52,0)-AC90,0) -> 0 | AD109: =MAX(IF('1. Plan Inputs'!$O43="Yes",Worksheet!AD71*Worksheet!AD52,0)-AD90,0) -> 0 | AE109: =MAX(IF('1. Plan Inputs'!$O43="Yes",Worksheet!AE71*Worksheet!AE52,0)-AE90,0) -> 0 | AG109: Specialist Office Visit: | AH109: =MAX(IF('1. Plan Inputs'!$R43="Yes",Worksheet!AH71*Worksheet!AH52,0)-AH90,0) -> 0 | AI109: =MAX(IF('1. Plan Inputs'!$R43="Yes",Worksheet!AI71*Worksheet!AI52,0)-AI90,0) -> 0 | AJ109: =MAX(IF('1. Plan Inputs'!$R43="Yes",Worksheet!AJ71*Worksheet!AJ52,0)-AJ90,0) -> 0 | AK109: =MAX(IF('1. Plan Inputs'!$R43="Yes",Worksheet!AK71*Worksheet!AK52,0)-AK90,0) -> 0 | AL109: =MAX(IF('1. Plan Inputs'!$R43="Yes",Worksheet!AL71*Worksheet!AL52,0)-AL90,0) -> 0 | AM109: =MAX(IF('1. Plan Inputs'!$R43="Yes",Worksheet!AM71*Worksheet!AM52,0)-AM90,0) -> 0 | AO109: Specialist Office Visit: | AP109: =MAX(IF('1. Plan Inputs'!$U43="Yes",Worksheet!AP71*Worksheet!AP52,0)-AP90,0) -> 0 | AQ109: =MAX(IF('1. Plan Inputs'!$U43="Yes",Worksheet!AQ71*Worksheet!AQ52,0)-AQ90,0) -> 0 | AR109: =MAX(IF('1. Plan Inputs'!$U43="Yes",Worksheet!AR71*Worksheet!AR52,0)-AR90,0) -> 0 | AS109: =MAX(IF('1. Plan Inputs'!$U43="Yes",Worksheet!AS71*Worksheet!AS52,0)-AS90,0) -> 0 | AT109: =MAX(IF('1. Plan Inputs'!$U43="Yes",Worksheet!AT71*Worksheet!AT52,0)-AT90,0) -> 0 | AU109: =MAX(IF('1. Plan Inputs'!$U43="Yes",Worksheet!AU71*Worksheet!AU52,0)-AU90,0) -> 0
A110: Chiropractor Visit: | B110: =MAX(IF('1. Plan Inputs'!$F44="Yes",Worksheet!B72*Worksheet!B53,0)-B91,0) -> 0 | C110: =MAX(IF('1. Plan Inputs'!$F44="Yes",Worksheet!C72*Worksheet!C53,0)-C91,0) -> 0 | D110: =MAX(IF('1. Plan Inputs'!$F44="Yes",Worksheet!D72*Worksheet!D53,0)-D91,0) -> 0 | E110: =MAX(IF('1. Plan Inputs'!$F44="Yes",Worksheet!E72*Worksheet!E53,0)-E91,0) -> 0 | F110: =MAX(IF('1. Plan Inputs'!$F44="Yes",Worksheet!F72*Worksheet!F53,0)-F91,0) -> 0 | G110: =MAX(IF('1. Plan Inputs'!$F44="Yes",Worksheet!G72*Worksheet!G53,0)-G91,0) -> 0 | I110: Chiropractor Visit: | J110: =MAX(IF('1. Plan Inputs'!$I44="Yes",Worksheet!J72*Worksheet!J53,0)-J91,0) -> 0 | K110: =MAX(IF('1. Plan Inputs'!$I44="Yes",Worksheet!K72*Worksheet!K53,0)-K91,0) -> 0 | L110: =MAX(IF('1. Plan Inputs'!$I44="Yes",Worksheet!L72*Worksheet!L53,0)-L91,0) -> 0 | M110: =MAX(IF('1. Plan Inputs'!$I44="Yes",Worksheet!M72*Worksheet!M53,0)-M91,0) -> 0 | N110: =MAX(IF('1. Plan Inputs'!$I44="Yes",Worksheet!N72*Worksheet!N53,0)-N91,0) -> 0 | O110: =MAX(IF('1. Plan Inputs'!$I44="Yes",Worksheet!O72*Worksheet!O53,0)-O91,0) -> 0 | Q110: Chiropractor Visit: | R110: =MAX(IF('1. Plan Inputs'!$L44="Yes",Worksheet!R72*Worksheet!R53,0)-R91,0) -> 0 | S110: =MAX(IF('1. Plan Inputs'!$L44="Yes",Worksheet!S72*Worksheet!S53,0)-S91,0) -> 0 | T110: =MAX(IF('1. Plan Inputs'!$L44="Yes",Worksheet!T72*Worksheet!T53,0)-T91,0) -> 0 | U110: =MAX(IF('1. Plan Inputs'!$L44="Yes",Worksheet!U72*Worksheet!U53,0)-U91,0) -> 0 | V110: =MAX(IF('1. Plan Inputs'!$L44="Yes",Worksheet!V72*Worksheet!V53,0)-V91,0) -> 0 | W110: =MAX(IF('1. Plan Inputs'!$L44="Yes",Worksheet!W72*Worksheet!W53,0)-W91,0) -> 0 | Y110: Chiropractor Visit: | Z110: =MAX(IF('1. Plan Inputs'!$O44="Yes",Worksheet!Z72*Worksheet!Z53,0)-Z91,0) -> 0 | AA110: =MAX(IF('1. Plan Inputs'!$O44="Yes",Worksheet!AA72*Worksheet!AA53,0)-AA91,0) -> 0 | AB110: =MAX(IF('1. Plan Inputs'!$O44="Yes",Worksheet!AB72*Worksheet!AB53,0)-AB91,0) -> 0 | AC110: =MAX(IF('1. Plan Inputs'!$O44="Yes",Worksheet!AC72*Worksheet!AC53,0)-AC91,0) -> 0 | AD110: =MAX(IF('1. Plan Inputs'!$O44="Yes",Worksheet!AD72*Worksheet!AD53,0)-AD91,0) -> 0 | AE110: =MAX(IF('1. Plan Inputs'!$O44="Yes",Worksheet!AE72*Worksheet!AE53,0)-AE91,0) -> 0 | AG110: Chiropractor Visit: | AH110: =MAX(IF('1. Plan Inputs'!$R44="Yes",Worksheet!AH72*Worksheet!AH53,0)-AH91,0) -> 0 | AI110: =MAX(IF('1. Plan Inputs'!$R44="Yes",Worksheet!AI72*Worksheet!AI53,0)-AI91,0) -> 0 | AJ110: =MAX(IF('1. Plan Inputs'!$R44="Yes",Worksheet!AJ72*Worksheet!AJ53,0)-AJ91,0) -> 0 | AK110: =MAX(IF('1. Plan Inputs'!$R44="Yes",Worksheet!AK72*Worksheet!AK53,0)-AK91,0) -> 0 | AL110: =MAX(IF('1. Plan Inputs'!$R44="Yes",Worksheet!AL72*Worksheet!AL53,0)-AL91,0) -> 0 | AM110: =MAX(IF('1. Plan Inputs'!$R44="Yes",Worksheet!AM72*Worksheet!AM53,0)-AM91,0) -> 0 | AO110: Chiropractor Visit: | AP110: =MAX(IF('1. Plan Inputs'!$U44="Yes",Worksheet!AP72*Worksheet!AP53,0)-AP91,0) -> 0 | AQ110: =MAX(IF('1. Plan Inputs'!$U44="Yes",Worksheet!AQ72*Worksheet!AQ53,0)-AQ91,0) -> 0 | AR110: =MAX(IF('1. Plan Inputs'!$U44="Yes",Worksheet!AR72*Worksheet!AR53,0)-AR91,0) -> 0 | AS110: =MAX(IF('1. Plan Inputs'!$U44="Yes",Worksheet!AS72*Worksheet!AS53,0)-AS91,0) -> 0 | AT110: =MAX(IF('1. Plan Inputs'!$U44="Yes",Worksheet!AT72*Worksheet!AT53,0)-AT91,0) -> 0 | AU110: =MAX(IF('1. Plan Inputs'!$U44="Yes",Worksheet!AU72*Worksheet!AU53,0)-AU91,0) -> 0
A111: Rx Generic (Retail): | B111: =MAX(IF('1. Plan Inputs'!$G$50="Yes",Worksheet!B73*Worksheet!B54,0)-B92,0) -> 0 | C111: =MAX(IF('1. Plan Inputs'!$G$50="Yes",Worksheet!C73*Worksheet!C54,0)-C92,0) -> 0 | D111: =MAX(IF('1. Plan Inputs'!$G$50="Yes",Worksheet!D73*Worksheet!D54,0)-D92,0) -> 0 | E111: =MAX(IF('1. Plan Inputs'!$G$50="Yes",Worksheet!E73*Worksheet!E54,0)-E92,0) -> 0 | F111: =MAX(IF('1. Plan Inputs'!$G$50="Yes",Worksheet!F73*Worksheet!F54,0)-F92,0) -> 0 | G111: =MAX(IF('1. Plan Inputs'!$G$50="Yes",Worksheet!G73*Worksheet!G54,0)-G92,0) -> 0 | I111: Rx Generic (Retail): | J111: =MAX(IF('1. Plan Inputs'!$J$50="Yes",Worksheet!J73*Worksheet!J54,0)-J92,0) -> 0 | K111: =MAX(IF('1. Plan Inputs'!$J$50="Yes",Worksheet!K73*Worksheet!K54,0)-K92,0) -> 0 | L111: =MAX(IF('1. Plan Inputs'!$J$50="Yes",Worksheet!L73*Worksheet!L54,0)-L92,0) -> 0 | M111: =MAX(IF('1. Plan Inputs'!$J$50="Yes",Worksheet!M73*Worksheet!M54,0)-M92,0) -> 0 | N111: =MAX(IF('1. Plan Inputs'!$J$50="Yes",Worksheet!N73*Worksheet!N54,0)-N92,0) -> 0 | O111: =MAX(IF('1. Plan Inputs'!$J$50="Yes",Worksheet!O73*Worksheet!O54,0)-O92,0) -> 0 | Q111: Rx Generic (Retail): | R111: =MAX(IF('1. Plan Inputs'!$M$50="Yes",Worksheet!R73*Worksheet!R54,0)-R92,0) -> 0 | S111: =MAX(IF('1. Plan Inputs'!$M$50="Yes",Worksheet!S73*Worksheet!S54,0)-S92,0) -> 0 | T111: =MAX(IF('1. Plan Inputs'!$M$50="Yes",Worksheet!T73*Worksheet!T54,0)-T92,0) -> 0 | U111: =MAX(IF('1. Plan Inputs'!$M$50="Yes",Worksheet!U73*Worksheet!U54,0)-U92,0) -> 0 | V111: =MAX(IF('1. Plan Inputs'!$M$50="Yes",Worksheet!V73*Worksheet!V54,0)-V92,0) -> 0 | W111: =MAX(IF('1. Plan Inputs'!$M$50="Yes",Worksheet!W73*Worksheet!W54,0)-W92,0) -> 0 | Y111: Rx Generic (Retail): | Z111: =MAX(IF('1. Plan Inputs'!$P$50="Yes",Worksheet!Z73*Worksheet!Z54,0)-Z92,0) -> 0 | AA111: =MAX(IF('1. Plan Inputs'!$P$50="Yes",Worksheet!AA73*Worksheet!AA54,0)-AA92,0) -> 0 | AB111: =MAX(IF('1. Plan Inputs'!$P$50="Yes",Worksheet!AB73*Worksheet!AB54,0)-AB92,0) -> 0 | AC111: =MAX(IF('1. Plan Inputs'!$P$50="Yes",Worksheet!AC73*Worksheet!AC54,0)-AC92,0) -> 0 | AD111: =MAX(IF('1. Plan Inputs'!$P$50="Yes",Worksheet!AD73*Worksheet!AD54,0)-AD92,0) -> 0 | AE111: =MAX(IF('1. Plan Inputs'!$P$50="Yes",Worksheet!AE73*Worksheet!AE54,0)-AE92,0) -> 0 | AG111: Rx Generic (Retail): | AH111: =MAX(IF('1. Plan Inputs'!$S$50="Yes",Worksheet!AH73*Worksheet!AH54,0)-AH92,0) -> 0 | AI111: =MAX(IF('1. Plan Inputs'!$S$50="Yes",Worksheet!AI73*Worksheet!AI54,0)-AI92,0) -> 0 | AJ111: =MAX(IF('1. Plan Inputs'!$S$50="Yes",Worksheet!AJ73*Worksheet!AJ54,0)-AJ92,0) -> 0 | AK111: =MAX(IF('1. Plan Inputs'!$S$50="Yes",Worksheet!AK73*Worksheet!AK54,0)-AK92,0) -> 0 | AL111: =MAX(IF('1. Plan Inputs'!$S$50="Yes",Worksheet!AL73*Worksheet!AL54,0)-AL92,0) -> 0 | AM111: =MAX(IF('1. Plan Inputs'!$S$50="Yes",Worksheet!AM73*Worksheet!AM54,0)-AM92,0) -> 0 | AO111: Rx Generic (Retail): | AP111: =MAX(IF('1. Plan Inputs'!$V$50="Yes",Worksheet!AP73*Worksheet!AP54,0)-AP92,0) -> 0 | AQ111: =MAX(IF('1. Plan Inputs'!$V$50="Yes",Worksheet!AQ73*Worksheet!AQ54,0)-AQ92,0) -> 0 | AR111: =MAX(IF('1. Plan Inputs'!$V$50="Yes",Worksheet!AR73*Worksheet!AR54,0)-AR92,0) -> 0 | AS111: =MAX(IF('1. Plan Inputs'!$V$50="Yes",Worksheet!AS73*Worksheet!AS54,0)-AS92,0) -> 0 | AT111: =MAX(IF('1. Plan Inputs'!$V$50="Yes",Worksheet!AT73*Worksheet!AT54,0)-AT92,0) -> 0 | AU111: =MAX(IF('1. Plan Inputs'!$V$50="Yes",Worksheet!AU73*Worksheet!AU54,0)-AU92,0) -> 0
A112: Rx Brand Formulary (Retail): | B112: =MAX(IF('1. Plan Inputs'!$G$50="Yes",Worksheet!B74*Worksheet!B55,0)-B93,0) -> 0 | C112: =MAX(IF('1. Plan Inputs'!$G$50="Yes",Worksheet!C74*Worksheet!C55,0)-C93,0) -> 0 | D112: =MAX(IF('1. Plan Inputs'!$G$50="Yes",Worksheet!D74*Worksheet!D55,0)-D93,0) -> 0 | E112: =MAX(IF('1. Plan Inputs'!$G$50="Yes",Worksheet!E74*Worksheet!E55,0)-E93,0) -> 0 | F112: =MAX(IF('1. Plan Inputs'!$G$50="Yes",Worksheet!F74*Worksheet!F55,0)-F93,0) -> 0 | G112: =MAX(IF('1. Plan Inputs'!$G$50="Yes",Worksheet!G74*Worksheet!G55,0)-G93,0) -> 0 | I112: Rx Brand Formulary (Retail): | J112: =MAX(IF('1. Plan Inputs'!$J$50="Yes",Worksheet!J74*Worksheet!J55,0)-J93,0) -> 0 | K112: =MAX(IF('1. Plan Inputs'!$J$50="Yes",Worksheet!K74*Worksheet!K55,0)-K93,0) -> 0 | L112: =MAX(IF('1. Plan Inputs'!$J$50="Yes",Worksheet!L74*Worksheet!L55,0)-L93,0) -> 0 | M112: =MAX(IF('1. Plan Inputs'!$J$50="Yes",Worksheet!M74*Worksheet!M55,0)-M93,0) -> 0 | N112: =MAX(IF('1. Plan Inputs'!$J$50="Yes",Worksheet!N74*Worksheet!N55,0)-N93,0) -> 0 | O112: =MAX(IF('1. Plan Inputs'!$J$50="Yes",Worksheet!O74*Worksheet!O55,0)-O93,0) -> 0 | Q112: Rx Brand Formulary (Retail): | R112: =MAX(IF('1. Plan Inputs'!$M$50="Yes",Worksheet!R74*Worksheet!R55,0)-R93,0) -> 0 | S112: =MAX(IF('1. Plan Inputs'!$M$50="Yes",Worksheet!S74*Worksheet!S55,0)-S93,0) -> 0 | T112: =MAX(IF('1. Plan Inputs'!$M$50="Yes",Worksheet!T74*Worksheet!T55,0)-T93,0) -> 0 | U112: =MAX(IF('1. Plan Inputs'!$M$50="Yes",Worksheet!U74*Worksheet!U55,0)-U93,0) -> 0 | V112: =MAX(IF('1. Plan Inputs'!$M$50="Yes",Worksheet!V74*Worksheet!V55,0)-V93,0) -> 0 | W112: =MAX(IF('1. Plan Inputs'!$M$50="Yes",Worksheet!W74*Worksheet!W55,0)-W93,0) -> 0 | Y112: Rx Brand Formulary (Retail): | Z112: =MAX(IF('1. Plan Inputs'!$P$50="Yes",Worksheet!Z74*Worksheet!Z55,0)-Z93,0) -> 0 | AA112: =MAX(IF('1. Plan Inputs'!$P$50="Yes",Worksheet!AA74*Worksheet!AA55,0)-AA93,0) -> 0 | AB112: =MAX(IF('1. Plan Inputs'!$P$50="Yes",Worksheet!AB74*Worksheet!AB55,0)-AB93,0) -> 0 | AC112: =MAX(IF('1. Plan Inputs'!$P$50="Yes",Worksheet!AC74*Worksheet!AC55,0)-AC93,0) -> 0 | AD112: =MAX(IF('1. Plan Inputs'!$P$50="Yes",Worksheet!AD74*Worksheet!AD55,0)-AD93,0) -> 0 | AE112: =MAX(IF('1. Plan Inputs'!$P$50="Yes",Worksheet!AE74*Worksheet!AE55,0)-AE93,0) -> 0 | AG112: Rx Brand Formulary (Retail): | AH112: =MAX(IF('1. Plan Inputs'!$S$50="Yes",Worksheet!AH74*Worksheet!AH55,0)-AH93,0) -> 0 | AI112: =MAX(IF('1. Plan Inputs'!$S$50="Yes",Worksheet!AI74*Worksheet!AI55,0)-AI93,0) -> 0 | AJ112: =MAX(IF('1. Plan Inputs'!$S$50="Yes",Worksheet!AJ74*Worksheet!AJ55,0)-AJ93,0) -> 0 | AK112: =MAX(IF('1. Plan Inputs'!$S$50="Yes",Worksheet!AK74*Worksheet!AK55,0)-AK93,0) -> 0 | AL112: =MAX(IF('1. Plan Inputs'!$S$50="Yes",Worksheet!AL74*Worksheet!AL55,0)-AL93,0) -> 0 | AM112: =MAX(IF('1. Plan Inputs'!$S$50="Yes",Worksheet!AM74*Worksheet!AM55,0)-AM93,0) -> 0 | AO112: Rx Brand Formulary (Retail): | AP112: =MAX(IF('1. Plan Inputs'!$V$50="Yes",Worksheet!AP74*Worksheet!AP55,0)-AP93,0) -> 0 | AQ112: =MAX(IF('1. Plan Inputs'!$V$50="Yes",Worksheet!AQ74*Worksheet!AQ55,0)-AQ93,0) -> 0 | AR112: =MAX(IF('1. Plan Inputs'!$V$50="Yes",Worksheet!AR74*Worksheet!AR55,0)-AR93,0) -> 0 | AS112: =MAX(IF('1. Plan Inputs'!$V$50="Yes",Worksheet!AS74*Worksheet!AS55,0)-AS93,0) -> 0 | AT112: =MAX(IF('1. Plan Inputs'!$V$50="Yes",Worksheet!AT74*Worksheet!AT55,0)-AT93,0) -> 0 | AU112: =MAX(IF('1. Plan Inputs'!$V$50="Yes",Worksheet!AU74*Worksheet!AU55,0)-AU93,0) -> 0
A113: Rx Brand Non-Formulary (Retail): | B113: =MAX(IF('1. Plan Inputs'!$G$50="Yes",Worksheet!B75*Worksheet!B56,0)-B94,0) -> 0 | C113: =MAX(IF('1. Plan Inputs'!$G$50="Yes",Worksheet!C75*Worksheet!C56,0)-C94,0) -> 0 | D113: =MAX(IF('1. Plan Inputs'!$G$50="Yes",Worksheet!D75*Worksheet!D56,0)-D94,0) -> 0 | E113: =MAX(IF('1. Plan Inputs'!$G$50="Yes",Worksheet!E75*Worksheet!E56,0)-E94,0) -> 0 | F113: =MAX(IF('1. Plan Inputs'!$G$50="Yes",Worksheet!F75*Worksheet!F56,0)-F94,0) -> 0 | G113: =MAX(IF('1. Plan Inputs'!$G$50="Yes",Worksheet!G75*Worksheet!G56,0)-G94,0) -> 0 | I113: Rx Brand Non-Formulary (Retail): | J113: =MAX(IF('1. Plan Inputs'!$J$50="Yes",Worksheet!J75*Worksheet!J56,0)-J94,0) -> 0 | K113: =MAX(IF('1. Plan Inputs'!$J$50="Yes",Worksheet!K75*Worksheet!K56,0)-K94,0) -> 0 | L113: =MAX(IF('1. Plan Inputs'!$J$50="Yes",Worksheet!L75*Worksheet!L56,0)-L94,0) -> 0 | M113: =MAX(IF('1. Plan Inputs'!$J$50="Yes",Worksheet!M75*Worksheet!M56,0)-M94,0) -> 0 | N113: =MAX(IF('1. Plan Inputs'!$J$50="Yes",Worksheet!N75*Worksheet!N56,0)-N94,0) -> 0 | O113: =MAX(IF('1. Plan Inputs'!$J$50="Yes",Worksheet!O75*Worksheet!O56,0)-O94,0) -> 0 | Q113: Rx Brand Non-Formulary (Retail): | R113: =MAX(IF('1. Plan Inputs'!$M$50="Yes",Worksheet!R75*Worksheet!R56,0)-R94,0) -> 0 | S113: =MAX(IF('1. Plan Inputs'!$M$50="Yes",Worksheet!S75*Worksheet!S56,0)-S94,0) -> 0 | T113: =MAX(IF('1. Plan Inputs'!$M$50="Yes",Worksheet!T75*Worksheet!T56,0)-T94,0) -> 0 | U113: =MAX(IF('1. Plan Inputs'!$M$50="Yes",Worksheet!U75*Worksheet!U56,0)-U94,0) -> 0 | V113: =MAX(IF('1. Plan Inputs'!$M$50="Yes",Worksheet!V75*Worksheet!V56,0)-V94,0) -> 0 | W113: =MAX(IF('1. Plan Inputs'!$M$50="Yes",Worksheet!W75*Worksheet!W56,0)-W94,0) -> 0 | Y113: Rx Brand Non-Formulary (Retail): | Z113: =MAX(IF('1. Plan Inputs'!$P$50="Yes",Worksheet!Z75*Worksheet!Z56,0)-Z94,0) -> 0 | AA113: =MAX(IF('1. Plan Inputs'!$P$50="Yes",Worksheet!AA75*Worksheet!AA56,0)-AA94,0) -> 0 | AB113: =MAX(IF('1. Plan Inputs'!$P$50="Yes",Worksheet!AB75*Worksheet!AB56,0)-AB94,0) -> 0 | AC113: =MAX(IF('1. Plan Inputs'!$P$50="Yes",Worksheet!AC75*Worksheet!AC56,0)-AC94,0) -> 0 | AD113: =MAX(IF('1. Plan Inputs'!$P$50="Yes",Worksheet!AD75*Worksheet!AD56,0)-AD94,0) -> 0 | AE113: =MAX(IF('1. Plan Inputs'!$P$50="Yes",Worksheet!AE75*Worksheet!AE56,0)-AE94,0) -> 0 | AG113: Rx Brand Non-Formulary (Retail): | AH113: =MAX(IF('1. Plan Inputs'!$S$50="Yes",Worksheet!AH75*Worksheet!AH56,0)-AH94,0) -> 0 | AI113: =MAX(IF('1. Plan Inputs'!$S$50="Yes",Worksheet!AI75*Worksheet!AI56,0)-AI94,0) -> 0 | AJ113: =MAX(IF('1. Plan Inputs'!$S$50="Yes",Worksheet!AJ75*Worksheet!AJ56,0)-AJ94,0) -> 0 | AK113: =MAX(IF('1. Plan Inputs'!$S$50="Yes",Worksheet!AK75*Worksheet!AK56,0)-AK94,0) -> 0 | AL113: =MAX(IF('1. Plan Inputs'!$S$50="Yes",Worksheet!AL75*Worksheet!AL56,0)-AL94,0) -> 0 | AM113: =MAX(IF('1. Plan Inputs'!$S$50="Yes",Worksheet!AM75*Worksheet!AM56,0)-AM94,0) -> 0 | AO113: Rx Brand Non-Formulary (Retail): | AP113: =MAX(IF('1. Plan Inputs'!$V$50="Yes",Worksheet!AP75*Worksheet!AP56,0)-AP94,0) -> 0 | AQ113: =MAX(IF('1. Plan Inputs'!$V$50="Yes",Worksheet!AQ75*Worksheet!AQ56,0)-AQ94,0) -> 0 | AR113: =MAX(IF('1. Plan Inputs'!$V$50="Yes",Worksheet!AR75*Worksheet!AR56,0)-AR94,0) -> 0 | AS113: =MAX(IF('1. Plan Inputs'!$V$50="Yes",Worksheet!AS75*Worksheet!AS56,0)-AS94,0) -> 0 | AT113: =MAX(IF('1. Plan Inputs'!$V$50="Yes",Worksheet!AT75*Worksheet!AT56,0)-AT94,0) -> 0 | AU113: =MAX(IF('1. Plan Inputs'!$V$50="Yes",Worksheet!AU75*Worksheet!AU56,0)-AU94,0) -> 0
A114: Rx Specialty (Retail): | B114: =MAX(IF('1. Plan Inputs'!$G$50="Yes",Worksheet!B76*Worksheet!B57,0)-B95,0) -> 0 | C114: =MAX(IF('1. Plan Inputs'!$G$50="Yes",Worksheet!C76*Worksheet!C57,0)-C95,0) -> 0 | D114: =MAX(IF('1. Plan Inputs'!$G$50="Yes",Worksheet!D76*Worksheet!D57,0)-D95,0) -> 0 | E114: =MAX(IF('1. Plan Inputs'!$G$50="Yes",Worksheet!E76*Worksheet!E57,0)-E95,0) -> 0 | F114: =MAX(IF('1. Plan Inputs'!$G$50="Yes",Worksheet!F76*Worksheet!F57,0)-F95,0) -> 0 | G114: =MAX(IF('1. Plan Inputs'!$G$50="Yes",Worksheet!G76*Worksheet!G57,0)-G95,0) -> 0 | I114: Rx Specialty (Retail): | J114: =MAX(IF('1. Plan Inputs'!$J$50="Yes",Worksheet!J76*Worksheet!J57,0)-J95,0) -> 0 | K114: =MAX(IF('1. Plan Inputs'!$J$50="Yes",Worksheet!K76*Worksheet!K57,0)-K95,0) -> 0 | L114: =MAX(IF('1. Plan Inputs'!$J$50="Yes",Worksheet!L76*Worksheet!L57,0)-L95,0) -> 0 | M114: =MAX(IF('1. Plan Inputs'!$J$50="Yes",Worksheet!M76*Worksheet!M57,0)-M95,0) -> 0 | N114: =MAX(IF('1. Plan Inputs'!$J$50="Yes",Worksheet!N76*Worksheet!N57,0)-N95,0) -> 0 | O114: =MAX(IF('1. Plan Inputs'!$J$50="Yes",Worksheet!O76*Worksheet!O57,0)-O95,0) -> 0 | Q114: Rx Specialty (Retail): | R114: =MAX(IF('1. Plan Inputs'!$M$50="Yes",Worksheet!R76*Worksheet!R57,0)-R95,0) -> 0 | S114: =MAX(IF('1. Plan Inputs'!$M$50="Yes",Worksheet!S76*Worksheet!S57,0)-S95,0) -> 0 | T114: =MAX(IF('1. Plan Inputs'!$M$50="Yes",Worksheet!T76*Worksheet!T57,0)-T95,0) -> 0 | U114: =MAX(IF('1. Plan Inputs'!$M$50="Yes",Worksheet!U76*Worksheet!U57,0)-U95,0) -> 0 | V114: =MAX(IF('1. Plan Inputs'!$M$50="Yes",Worksheet!V76*Worksheet!V57,0)-V95,0) -> 0 | W114: =MAX(IF('1. Plan Inputs'!$M$50="Yes",Worksheet!W76*Worksheet!W57,0)-W95,0) -> 0 | Y114: Rx Specialty (Retail): | Z114: =MAX(IF('1. Plan Inputs'!$P$50="Yes",Worksheet!Z76*Worksheet!Z57,0)-Z95,0) -> 0 | AA114: =MAX(IF('1. Plan Inputs'!$P$50="Yes",Worksheet!AA76*Worksheet!AA57,0)-AA95,0) -> 0 | AB114: =MAX(IF('1. Plan Inputs'!$P$50="Yes",Worksheet!AB76*Worksheet!AB57,0)-AB95,0) -> 0 | AC114: =MAX(IF('1. Plan Inputs'!$P$50="Yes",Worksheet!AC76*Worksheet!AC57,0)-AC95,0) -> 0 | AD114: =MAX(IF('1. Plan Inputs'!$P$50="Yes",Worksheet!AD76*Worksheet!AD57,0)-AD95,0) -> 0 | AE114: =MAX(IF('1. Plan Inputs'!$P$50="Yes",Worksheet!AE76*Worksheet!AE57,0)-AE95,0) -> 0 | AG114: Rx Specialty (Retail): | AH114: =MAX(IF('1. Plan Inputs'!$S$50="Yes",Worksheet!AH76*Worksheet!AH57,0)-AH95,0) -> 0 | AI114: =MAX(IF('1. Plan Inputs'!$S$50="Yes",Worksheet!AI76*Worksheet!AI57,0)-AI95,0) -> 0 | AJ114: =MAX(IF('1. Plan Inputs'!$S$50="Yes",Worksheet!AJ76*Worksheet!AJ57,0)-AJ95,0) -> 0 | AK114: =MAX(IF('1. Plan Inputs'!$S$50="Yes",Worksheet!AK76*Worksheet!AK57,0)-AK95,0) -> 0 | AL114: =MAX(IF('1. Plan Inputs'!$S$50="Yes",Worksheet!AL76*Worksheet!AL57,0)-AL95,0) -> 0 | AM114: =MAX(IF('1. Plan Inputs'!$S$50="Yes",Worksheet!AM76*Worksheet!AM57,0)-AM95,0) -> 0 | AO114: Rx Specialty (Retail): | AP114: =MAX(IF('1. Plan Inputs'!$V$50="Yes",Worksheet!AP76*Worksheet!AP57,0)-AP95,0) -> 0 | AQ114: =MAX(IF('1. Plan Inputs'!$V$50="Yes",Worksheet!AQ76*Worksheet!AQ57,0)-AQ95,0) -> 0 | AR114: =MAX(IF('1. Plan Inputs'!$V$50="Yes",Worksheet!AR76*Worksheet!AR57,0)-AR95,0) -> 0 | AS114: =MAX(IF('1. Plan Inputs'!$V$50="Yes",Worksheet!AS76*Worksheet!AS57,0)-AS95,0) -> 0 | AT114: =MAX(IF('1. Plan Inputs'!$V$50="Yes",Worksheet!AT76*Worksheet!AT57,0)-AT95,0) -> 0 | AU114: =MAX(IF('1. Plan Inputs'!$V$50="Yes",Worksheet!AU76*Worksheet!AU57,0)-AU95,0) -> 0
A115: Rx Generic (Mail): | B115: =MAX(IF('1. Plan Inputs'!$G$50="Yes",Worksheet!B77*Worksheet!B58,0)-B96,0) -> 0 | C115: =MAX(IF('1. Plan Inputs'!$G$50="Yes",Worksheet!C77*Worksheet!C58,0)-C96,0) -> 0 | D115: =MAX(IF('1. Plan Inputs'!$G$50="Yes",Worksheet!D77*Worksheet!D58,0)-D96,0) -> 0 | E115: =MAX(IF('1. Plan Inputs'!$G$50="Yes",Worksheet!E77*Worksheet!E58,0)-E96,0) -> 0 | F115: =MAX(IF('1. Plan Inputs'!$G$50="Yes",Worksheet!F77*Worksheet!F58,0)-F96,0) -> 0 | G115: =MAX(IF('1. Plan Inputs'!$G$50="Yes",Worksheet!G77*Worksheet!G58,0)-G96,0) -> 0 | I115: Rx Generic (Mail): | J115: =MAX(IF('1. Plan Inputs'!$J$50="Yes",Worksheet!J77*Worksheet!J58,0)-J96,0) -> 0 | K115: =MAX(IF('1. Plan Inputs'!$J$50="Yes",Worksheet!K77*Worksheet!K58,0)-K96,0) -> 0 | L115: =MAX(IF('1. Plan Inputs'!$J$50="Yes",Worksheet!L77*Worksheet!L58,0)-L96,0) -> 0 | M115: =MAX(IF('1. Plan Inputs'!$J$50="Yes",Worksheet!M77*Worksheet!M58,0)-M96,0) -> 0 | N115: =MAX(IF('1. Plan Inputs'!$J$50="Yes",Worksheet!N77*Worksheet!N58,0)-N96,0) -> 0 | O115: =MAX(IF('1. Plan Inputs'!$J$50="Yes",Worksheet!O77*Worksheet!O58,0)-O96,0) -> 0 | Q115: Rx Generic (Mail): | R115: =MAX(IF('1. Plan Inputs'!$M$50="Yes",Worksheet!R77*Worksheet!R58,0)-R96,0) -> 0 | S115: =MAX(IF('1. Plan Inputs'!$M$50="Yes",Worksheet!S77*Worksheet!S58,0)-S96,0) -> 0 | T115: =MAX(IF('1. Plan Inputs'!$M$50="Yes",Worksheet!T77*Worksheet!T58,0)-T96,0) -> 0 | U115: =MAX(IF('1. Plan Inputs'!$M$50="Yes",Worksheet!U77*Worksheet!U58,0)-U96,0) -> 0 | V115: =MAX(IF('1. Plan Inputs'!$M$50="Yes",Worksheet!V77*Worksheet!V58,0)-V96,0) -> 0 | W115: =MAX(IF('1. Plan Inputs'!$M$50="Yes",Worksheet!W77*Worksheet!W58,0)-W96,0) -> 0 | Y115: Rx Generic (Mail): | Z115: =MAX(IF('1. Plan Inputs'!$P$50="Yes",Worksheet!Z77*Worksheet!Z58,0)-Z96,0) -> 0 | AA115: =MAX(IF('1. Plan Inputs'!$P$50="Yes",Worksheet!AA77*Worksheet!AA58,0)-AA96,0) -> 0 | AB115: =MAX(IF('1. Plan Inputs'!$P$50="Yes",Worksheet!AB77*Worksheet!AB58,0)-AB96,0) -> 0 | AC115: =MAX(IF('1. Plan Inputs'!$P$50="Yes",Worksheet!AC77*Worksheet!AC58,0)-AC96,0) -> 0 | AD115: =MAX(IF('1. Plan Inputs'!$P$50="Yes",Worksheet!AD77*Worksheet!AD58,0)-AD96,0) -> 0 | AE115: =MAX(IF('1. Plan Inputs'!$P$50="Yes",Worksheet!AE77*Worksheet!AE58,0)-AE96,0) -> 0 | AG115: Rx Generic (Mail): | AH115: =MAX(IF('1. Plan Inputs'!$S$50="Yes",Worksheet!AH77*Worksheet!AH58,0)-AH96,0) -> 0 | AI115: =MAX(IF('1. Plan Inputs'!$S$50="Yes",Worksheet!AI77*Worksheet!AI58,0)-AI96,0) -> 0 | AJ115: =MAX(IF('1. Plan Inputs'!$S$50="Yes",Worksheet!AJ77*Worksheet!AJ58,0)-AJ96,0) -> 0 | AK115: =MAX(IF('1. Plan Inputs'!$S$50="Yes",Worksheet!AK77*Worksheet!AK58,0)-AK96,0) -> 0 | AL115: =MAX(IF('1. Plan Inputs'!$S$50="Yes",Worksheet!AL77*Worksheet!AL58,0)-AL96,0) -> 0 | AM115: =MAX(IF('1. Plan Inputs'!$S$50="Yes",Worksheet!AM77*Worksheet!AM58,0)-AM96,0) -> 0 | AO115: Rx Generic (Mail): | AP115: =MAX(IF('1. Plan Inputs'!$V$50="Yes",Worksheet!AP77*Worksheet!AP58,0)-AP96,0) -> 0 | AQ115: =MAX(IF('1. Plan Inputs'!$V$50="Yes",Worksheet!AQ77*Worksheet!AQ58,0)-AQ96,0) -> 0 | AR115: =MAX(IF('1. Plan Inputs'!$V$50="Yes",Worksheet!AR77*Worksheet!AR58,0)-AR96,0) -> 0 | AS115: =MAX(IF('1. Plan Inputs'!$V$50="Yes",Worksheet!AS77*Worksheet!AS58,0)-AS96,0) -> 0 | AT115: =MAX(IF('1. Plan Inputs'!$V$50="Yes",Worksheet!AT77*Worksheet!AT58,0)-AT96,0) -> 0 | AU115: =MAX(IF('1. Plan Inputs'!$V$50="Yes",Worksheet!AU77*Worksheet!AU58,0)-AU96,0) -> 0
A116: Rx Brand Formulary (Mail): | B116: =MAX(IF('1. Plan Inputs'!$G$50="Yes",Worksheet!B78*Worksheet!B59,0)-B97,0) -> 0 | C116: =MAX(IF('1. Plan Inputs'!$G$50="Yes",Worksheet!C78*Worksheet!C59,0)-C97,0) -> 0 | D116: =MAX(IF('1. Plan Inputs'!$G$50="Yes",Worksheet!D78*Worksheet!D59,0)-D97,0) -> 0 | E116: =MAX(IF('1. Plan Inputs'!$G$50="Yes",Worksheet!E78*Worksheet!E59,0)-E97,0) -> 0 | F116: =MAX(IF('1. Plan Inputs'!$G$50="Yes",Worksheet!F78*Worksheet!F59,0)-F97,0) -> 0 | G116: =MAX(IF('1. Plan Inputs'!$G$50="Yes",Worksheet!G78*Worksheet!G59,0)-G97,0) -> 0 | I116: Rx Brand Formulary (Mail): | J116: =MAX(IF('1. Plan Inputs'!$J$50="Yes",Worksheet!J78*Worksheet!J59,0)-J97,0) -> 0 | K116: =MAX(IF('1. Plan Inputs'!$J$50="Yes",Worksheet!K78*Worksheet!K59,0)-K97,0) -> 0 | L116: =MAX(IF('1. Plan Inputs'!$J$50="Yes",Worksheet!L78*Worksheet!L59,0)-L97,0) -> 0 | M116: =MAX(IF('1. Plan Inputs'!$J$50="Yes",Worksheet!M78*Worksheet!M59,0)-M97,0) -> 0 | N116: =MAX(IF('1. Plan Inputs'!$J$50="Yes",Worksheet!N78*Worksheet!N59,0)-N97,0) -> 0 | O116: =MAX(IF('1. Plan Inputs'!$J$50="Yes",Worksheet!O78*Worksheet!O59,0)-O97,0) -> 0 | Q116: Rx Brand Formulary (Mail): | R116: =MAX(IF('1. Plan Inputs'!$M$50="Yes",Worksheet!R78*Worksheet!R59,0)-R97,0) -> 0 | S116: =MAX(IF('1. Plan Inputs'!$M$50="Yes",Worksheet!S78*Worksheet!S59,0)-S97,0) -> 0 | T116: =MAX(IF('1. Plan Inputs'!$M$50="Yes",Worksheet!T78*Worksheet!T59,0)-T97,0) -> 0 | U116: =MAX(IF('1. Plan Inputs'!$M$50="Yes",Worksheet!U78*Worksheet!U59,0)-U97,0) -> 0 | V116: =MAX(IF('1. Plan Inputs'!$M$50="Yes",Worksheet!V78*Worksheet!V59,0)-V97,0) -> 0 | W116: =MAX(IF('1. Plan Inputs'!$M$50="Yes",Worksheet!W78*Worksheet!W59,0)-W97,0) -> 0 | Y116: Rx Brand Formulary (Mail): | Z116: =MAX(IF('1. Plan Inputs'!$P$50="Yes",Worksheet!Z78*Worksheet!Z59,0)-Z97,0) -> 0 | AA116: =MAX(IF('1. Plan Inputs'!$P$50="Yes",Worksheet!AA78*Worksheet!AA59,0)-AA97,0) -> 0 | AB116: =MAX(IF('1. Plan Inputs'!$P$50="Yes",Worksheet!AB78*Worksheet!AB59,0)-AB97,0) -> 0 | AC116: =MAX(IF('1. Plan Inputs'!$P$50="Yes",Worksheet!AC78*Worksheet!AC59,0)-AC97,0) -> 0 | AD116: =MAX(IF('1. Plan Inputs'!$P$50="Yes",Worksheet!AD78*Worksheet!AD59,0)-AD97,0) -> 0 | AE116: =MAX(IF('1. Plan Inputs'!$P$50="Yes",Worksheet!AE78*Worksheet!AE59,0)-AE97,0) -> 0 | AG116: Rx Brand Formulary (Mail): | AH116: =MAX(IF('1. Plan Inputs'!$S$50="Yes",Worksheet!AH78*Worksheet!AH59,0)-AH97,0) -> 0 | AI116: =MAX(IF('1. Plan Inputs'!$S$50="Yes",Worksheet!AI78*Worksheet!AI59,0)-AI97,0) -> 0 | AJ116: =MAX(IF('1. Plan Inputs'!$S$50="Yes",Worksheet!AJ78*Worksheet!AJ59,0)-AJ97,0) -> 0 | AK116: =MAX(IF('1. Plan Inputs'!$S$50="Yes",Worksheet!AK78*Worksheet!AK59,0)-AK97,0) -> 0 | AL116: =MAX(IF('1. Plan Inputs'!$S$50="Yes",Worksheet!AL78*Worksheet!AL59,0)-AL97,0) -> 0 | AM116: =MAX(IF('1. Plan Inputs'!$S$50="Yes",Worksheet!AM78*Worksheet!AM59,0)-AM97,0) -> 0 | AO116: Rx Brand Formulary (Mail): | AP116: =MAX(IF('1. Plan Inputs'!$V$50="Yes",Worksheet!AP78*Worksheet!AP59,0)-AP97,0) -> 0 | AQ116: =MAX(IF('1. Plan Inputs'!$V$50="Yes",Worksheet!AQ78*Worksheet!AQ59,0)-AQ97,0) -> 0 | AR116: =MAX(IF('1. Plan Inputs'!$V$50="Yes",Worksheet!AR78*Worksheet!AR59,0)-AR97,0) -> 0 | AS116: =MAX(IF('1. Plan Inputs'!$V$50="Yes",Worksheet!AS78*Worksheet!AS59,0)-AS97,0) -> 0 | AT116: =MAX(IF('1. Plan Inputs'!$V$50="Yes",Worksheet!AT78*Worksheet!AT59,0)-AT97,0) -> 0 | AU116: =MAX(IF('1. Plan Inputs'!$V$50="Yes",Worksheet!AU78*Worksheet!AU59,0)-AU97,0) -> 0
A117: Rx Brand Non-Formulary (Mail): | B117: =MAX(IF('1. Plan Inputs'!$G$50="Yes",Worksheet!B79*Worksheet!B60,0)-B98,0) -> 0 | C117: =MAX(IF('1. Plan Inputs'!$G$50="Yes",Worksheet!C79*Worksheet!C60,0)-C98,0) -> 0 | D117: =MAX(IF('1. Plan Inputs'!$G$50="Yes",Worksheet!D79*Worksheet!D60,0)-D98,0) -> 0 | E117: =MAX(IF('1. Plan Inputs'!$G$50="Yes",Worksheet!E79*Worksheet!E60,0)-E98,0) -> 0 | F117: =MAX(IF('1. Plan Inputs'!$G$50="Yes",Worksheet!F79*Worksheet!F60,0)-F98,0) -> 0 | G117: =MAX(IF('1. Plan Inputs'!$G$50="Yes",Worksheet!G79*Worksheet!G60,0)-G98,0) -> 0 | I117: Rx Brand Non-Formulary (Mail): | J117: =MAX(IF('1. Plan Inputs'!$J$50="Yes",Worksheet!J79*Worksheet!J60,0)-J98,0) -> 0 | K117: =MAX(IF('1. Plan Inputs'!$J$50="Yes",Worksheet!K79*Worksheet!K60,0)-K98,0) -> 0 | L117: =MAX(IF('1. Plan Inputs'!$J$50="Yes",Worksheet!L79*Worksheet!L60,0)-L98,0) -> 0 | M117: =MAX(IF('1. Plan Inputs'!$J$50="Yes",Worksheet!M79*Worksheet!M60,0)-M98,0) -> 0 | N117: =MAX(IF('1. Plan Inputs'!$J$50="Yes",Worksheet!N79*Worksheet!N60,0)-N98,0) -> 0 | O117: =MAX(IF('1. Plan Inputs'!$J$50="Yes",Worksheet!O79*Worksheet!O60,0)-O98,0) -> 0 | Q117: Rx Brand Non-Formulary (Mail): | R117: =MAX(IF('1. Plan Inputs'!$M$50="Yes",Worksheet!R79*Worksheet!R60,0)-R98,0) -> 0 | S117: =MAX(IF('1. Plan Inputs'!$M$50="Yes",Worksheet!S79*Worksheet!S60,0)-S98,0) -> 0 | T117: =MAX(IF('1. Plan Inputs'!$M$50="Yes",Worksheet!T79*Worksheet!T60,0)-T98,0) -> 0 | U117: =MAX(IF('1. Plan Inputs'!$M$50="Yes",Worksheet!U79*Worksheet!U60,0)-U98,0) -> 0 | V117: =MAX(IF('1. Plan Inputs'!$M$50="Yes",Worksheet!V79*Worksheet!V60,0)-V98,0) -> 0 | W117: =MAX(IF('1. Plan Inputs'!$M$50="Yes",Worksheet!W79*Worksheet!W60,0)-W98,0) -> 0 | Y117: Rx Brand Non-Formulary (Mail): | Z117: =MAX(IF('1. Plan Inputs'!$P$50="Yes",Worksheet!Z79*Worksheet!Z60,0)-Z98,0) -> 0 | AA117: =MAX(IF('1. Plan Inputs'!$P$50="Yes",Worksheet!AA79*Worksheet!AA60,0)-AA98,0) -> 0 | AB117: =MAX(IF('1. Plan Inputs'!$P$50="Yes",Worksheet!AB79*Worksheet!AB60,0)-AB98,0) -> 0 | AC117: =MAX(IF('1. Plan Inputs'!$P$50="Yes",Worksheet!AC79*Worksheet!AC60,0)-AC98,0) -> 0 | AD117: =MAX(IF('1. Plan Inputs'!$P$50="Yes",Worksheet!AD79*Worksheet!AD60,0)-AD98,0) -> 0 | AE117: =MAX(IF('1. Plan Inputs'!$P$50="Yes",Worksheet!AE79*Worksheet!AE60,0)-AE98,0) -> 0 | AG117: Rx Brand Non-Formulary (Mail): | AH117: =MAX(IF('1. Plan Inputs'!$S$50="Yes",Worksheet!AH79*Worksheet!AH60,0)-AH98,0) -> 0 | AI117: =MAX(IF('1. Plan Inputs'!$S$50="Yes",Worksheet!AI79*Worksheet!AI60,0)-AI98,0) -> 0 | AJ117: =MAX(IF('1. Plan Inputs'!$S$50="Yes",Worksheet!AJ79*Worksheet!AJ60,0)-AJ98,0) -> 0 | AK117: =MAX(IF('1. Plan Inputs'!$S$50="Yes",Worksheet!AK79*Worksheet!AK60,0)-AK98,0) -> 0 | AL117: =MAX(IF('1. Plan Inputs'!$S$50="Yes",Worksheet!AL79*Worksheet!AL60,0)-AL98,0) -> 0 | AM117: =MAX(IF('1. Plan Inputs'!$S$50="Yes",Worksheet!AM79*Worksheet!AM60,0)-AM98,0) -> 0 | AO117: Rx Brand Non-Formulary (Mail): | AP117: =MAX(IF('1. Plan Inputs'!$V$50="Yes",Worksheet!AP79*Worksheet!AP60,0)-AP98,0) -> 0 | AQ117: =MAX(IF('1. Plan Inputs'!$V$50="Yes",Worksheet!AQ79*Worksheet!AQ60,0)-AQ98,0) -> 0 | AR117: =MAX(IF('1. Plan Inputs'!$V$50="Yes",Worksheet!AR79*Worksheet!AR60,0)-AR98,0) -> 0 | AS117: =MAX(IF('1. Plan Inputs'!$V$50="Yes",Worksheet!AS79*Worksheet!AS60,0)-AS98,0) -> 0 | AT117: =MAX(IF('1. Plan Inputs'!$V$50="Yes",Worksheet!AT79*Worksheet!AT60,0)-AT98,0) -> 0 | AU117: =MAX(IF('1. Plan Inputs'!$V$50="Yes",Worksheet!AU79*Worksheet!AU60,0)-AU98,0) -> 0
A118: Rx Specialty (Mail): | B118: =MAX(IF('1. Plan Inputs'!$G$50="Yes",Worksheet!B80*Worksheet!B61,0)-B99,0) -> 0 | C118: =MAX(IF('1. Plan Inputs'!$G$50="Yes",Worksheet!C80*Worksheet!C61,0)-C99,0) -> 0 | D118: =MAX(IF('1. Plan Inputs'!$G$50="Yes",Worksheet!D80*Worksheet!D61,0)-D99,0) -> 0 | E118: =MAX(IF('1. Plan Inputs'!$G$50="Yes",Worksheet!E80*Worksheet!E61,0)-E99,0) -> 0 | F118: =MAX(IF('1. Plan Inputs'!$G$50="Yes",Worksheet!F80*Worksheet!F61,0)-F99,0) -> 0 | G118: =MAX(IF('1. Plan Inputs'!$G$50="Yes",Worksheet!G80*Worksheet!G61,0)-G99,0) -> 0 | I118: Rx Specialty (Mail): | J118: =MAX(IF('1. Plan Inputs'!$J$50="Yes",Worksheet!J80*Worksheet!J61,0)-J99,0) -> 0 | K118: =MAX(IF('1. Plan Inputs'!$J$50="Yes",Worksheet!K80*Worksheet!K61,0)-K99,0) -> 0 | L118: =MAX(IF('1. Plan Inputs'!$J$50="Yes",Worksheet!L80*Worksheet!L61,0)-L99,0) -> 0 | M118: =MAX(IF('1. Plan Inputs'!$J$50="Yes",Worksheet!M80*Worksheet!M61,0)-M99,0) -> 0 | N118: =MAX(IF('1. Plan Inputs'!$J$50="Yes",Worksheet!N80*Worksheet!N61,0)-N99,0) -> 0 | O118: =MAX(IF('1. Plan Inputs'!$J$50="Yes",Worksheet!O80*Worksheet!O61,0)-O99,0) -> 0 | Q118: Rx Specialty (Mail): | R118: =MAX(IF('1. Plan Inputs'!$M$50="Yes",Worksheet!R80*Worksheet!R61,0)-R99,0) -> 0 | S118: =MAX(IF('1. Plan Inputs'!$M$50="Yes",Worksheet!S80*Worksheet!S61,0)-S99,0) -> 0 | T118: =MAX(IF('1. Plan Inputs'!$M$50="Yes",Worksheet!T80*Worksheet!T61,0)-T99,0) -> 0 | U118: =MAX(IF('1. Plan Inputs'!$M$50="Yes",Worksheet!U80*Worksheet!U61,0)-U99,0) -> 0 | V118: =MAX(IF('1. Plan Inputs'!$M$50="Yes",Worksheet!V80*Worksheet!V61,0)-V99,0) -> 0 | W118: =MAX(IF('1. Plan Inputs'!$M$50="Yes",Worksheet!W80*Worksheet!W61,0)-W99,0) -> 0 | Y118: Rx Specialty (Mail): | Z118: =MAX(IF('1. Plan Inputs'!$P$50="Yes",Worksheet!Z80*Worksheet!Z61,0)-Z99,0) -> 0 | AA118: =MAX(IF('1. Plan Inputs'!$P$50="Yes",Worksheet!AA80*Worksheet!AA61,0)-AA99,0) -> 0 | AB118: =MAX(IF('1. Plan Inputs'!$P$50="Yes",Worksheet!AB80*Worksheet!AB61,0)-AB99,0) -> 0 | AC118: =MAX(IF('1. Plan Inputs'!$P$50="Yes",Worksheet!AC80*Worksheet!AC61,0)-AC99,0) -> 0 | AD118: =MAX(IF('1. Plan Inputs'!$P$50="Yes",Worksheet!AD80*Worksheet!AD61,0)-AD99,0) -> 0 | AE118: =MAX(IF('1. Plan Inputs'!$P$50="Yes",Worksheet!AE80*Worksheet!AE61,0)-AE99,0) -> 0 | AG118: Rx Specialty (Mail): | AH118: =MAX(IF('1. Plan Inputs'!$S$50="Yes",Worksheet!AH80*Worksheet!AH61,0)-AH99,0) -> 0 | AI118: =MAX(IF('1. Plan Inputs'!$S$50="Yes",Worksheet!AI80*Worksheet!AI61,0)-AI99,0) -> 0 | AJ118: =MAX(IF('1. Plan Inputs'!$S$50="Yes",Worksheet!AJ80*Worksheet!AJ61,0)-AJ99,0) -> 0 | AK118: =MAX(IF('1. Plan Inputs'!$S$50="Yes",Worksheet!AK80*Worksheet!AK61,0)-AK99,0) -> 0 | AL118: =MAX(IF('1. Plan Inputs'!$S$50="Yes",Worksheet!AL80*Worksheet!AL61,0)-AL99,0) -> 0 | AM118: =MAX(IF('1. Plan Inputs'!$S$50="Yes",Worksheet!AM80*Worksheet!AM61,0)-AM99,0) -> 0 | AO118: Rx Specialty (Mail): | AP118: =MAX(IF('1. Plan Inputs'!$V$50="Yes",Worksheet!AP80*Worksheet!AP61,0)-AP99,0) -> 0 | AQ118: =MAX(IF('1. Plan Inputs'!$V$50="Yes",Worksheet!AQ80*Worksheet!AQ61,0)-AQ99,0) -> 0 | AR118: =MAX(IF('1. Plan Inputs'!$V$50="Yes",Worksheet!AR80*Worksheet!AR61,0)-AR99,0) -> 0 | AS118: =MAX(IF('1. Plan Inputs'!$V$50="Yes",Worksheet!AS80*Worksheet!AS61,0)-AS99,0) -> 0 | AT118: =MAX(IF('1. Plan Inputs'!$V$50="Yes",Worksheet!AT80*Worksheet!AT61,0)-AT99,0) -> 0 | AU118: =MAX(IF('1. Plan Inputs'!$V$50="Yes",Worksheet!AU80*Worksheet!AU61,0)-AU99,0) -> 0
A121: Other Expenses: | B121: =Calculator!C39 -> 0 | C121: =Calculator!D39 -> 0 | D121: =Calculator!E39 -> 0 | E121: =Calculator!F39 -> 0 | F121: =Calculator!G39 -> 0 | G121: =Calculator!H39 -> 0 | I121: Other Expenses: | J121: =Calculator!C39 -> 0 | K121: =Calculator!D39 -> 0 | L121: =Calculator!E39 -> 0 | M121: =Calculator!F39 -> 0 | N121: =Calculator!G39 -> 0 | O121: =Calculator!H39 -> 0 | Q121: Other Expenses: | R121: =Calculator!C39 -> 0 | S121: =Calculator!D39 -> 0 | T121: =Calculator!E39 -> 0 | U121: =Calculator!F39 -> 0 | V121: =Calculator!G39 -> 0 | W121: =Calculator!H39 -> 0 | Y121: Other Expenses: | Z121: =Calculator!C39 -> 0 | AA121: =Calculator!D39 -> 0 | AB121: =Calculator!E39 -> 0 | AC121: =Calculator!F39 -> 0 | AD121: =Calculator!G39 -> 0 | AE121: =Calculator!H39 -> 0 | AG121: Other Expenses: | AH121: =Calculator!C39 -> 0 | AI121: =Calculator!D39 -> 0 | AJ121: =Calculator!E39 -> 0 | AK121: =Calculator!F39 -> 0 | AL121: =Calculator!G39 -> 0 | AM121: =Calculator!H39 -> 0 | AO121: Other Expenses: | AP121: =Calculator!C39 -> 0 | AQ121: =Calculator!D39 -> 0 | AR121: =Calculator!E39 -> 0 | AS121: =Calculator!F39 -> 0 | AT121: =Calculator!G39 -> 0 | AU121: =Calculator!H39 -> 0
A123: Individual Medical Copayments: | B123: =SUM(B83:B91) -> 0 | C123: =SUM(C83:C91) -> 0 | D123: 0 | E123: 0 | F123: 0 | G123: 0 | I123: Individual Medical Copayments: | J123: =SUM(J83:J91) -> 0 | K123: =SUM(K83:K91) -> 0 | L123: =SUM(L83:L91) -> 0 | M123: 0 | N123: 0 | O123: =SUM(O83:O91) -> 0 | Q123: Individual Medical Copayments: | R123: =SUM(R83:R91) -> 0 | S123: =SUM(S83:S91) -> 0 | T123: =SUM(T83:T91) -> 0 | U123: 0 | V123: 0 | W123: =SUM(W83:W91) -> 0 | Y123: Individual Medical Copayments: | Z123: =SUM(Z83:Z91) -> 0 | AA123: =SUM(AA83:AA91) -> 0 | AB123: =SUM(AB83:AB91) -> 0 | AC123: 0 | AD123: 0 | AE123: =SUM(AE83:AE91) -> 0 | AG123: Individual Medical Copayments: | AH123: =SUM(AH83:AH91) -> 0 | AI123: =SUM(AI83:AI91) -> 0 | AJ123: =SUM(AJ83:AJ91) -> 0 | AK123: 0 | AL123: 0 | AM123: =SUM(AM83:AM91) -> 0 | AO123: Individual Medical Copayments: | AP123: =SUM(AP83:AP91) -> 0 | AQ123: =SUM(AQ83:AQ91) -> 0 | AR123: =SUM(AR83:AR91) -> 0 | AS123: 0 | AT123: 0 | AU123: =SUM(AU83:AU91) -> 0
A125: Family Medical Copayments: | B125: =B123 -> 0 | C125: =C123+B125 -> 0 | D125: =D123+C125 -> 0 | E125: =E123+D125 -> 0 | F125: =F123+E125 -> 0 | G125: =G123+F125 -> 0 | I125: Family Medical Copayments: | J125: =J123 -> 0 | K125: =K123+J125 -> 0 | L125: =L123+K125 -> 0 | M125: =M123+L125 -> 0 | N125: =N123+M125 -> 0 | O125: =O123+N125 -> 0 | Q125: Family Medical Copayments: | R125: =R123 -> 0 | S125: =S123+R125 -> 0 | T125: =T123+S125 -> 0 | U125: =U123+T125 -> 0 | V125: =V123+U125 -> 0 | W125: =W123+V125 -> 0 | Y125: Family Medical Copayments: | Z125: =Z123 -> 0 | AA125: =AA123+Z125 -> 0 | AB125: =AB123+AA125 -> 0 | AC125: =AC123+AB125 -> 0 | AD125: =AD123+AC125 -> 0 | AE125: =AE123+AD125 -> 0 | AG125: Family Medical Copayments: | AH125: =AH123 -> 0 | AI125: =AI123+AH125 -> 0 | AJ125: =AJ123+AI125 -> 0 | AK125: =AK123+AJ125 -> 0 | AL125: =AL123+AK125 -> 0 | AM125: =AM123+AL125 -> 0 | AO125: Family Medical Copayments: | AP125: =AP123 -> 0 | AQ125: =AQ123+AP125 -> 0 | AR125: =AR123+AQ125 -> 0 | AS125: =AS123+AR125 -> 0 | AT125: =AT123+AS125 -> 0 | AU125: =AU123+AT125 -> 0
A127: Individual Rx Copayments: | B127: =SUM(B92:B99) -> 0 | C127: =SUM(C92:C99) -> 0 | D127: 0 | E127: 0 | F127: 0 | G127: 0 | I127: Individual Rx Copayments: | J127: =SUM(J92:J99) -> 0 | K127: =SUM(K92:K99) -> 0 | L127: 0 | M127: 0 | N127: 0 | O127: 0 | Q127: Individual Rx Copayments: | R127: =SUM(R92:R99) -> 0 | S127: =SUM(S92:S99) -> 0 | T127: 0 | U127: 0 | V127: 0 | W127: =SUM(W92:W99) -> 0 | Y127: Individual Rx Copayments: | Z127: =SUM(Z92:Z99) -> 0 | AA127: =SUM(AA92:AA99) -> 0 | AB127: 0 | AC127: 0 | AD127: 0 | AE127: =SUM(AE92:AE99) -> 0 | AG127: Individual Rx Copayments: | AH127: =SUM(AH92:AH99) -> 0 | AI127: =SUM(AI92:AI99) -> 0 | AJ127: 0 | AK127: 0 | AL127: 0 | AM127: =SUM(AM92:AM99) -> 0 | AO127: Individual Rx Copayments: | AP127: =SUM(AP92:AP99) -> 0 | AQ127: =SUM(AQ92:AQ99) -> 0 | AR127: 0 | AS127: 0 | AT127: 0 | AU127: =SUM(AU92:AU99) -> 0
A129: Family Rx Copayments: | B129: =B127 -> 0 | C129: =C127+B129 -> 0 | D129: =D127+C129 -> 0 | E129: 0 | F129: 0 | G129: 0 | I129: Family Rx Copayments: | J129: =J127 -> 0 | K129: =K127+J129 -> 0 | L129: =L127+K129 -> 0 | M129: =M127+L129 -> 0 | N129: =N127+M129 -> 0 | O129: =O127+N129 -> 0 | Q129: Family Rx Copayments: | R129: =R127 -> 0 | S129: =S127+R129 -> 0 | T129: =T127+S129 -> 0 | U129: =U127+T129 -> 0 | V129: =V127+U129 -> 0 | W129: =W127+V129 -> 0 | Y129: Family Rx Copayments: | Z129: =Z127 -> 0 | AA129: =AA127+Z129 -> 0 | AB129: =AB127+AA129 -> 0 | AC129: =AC127+AB129 -> 0 | AD129: =AD127+AC129 -> 0 | AE129: =AE127+AD129 -> 0 | AG129: Family Rx Copayments: | AH129: =AH127 -> 0 | AI129: =AI127+AH129 -> 0 | AJ129: =AJ127+AI129 -> 0 | AK129: =AK127+AJ129 -> 0 | AL129: =AL127+AK129 -> 0 | AM129: =AM127+AL129 -> 0 | AO129: Family Rx Copayments: | AP129: =AP127 -> 0 | AQ129: =AQ127+AP129 -> 0 | AR129: =AR127+AQ129 -> 0 | AS129: =AS127+AR129 -> 0 | AT129: =AT127+AS129 -> 0 | AU129: =AU127+AT129 -> 0
A131: Individual Applicable Total: | B131: =SUM(B102:B118,B121) -> 0 | C131: =SUM(C102:C118,C121) -> 0 | D131: 0 | E131: 0 | F131: 0 | G131: 0 | I131: Individual Applicable Total: | J131: =SUM(J102:J118,J121) -> 0 | K131: =SUM(K102:K118,K121) -> 0 | L131: 0 | M131: 0 | N131: 0 | O131: 0 | Q131: Individual Applicable Total: | R131: =SUM(R102:R118,R121) -> 0 | S131: =SUM(S102:S118,S121) -> 0 | T131: 0 | U131: 0 | V131: 0 | W131: 0 | Y131: Individual Applicable Total: | Z131: =SUM(Z102:Z118,Z121) -> 0 | AA131: =SUM(AA102:AA118,AA121) -> 0 | AB131: 0 | AC131: 0 | AD131: 0 | AE131: 0 | AG131: Individual Applicable Total: | AH131: =SUM(AH102:AH118,AH121) -> 0 | AI131: =SUM(AI102:AI118,AI121) -> 0 | AJ131: 0 | AK131: 0 | AL131: 0 | AM131: 0 | AO131: Individual Applicable Total: | AP131: =SUM(AP102:AP118,AP121) -> 0 | AQ131: =SUM(AQ102:AQ118,AQ121) -> 0 | AR131: 0 | AS131: 0 | AT131: 0 | AU131: 0
A133: Family Applicable Total: | B133: =B131 -> 0 | C133: =B133+C131 -> 0 | D133: =D131+C133 -> 0 | E133: =E131+D133 -> 0 | F133: =F131+E133 -> 0 | G133: =G131+F133 -> 0 | I133: Family Applicable Total: | J133: =J131 -> 0 | K133: =J133+K131 -> 0 | L133: =L131+K133 -> 0 | M133: =M131+L133 -> 0 | N133: =N131+M133 -> 0 | O133: =O131+N133 -> 0 | Q133: Family Applicable Total: | R133: =R131 -> 0 | S133: =R133+S131 -> 0 | T133: =T131+S133 -> 0 | U133: =U131+T133 -> 0 | V133: =V131+U133 -> 0 | W133: =W131+V133 -> 0 | Y133: Family Applicable Total: | Z133: =Z131 -> 0 | AA133: =Z133+AA131 -> 0 | AB133: =AB131+AA133 -> 0 | AC133: =AC131+AB133 -> 0 | AD133: =AD131+AC133 -> 0 | AE133: =AE131+AD133 -> 0 | AG133: Family Applicable Total: | AH133: =AH131 -> 0 | AI133: =AH133+AI131 -> 0 | AJ133: =AJ131+AI133 -> 0 | AK133: =AK131+AJ133 -> 0 | AL133: =AL131+AK133 -> 0 | AM133: =AM131+AL133 -> 0 | AO133: Family Applicable Total: | AP133: =AP131 -> 0 | AQ133: =AP133+AQ131 -> 0 | AR133: =AR131+AQ133 -> 0 | AS133: =AS131+AR133 -> 0 | AT133: =AT131+AS133 -> 0 | AU133: =AU131+AT133 -> 0
A135: Embedded Calculation: | I135: Embedded Calculation: | Q135: Embedded Calculation: | Y135: Embedded Calculation: | AG135: Embedded Calculation: | AO135: Embedded Calculation:
B136: Applicable | C136: Deductible | D136: Apply to Coins | E136: Apply to OOP | F136: OOP Max | J136: Applicable | K136: Deductible | L136: Apply to Coins | M136: Apply to OOP | N136: OOP Max | R136: Applicable | S136: Deductible | T136: Apply to Coins | U136: Apply to OOP | V136: OOP Max | Z136: Applicable | AA136: Deductible | AB136: Apply to Coins | AC136: Apply to OOP | AD136: OOP Max | AH136: Applicable | AI136: Deductible | AJ136: Apply to Coins | AK136: Apply to OOP | AL136: OOP Max | AP136: Applicable | AQ136: Deductible | AR136: Apply to Coins | AS136: Apply to OOP | AT136: OOP Max
A137: Member1 | B137: =B131 -> 0 | C137: =MIN(B137,B19) -> 0 | D137: =B137-C137 -> 0 | E137: =IFERROR(IF('1. Plan Inputs'!G50="No",D137*B21+IF('1. Plan Inputs'!$G$46="Yes",Worksheet!B123,0)+IF('1. Plan Inputs'!$G$48="Yes",Worksheet!B127,0),Worksheet!D137*((Worksheet!B21*SUM(Worksheet!B102:B110,Worksheet!B121)+IF('1. Plan Inputs'!$G$48="Yes",SUMPRODUCT(Worksheet!B111:B118,Worksheet!B158:B165),0))/SUM(Worksheet!B102:B121))+IF('1. Plan Inputs'!$G$46="Yes",Worksheet!B123,0)+IF('1. Plan Inputs'!$G$48="Yes",Worksheet!B127,0)),0) -> 0 | F137: =MIN(E137+C137,B22) -> 0 | I137: Member1 | J137: =J131 -> 0 | K137: =MIN(J137,J19) -> 0 | L137: =J137-K137 -> 0 | M137: =IFERROR(IF('1. Plan Inputs'!J50="No",L137*J21+IF('1. Plan Inputs'!$J$46="Yes",Worksheet!J123,0)+IF('1. Plan Inputs'!$J$48="Yes",Worksheet!J127,0),Worksheet!L137*((Worksheet!J21*SUM(Worksheet!J102:J110,Worksheet!J121)+IF('1. Plan Inputs'!$J$48="Yes",SUMPRODUCT(Worksheet!J111:J118,Worksheet!J158:J165),0))/SUM(Worksheet!J102:J121))+IF('1. Plan Inputs'!$J$46="Yes",Worksheet!J123,0)+IF('1. Plan Inputs'!$J$48="Yes",Worksheet!J127,0)),0) -> 0 | N137: =MIN(M137+K137,J22) -> 0 | Q137: Member1 | R137: =R131 -> 0 | S137: =MIN(R137,R19) -> 0 | T137: =R137-S137 -> 0 | U137: =IFERROR(IF('1. Plan Inputs'!M50="No",T137*R21+IF('1. Plan Inputs'!$M$46="Yes",Worksheet!R123,0)+IF('1. Plan Inputs'!$M$48="Yes",Worksheet!R127,0),Worksheet!T137*((Worksheet!R21*SUM(Worksheet!R102:R110,Worksheet!R121)+IF('1. Plan Inputs'!$M$48="Yes",SUMPRODUCT(Worksheet!R111:R118,Worksheet!R158:R165),0))/SUM(Worksheet!R102:R121))+IF('1. Plan Inputs'!$M$46="Yes",Worksheet!R123,0)+IF('1. Plan Inputs'!$M$48="Yes",Worksheet!R127,0)),0) -> 0 | V137: =MIN(U137+S137,R22) -> 0 | Y137: Member1 | Z137: =Z131 -> 0 | AA137: =MIN(Z137,Z19) -> 0 | AB137: =Z137-AA137 -> 0 | AC137: =IFERROR(IF('1. Plan Inputs'!P50="No",AB137*Z21+IF('1. Plan Inputs'!$P$46="Yes",Worksheet!Z123,0)+IF('1. Plan Inputs'!$P$48="Yes",Worksheet!Z127,0),Worksheet!AB137*((Worksheet!Z21*SUM(Worksheet!Z102:Z110,Worksheet!Z121)+IF('1. Plan Inputs'!$P$48="Yes",SUMPRODUCT(Worksheet!Z111:Z118,Worksheet!Z158:Z165),0))/SUM(Worksheet!Z102:Z121))+IF('1. Plan Inputs'!$P$46="Yes",Worksheet!Z123,0)+IF('1. Plan Inputs'!$P$48="Yes",Worksheet!Z127,0)),0) -> 0 | AD137: =MIN(AC137+AA137,Z22) -> 0 | AG137: Member1 | AH137: =AH131 -> 0 | AI137: =MIN(AH137,AH19) -> 0 | AJ137: =AH137-AI137 -> 0 | AK137: =IFERROR(IF('1. Plan Inputs'!S50="No",AJ137*AH21+IF('1. Plan Inputs'!$S$46="Yes",Worksheet!AH123,0)+IF('1. Plan Inputs'!$S$48="Yes",Worksheet!AH127,0),Worksheet!AJ137*((Worksheet!AH21*SUM(Worksheet!AH102:AH110,Worksheet!AH121)+IF('1. Plan Inputs'!$S$48="Yes",SUMPRODUCT(Worksheet!AH111:AH118,Worksheet!AH158:AH165),0))/SUM(Worksheet!AH102:AH121))+IF('1. Plan Inputs'!$S$46="Yes",Worksheet!AH123,0)+IF('1. Plan Inputs'!$S$48="Yes",Worksheet!AH127,0)),0) -> 0 | AL137: =MIN(AK137+AI137,AH22) -> 0 | AO137: Member1 | AP137: =AP131 -> 0 | AQ137: =MIN(AP137,AP19) -> 0 | AR137: =AP137-AQ137 -> 0 | AS137: =IFERROR(IF('1. Plan Inputs'!V50="No",AR137*AP21+IF('1. Plan Inputs'!$V$46="Yes",Worksheet!AP123,0)+IF('1. Plan Inputs'!$V$48="Yes",Worksheet!AP127,0),Worksheet!AR137*((Worksheet!AP21*SUM(Worksheet!AP102:AP110,Worksheet!AP121)+IF('1. Plan Inputs'!$V$48="Yes",SUMPRODUCT(Worksheet!AP111:AP118,Worksheet!AP158:AP165),0))/SUM(Worksheet!AP102:AP121))+IF('1. Plan Inputs'!$V$46="Yes",Worksheet!AP123,0)+IF('1. Plan Inputs'!$V$48="Yes",Worksheet!AP127,0)),0) -> 0 | AT137: =MIN(AS137+AQ137,AP22) -> 0
A138: Member2 | B138: =C131 -> 0 | C138: =IF(MIN(B138,C19)+SUM(C137)<C20,MIN(B138,C19),C20-SUM(C137)) -> 0 | D138: =B138-C138 -> 0 | E138: =IFERROR(IF('1. Plan Inputs'!G50="No",D138*C21+IF('1. Plan Inputs'!$G$46="Yes",Worksheet!C123,0)+IF('1. Plan Inputs'!$G$48="Yes",Worksheet!C127,0),Worksheet!D138*((Worksheet!C21*SUM(Worksheet!C102:C110,Worksheet!C121)+IF('1. Plan Inputs'!$G$48="Yes",SUMPRODUCT(Worksheet!C111:C118,Worksheet!B158:B165),0))/SUM(Worksheet!C102:C121))+IF('1. Plan Inputs'!$G$46="Yes",Worksheet!C123,0)+IF('1. Plan Inputs'!$G$48="Yes",Worksheet!C127,0)),0) -> 0 | F138: =IF(MIN(C138+E138,C22)+SUM(F137)<C23,MIN(C138+E138,C22),C23-SUM(F137)) -> 0 | I138: Member2 | J138: =K131 -> 0 | K138: =IF(MIN(J138,K19)+SUM(K137)<K20,MIN(J138,K19),K20-SUM(K137)) -> 0 | L138: =J138-K138 -> 0 | M138: =IFERROR(IF('1. Plan Inputs'!J50="No",L138*K21+IF('1. Plan Inputs'!$J$46="Yes",Worksheet!K123,0)+IF('1. Plan Inputs'!$J$48="Yes",Worksheet!K127,0),Worksheet!L138*((Worksheet!K21*SUM(Worksheet!K102:K110,Worksheet!K121)+IF('1. Plan Inputs'!$J$48="Yes",SUMPRODUCT(Worksheet!K111:K118,Worksheet!J158:J165),0))/SUM(Worksheet!K102:K121))+IF('1. Plan Inputs'!$J$46="Yes",Worksheet!K123,0)+IF('1. Plan Inputs'!$J$48="Yes",Worksheet!K127,0)),0) -> 0 | N138: =IF(MIN(K138+M138,K22)+SUM(N137)<K23,MIN(K138+M138,K22),K23-SUM(N137)) -> 0 | Q138: Member2 | R138: =S131 -> 0 | S138: =IF(MIN(R138,S19)+SUM(S137)<S20,MIN(R138,S19),S20-SUM(S137)) -> 0 | T138: =R138-S138 -> 0 | U138: =IFERROR(IF('1. Plan Inputs'!M50="No",T138*S21+IF('1. Plan Inputs'!$M$46="Yes",Worksheet!S123,0)+IF('1. Plan Inputs'!$M$48="Yes",Worksheet!S127,0),Worksheet!T138*((Worksheet!S21*SUM(Worksheet!S102:S110,Worksheet!S121)+IF('1. Plan Inputs'!$M$48="Yes",SUMPRODUCT(Worksheet!S111:S118,Worksheet!R158:R165),0))/SUM(Worksheet!S102:S121))+IF('1. Plan Inputs'!$M$46="Yes",Worksheet!S123,0)+IF('1. Plan Inputs'!$M$48="Yes",Worksheet!S127,0)),0) -> 0 | V138: =IF(MIN(S138+U138,S22)+SUM(V137)<S23,MIN(S138+U138,S22),S23-SUM(V137)) -> 0 | Y138: Member2 | Z138: =AA131 -> 0 | AA138: =IF(MIN(Z138,AA19)+SUM(AA137)<AA20,MIN(Z138,AA19),AA20-SUM(AA137)) -> 0 | AB138: =Z138-AA138 -> 0 | AC138: =IFERROR(IF('1. Plan Inputs'!P50="No",AB138*AA21+IF('1. Plan Inputs'!$P$46="Yes",Worksheet!AA123,0)+IF('1. Plan Inputs'!$P$48="Yes",Worksheet!AA127,0),Worksheet!AB138*((Worksheet!AA21*SUM(Worksheet!AA102:AA110,Worksheet!AA121)+IF('1. Plan Inputs'!$P$48="Yes",SUMPRODUCT(Worksheet!AA111:AA118,Worksheet!Z158:Z165),0))/SUM(Worksheet!AA102:AA121))+IF('1. Plan Inputs'!$P$46="Yes",Worksheet!AA123,0)+IF('1. Plan Inputs'!$P$48="Yes",Worksheet!AA127,0)),0) -> 0 | AD138: =IF(MIN(AA138+AC138,AA22)+SUM(AD137)<AA23,MIN(AA138+AC138,AA22),AA23-SUM(AD137)) -> 0 | AG138: Member2 | AH138: =AI131 -> 0 | AI138: =IF(MIN(AH138,AI19)+SUM(AI137)<AI20,MIN(AH138,AI19),AI20-SUM(AI137)) -> 0 | AJ138: =AH138-AI138 -> 0 | AK138: =IFERROR(IF('1. Plan Inputs'!S50="No",AJ138*AI21+IF('1. Plan Inputs'!$S$46="Yes",Worksheet!AI123,0)+IF('1. Plan Inputs'!$S$48="Yes",Worksheet!AI127,0),Worksheet!AJ138*((Worksheet!AI21*SUM(Worksheet!AI102:AI110,Worksheet!AI121)+IF('1. Plan Inputs'!$S$48="Yes",SUMPRODUCT(Worksheet!AI111:AI118,Worksheet!AH158:AH165),0))/SUM(Worksheet!AI102:AI121))+IF('1. Plan Inputs'!$S$46="Yes",Worksheet!AI123,0)+IF('1. Plan Inputs'!$S$48="Yes",Worksheet!AI127,0)),0) -> 0 | AL138: =IF(MIN(AI138+AK138,AI22)+SUM(AL137)<AI23,MIN(AI138+AK138,AI22),AI23-SUM(AL137)) -> 0 | AO138: Member2 | AP138: =AQ131 -> 0 | AQ138: =IF(MIN(AP138,AQ19)+SUM(AQ137)<AQ20,MIN(AP138,AQ19),AQ20-SUM(AQ137)) -> 0 | AR138: =AP138-AQ138 -> 0 | AS138: =IFERROR(IF('1. Plan Inputs'!V50="No",AR138*AQ21+IF('1. Plan Inputs'!$V$46="Yes",Worksheet!AQ123,0)+IF('1. Plan Inputs'!$V$48="Yes",Worksheet!AQ127,0),Worksheet!AR138*((Worksheet!AQ21*SUM(Worksheet!AQ102:AQ110,Worksheet!AQ121)+IF('1. Plan Inputs'!$V$48="Yes",SUMPRODUCT(Worksheet!AQ111:AQ118,Worksheet!AP158:AP165),0))/SUM(Worksheet!AQ102:AQ121))+IF('1. Plan Inputs'!$V$46="Yes",Worksheet!AQ123,0)+IF('1. Plan Inputs'!$V$48="Yes",Worksheet!AQ127,0)),0) -> 0 | AT138: =IF(MIN(AQ138+AS138,AQ22)+SUM(AT137)<AQ23,MIN(AQ138+AS138,AQ22),AQ23-SUM(AT137)) -> 0
A139: Member3 | B139: =D131 -> 0 | C139: =IF(MIN(B139,D19)+SUM(C137:C138)<D20,MIN(B139,D19),D20-SUM(C137:C138)) -> 0 | D139: 0 | E139: =IFERROR(IF('1. Plan Inputs'!G50="No",D139*D21+IF('1. Plan Inputs'!$G$46="Yes",Worksheet!D123,0)+IF('1. Plan Inputs'!$G$48="Yes",Worksheet!D127,0),Worksheet!D139*((Worksheet!D21*SUM(Worksheet!D102:D110,Worksheet!D121)+IF('1. Plan Inputs'!$G$48="Yes",SUMPRODUCT(Worksheet!D111:D118,Worksheet!B158:B165),0))/SUM(Worksheet!D102:D121))+IF('1. Plan Inputs'!$G$46="Yes",Worksheet!D123,0)+IF('1. Plan Inputs'!$G$48="Yes",Worksheet!D127,0)),0) -> 0 | F139: =IF(MIN(C139+E139,D22)+SUM(F137:F138)<D23,MIN(C139+E139,D22),D23-SUM(F137:F138)) -> 0 | I139: Member3 | J139: =L131 -> 0 | K139: =IF(MIN(J139,L19)+SUM(K137:K138)<L20,MIN(J139,L19),L20-SUM(K137:K138)) -> 0 | L139: 0 | M139: =IFERROR(IF('1. Plan Inputs'!J50="No",L139*L21+IF('1. Plan Inputs'!$J$46="Yes",Worksheet!L123,0)+IF('1. Plan Inputs'!$J$48="Yes",Worksheet!L127,0),Worksheet!L139*((Worksheet!L21*SUM(Worksheet!L102:L110,Worksheet!L121)+IF('1. Plan Inputs'!$J$48="Yes",SUMPRODUCT(Worksheet!L111:L118,Worksheet!J158:J165),0))/SUM(Worksheet!L102:L121))+IF('1. Plan Inputs'!$J$46="Yes",Worksheet!L123,0)+IF('1. Plan Inputs'!$J$48="Yes",Worksheet!L127,0)),0) -> 0 | N139: =IF(MIN(K139+M139,L22)+SUM(N137:N138)<L23,MIN(K139+M139,L22),L23-SUM(N137:N138)) -> 0 | Q139: Member3 | R139: =T131 -> 0 | S139: =IF(MIN(R139,T19)+SUM(S137:S138)<T20,MIN(R139,T19),T20-SUM(S137:S138)) -> 0 | T139: 0 | U139: =IFERROR(IF('1. Plan Inputs'!M50="No",T139*T21+IF('1. Plan Inputs'!$M$46="Yes",Worksheet!T123,0)+IF('1. Plan Inputs'!$M$48="Yes",Worksheet!T127,0),Worksheet!T139*((Worksheet!T21*SUM(Worksheet!T102:T110,Worksheet!T121)+IF('1. Plan Inputs'!$M$48="Yes",SUMPRODUCT(Worksheet!T111:T118,Worksheet!R158:R165),0))/SUM(Worksheet!T102:T121))+IF('1. Plan Inputs'!$M$46="Yes",Worksheet!T123,0)+IF('1. Plan Inputs'!$M$48="Yes",Worksheet!T127,0)),0) -> 0 | V139: =IF(MIN(S139+U139,T22)+SUM(V137:V138)<T23,MIN(S139+U139,T22),T23-SUM(V137:V138)) -> 0 | Y139: Member3 | Z139: =AB131 -> 0 | AA139: =IF(MIN(Z139,AB19)+SUM(AA137:AA138)<AB20,MIN(Z139,AB19),AB20-SUM(AA137:AA138)) -> 0 | AB139: 0 | AC139: =IFERROR(IF('1. Plan Inputs'!P50="No",AB139*AB21+IF('1. Plan Inputs'!$P$46="Yes",Worksheet!AB123,0)+IF('1. Plan Inputs'!$P$48="Yes",Worksheet!AB127,0),Worksheet!AB139*((Worksheet!AB21*SUM(Worksheet!AB102:AB110,Worksheet!AB121)+IF('1. Plan Inputs'!$P$48="Yes",SUMPRODUCT(Worksheet!AB111:AB118,Worksheet!Z158:Z165),0))/SUM(Worksheet!AB102:AB121))+IF('1. Plan Inputs'!$P$46="Yes",Worksheet!AB123,0)+IF('1. Plan Inputs'!$P$48="Yes",Worksheet!AB127,0)),0) -> 0 | AD139: =IF(MIN(AA139+AC139,AB22)+SUM(AD137:AD138)<AB23,MIN(AA139+AC139,AB22),AB23-SUM(AD137:AD138)) -> 0 | AG139: Member3 | AH139: =AJ131 -> 0 | AI139: =IF(MIN(AH139,AJ19)+SUM(AI137:AI138)<AJ20,MIN(AH139,AJ19),AJ20-SUM(AI137:AI138)) -> 0 | AJ139: 0 | AK139: =IFERROR(IF('1. Plan Inputs'!S50="No",AJ139*AJ21+IF('1. Plan Inputs'!$S$46="Yes",Worksheet!AJ123,0)+IF('1. Plan Inputs'!$S$48="Yes",Worksheet!AJ127,0),Worksheet!AJ139*((Worksheet!AJ21*SUM(Worksheet!AJ102:AJ110,Worksheet!AJ121)+IF('1. Plan Inputs'!$S$48="Yes",SUMPRODUCT(Worksheet!AJ111:AJ118,Worksheet!AH158:AH165),0))/SUM(Worksheet!AJ102:AJ121))+IF('1. Plan Inputs'!$S$46="Yes",Worksheet!AJ123,0)+IF('1. Plan Inputs'!$S$48="Yes",Worksheet!AJ127,0)),0) -> 0 | AL139: =IF(MIN(AI139+AK139,AJ22)+SUM(AL137:AL138)<AJ23,MIN(AI139+AK139,AJ22),AJ23-SUM(AL137:AL138)) -> 0 | AO139: Member3 | AP139: =AR131 -> 0 | AQ139: =IF(MIN(AP139,AR19)+SUM(AQ137:AQ138)<AR20,MIN(AP139,AR19),AR20-SUM(AQ137:AQ138)) -> 0 | AR139: 0 | AS139: =IFERROR(IF('1. Plan Inputs'!V50="No",AR139*AR21+IF('1. Plan Inputs'!$V$46="Yes",Worksheet!AR123,0)+IF('1. Plan Inputs'!$V$48="Yes",Worksheet!AR127,0),Worksheet!AR139*((Worksheet!AR21*SUM(Worksheet!AR102:AR110,Worksheet!AR121)+IF('1. Plan Inputs'!$V$48="Yes",SUMPRODUCT(Worksheet!AR111:AR118,Worksheet!AP158:AP165),0))/SUM(Worksheet!AR102:AR121))+IF('1. Plan Inputs'!$V$46="Yes",Worksheet!AR123,0)+IF('1. Plan Inputs'!$V$48="Yes",Worksheet!AR127,0)),0) -> 0 | AT139: =IF(MIN(AQ139+AS139,AR22)+SUM(AT137:AT138)<AR23,MIN(AQ139+AS139,AR22),AR23-SUM(AT137:AT138)) -> 0
A140: Member4 | B140: =E131 -> 0 | C140: =IF(MIN(B140,E19)+SUM(C137:C139)<E20,MIN(B140,E19),E20-SUM(C137:C139)) -> 0 | D140: 0 | E140: =IFERROR(IF('1. Plan Inputs'!G50="No",D140*E21+IF('1. Plan Inputs'!$G$46="Yes",Worksheet!E123,0)+IF('1. Plan Inputs'!$G$48="Yes",Worksheet!E127,0),Worksheet!D140*((Worksheet!E21*SUM(Worksheet!E102:E110,Worksheet!E121)+IF('1. Plan Inputs'!$G$48="Yes",SUMPRODUCT(Worksheet!E111:E118,Worksheet!B158:B165),0))/SUM(Worksheet!E102:E121))+IF('1. Plan Inputs'!$G$46="Yes",Worksheet!E123,0)+IF('1. Plan Inputs'!$G$48="Yes",Worksheet!E127,0)),0) -> 0 | F140: =IF(MIN(C140+E140,E22)+SUM(F137:F139)<E23,MIN(C140+E140,E22),E23-SUM(F137:F139)) -> 0 | I140: Member4 | J140: =M131 -> 0 | K140: =IF(MIN(J140,M19)+SUM(K137:K139)<M20,MIN(J140,M19),M20-SUM(K137:K139)) -> 0 | L140: 0 | M140: =IFERROR(IF('1. Plan Inputs'!J50="No",L140*M21+IF('1. Plan Inputs'!$J$46="Yes",Worksheet!M123,0)+IF('1. Plan Inputs'!$J$48="Yes",Worksheet!M127,0),Worksheet!L140*((Worksheet!M21*SUM(Worksheet!M102:M110,Worksheet!M121)+IF('1. Plan Inputs'!$J$48="Yes",SUMPRODUCT(Worksheet!M111:M118,Worksheet!J158:J165),0))/SUM(Worksheet!M102:M121))+IF('1. Plan Inputs'!$J$46="Yes",Worksheet!M123,0)+IF('1. Plan Inputs'!$J$48="Yes",Worksheet!M127,0)),0) -> 0 | N140: =IF(MIN(K140+M140,M22)+SUM(N137:N139)<M23,MIN(K140+M140,M22),M23-SUM(N137:N139)) -> 0 | Q140: Member4 | R140: =U131 -> 0 | S140: =IF(MIN(R140,U19)+SUM(S137:S139)<U20,MIN(R140,U19),U20-SUM(S137:S139)) -> 0 | T140: 0 | U140: =IFERROR(IF('1. Plan Inputs'!M50="No",T140*U21+IF('1. Plan Inputs'!$M$46="Yes",Worksheet!U123,0)+IF('1. Plan Inputs'!$M$48="Yes",Worksheet!U127,0),Worksheet!T140*((Worksheet!U21*SUM(Worksheet!U102:U110,Worksheet!U121)+IF('1. Plan Inputs'!$M$48="Yes",SUMPRODUCT(Worksheet!U111:U118,Worksheet!R158:R165),0))/SUM(Worksheet!U102:U121))+IF('1. Plan Inputs'!$M$46="Yes",Worksheet!U123,0)+IF('1. Plan Inputs'!$M$48="Yes",Worksheet!U127,0)),0) -> 0 | V140: =IF(MIN(S140+U140,U22)+SUM(V137:V139)<U23,MIN(S140+U140,U22),U23-SUM(V137:V139)) -> 0 | Y140: Member4 | Z140: =AC131 -> 0 | AA140: =IF(MIN(Z140,AC19)+SUM(AA137:AA139)<AC20,MIN(Z140,AC19),AC20-SUM(AA137:AA139)) -> 0 | AB140: 0 | AC140: =IFERROR(IF('1. Plan Inputs'!P50="No",AB140*AC21+IF('1. Plan Inputs'!$P$46="Yes",Worksheet!AC123,0)+IF('1. Plan Inputs'!$P$48="Yes",Worksheet!AC127,0),Worksheet!AB140*((Worksheet!AC21*SUM(Worksheet!AC102:AC110,Worksheet!AC121)+IF('1. Plan Inputs'!$P$48="Yes",SUMPRODUCT(Worksheet!AC111:AC118,Worksheet!Z158:Z165),0))/SUM(Worksheet!AC102:AC121))+IF('1. Plan Inputs'!$P$46="Yes",Worksheet!AC123,0)+IF('1. Plan Inputs'!$P$48="Yes",Worksheet!AC127,0)),0) -> 0 | AD140: =IF(MIN(AA140+AC140,AC22)+SUM(AD137:AD139)<AC23,MIN(AA140+AC140,AC22),AC23-SUM(AD137:AD139)) -> 0 | AG140: Member4 | AH140: =AK131 -> 0 | AI140: =IF(MIN(AH140,AK19)+SUM(AI137:AI139)<AK20,MIN(AH140,AK19),AK20-SUM(AI137:AI139)) -> 0 | AJ140: 0 | AK140: =IFERROR(IF('1. Plan Inputs'!S50="No",AJ140*AK21+IF('1. Plan Inputs'!$S$46="Yes",Worksheet!AK123,0)+IF('1. Plan Inputs'!$S$48="Yes",Worksheet!AK127,0),Worksheet!AJ140*((Worksheet!AK21*SUM(Worksheet!AK102:AK110,Worksheet!AK121)+IF('1. Plan Inputs'!$S$48="Yes",SUMPRODUCT(Worksheet!AK111:AK118,Worksheet!AH158:AH165),0))/SUM(Worksheet!AK102:AK121))+IF('1. Plan Inputs'!$S$46="Yes",Worksheet!AK123,0)+IF('1. Plan Inputs'!$S$48="Yes",Worksheet!AK127,0)),0) -> 0 | AL140: =IF(MIN(AI140+AK140,AK22)+SUM(AL137:AL139)<AK23,MIN(AI140+AK140,AK22),AK23-SUM(AL137:AL139)) -> 0 | AO140: Member4 | AP140: =AS131 -> 0 | AQ140: =IF(MIN(AP140,AS19)+SUM(AQ137:AQ139)<AS20,MIN(AP140,AS19),AS20-SUM(AQ137:AQ139)) -> 0 | AR140: 0 | AS140: =IFERROR(IF('1. Plan Inputs'!V50="No",AR140*AS21+IF('1. Plan Inputs'!$V$46="Yes",Worksheet!AS123,0)+IF('1. Plan Inputs'!$V$48="Yes",Worksheet!AS127,0),Worksheet!AR140*((Worksheet!AS21*SUM(Worksheet!AS102:AS110,Worksheet!AS121)+IF('1. Plan Inputs'!$V$48="Yes",SUMPRODUCT(Worksheet!AS111:AS118,Worksheet!AP158:AP165),0))/SUM(Worksheet!AS102:AS121))+IF('1. Plan Inputs'!$V$46="Yes",Worksheet!AS123,0)+IF('1. Plan Inputs'!$V$48="Yes",Worksheet!AS127,0)),0) -> 0 | AT140: =IF(MIN(AQ140+AS140,AS22)+SUM(AT137:AT139)<AS23,MIN(AQ140+AS140,AS22),AS23-SUM(AT137:AT139)) -> 0
A141: Member5 | B141: =F131 -> 0 | C141: =IF(MIN(B141,F19)+SUM(C137:C140)<F20,MIN(B141,F19),F20-SUM(C137:C140)) -> 0 | D141: 0 | E141: =IFERROR(IF('1. Plan Inputs'!G50="No",D141*F21+IF('1. Plan Inputs'!$G$46="Yes",Worksheet!F123,0)+IF('1. Plan Inputs'!$G$48="Yes",Worksheet!F127,0),Worksheet!D141*((Worksheet!F21*SUM(Worksheet!F102:F110,Worksheet!F121)+IF('1. Plan Inputs'!$G$48="Yes",SUMPRODUCT(Worksheet!F111:F118,Worksheet!B158:B165),0))/SUM(Worksheet!F102:F121))+IF('1. Plan Inputs'!$G$46="Yes",Worksheet!F123,0)+IF('1. Plan Inputs'!$G$48="Yes",Worksheet!F127,0)),0) -> 0 | F141: =IF(MIN(C141+E141,F22)+SUM(F137:F140)<F23,MIN(C141+E141,F22),F23-SUM(F137:F140)) -> 0 | I141: Member5 | J141: =N131 -> 0 | K141: =IF(MIN(J141,N19)+SUM(K137:K140)<N20,MIN(J141,N19),N20-SUM(K137:K140)) -> 0 | L141: 0 | M141: =IFERROR(IF('1. Plan Inputs'!J50="No",L141*N21+IF('1. Plan Inputs'!$J$46="Yes",Worksheet!N123,0)+IF('1. Plan Inputs'!$J$48="Yes",Worksheet!N127,0),Worksheet!L141*((Worksheet!N21*SUM(Worksheet!N102:N110,Worksheet!N121)+IF('1. Plan Inputs'!$J$48="Yes",SUMPRODUCT(Worksheet!N111:N118,Worksheet!J158:J165),0))/SUM(Worksheet!N102:N121))+IF('1. Plan Inputs'!$J$46="Yes",Worksheet!N123,0)+IF('1. Plan Inputs'!$J$48="Yes",Worksheet!N127,0)),0) -> 0 | N141: =IF(MIN(K141+M141,N22)+SUM(N137:N140)<N23,MIN(K141+M141,N22),N23-SUM(N137:N140)) -> 0 | Q141: Member5 | R141: =V131 -> 0 | S141: =IF(MIN(R141,V19)+SUM(S137:S140)<V20,MIN(R141,V19),V20-SUM(S137:S140)) -> 0 | T141: 0 | U141: =IFERROR(IF('1. Plan Inputs'!M50="No",T141*V21+IF('1. Plan Inputs'!$M$46="Yes",Worksheet!V123,0)+IF('1. Plan Inputs'!$M$48="Yes",Worksheet!V127,0),Worksheet!T141*((Worksheet!V21*SUM(Worksheet!V102:V110,Worksheet!V121)+IF('1. Plan Inputs'!$M$48="Yes",SUMPRODUCT(Worksheet!V111:V118,Worksheet!R158:R165),0))/SUM(Worksheet!V102:V121))+IF('1. Plan Inputs'!$M$46="Yes",Worksheet!V123,0)+IF('1. Plan Inputs'!$M$48="Yes",Worksheet!V127,0)),0) -> 0 | V141: =IF(MIN(S141+U141,V22)+SUM(V137:V140)<V23,MIN(S141+U141,V22),V23-SUM(V137:V140)) -> 0 | Y141: Member5 | Z141: =AD131 -> 0 | AA141: =IF(MIN(Z141,AD19)+SUM(AA137:AA140)<AD20,MIN(Z141,AD19),AD20-SUM(AA137:AA140)) -> 0 | AB141: 0 | AC141: =IFERROR(IF('1. Plan Inputs'!P50="No",AB141*AD21+IF('1. Plan Inputs'!$P$46="Yes",Worksheet!AD123,0)+IF('1. Plan Inputs'!$P$48="Yes",Worksheet!AD127,0),Worksheet!AB141*((Worksheet!AD21*SUM(Worksheet!AD102:AD110,Worksheet!AD121)+IF('1. Plan Inputs'!$P$48="Yes",SUMPRODUCT(Worksheet!AD111:AD118,Worksheet!Z158:Z165),0))/SUM(Worksheet!AD102:AD121))+IF('1. Plan Inputs'!$P$46="Yes",Worksheet!AD123,0)+IF('1. Plan Inputs'!$P$48="Yes",Worksheet!AD127,0)),0) -> 0 | AD141: =IF(MIN(AA141+AC141,AD22)+SUM(AD137:AD140)<AD23,MIN(AA141+AC141,AD22),AD23-SUM(AD137:AD140)) -> 0 | AG141: Member5 | AH141: =AL131 -> 0 | AI141: =IF(MIN(AH141,AL19)+SUM(AI137:AI140)<AL20,MIN(AH141,AL19),AL20-SUM(AI137:AI140)) -> 0 | AJ141: 0 | AK141: =IFERROR(IF('1. Plan Inputs'!S50="No",AJ141*AL21+IF('1. Plan Inputs'!$S$46="Yes",Worksheet!AL123,0)+IF('1. Plan Inputs'!$S$48="Yes",Worksheet!AL127,0),Worksheet!AJ141*((Worksheet!AL21*SUM(Worksheet!AL102:AL110,Worksheet!AL121)+IF('1. Plan Inputs'!$S$48="Yes",SUMPRODUCT(Worksheet!AL111:AL118,Worksheet!AH158:AH165),0))/SUM(Worksheet!AL102:AL121))+IF('1. Plan Inputs'!$S$46="Yes",Worksheet!AL123,0)+IF('1. Plan Inputs'!$S$48="Yes",Worksheet!AL127,0)),0) -> 0 | AL141: =IF(MIN(AI141+AK141,AL22)+SUM(AL137:AL140)<AL23,MIN(AI141+AK141,AL22),AL23-SUM(AL137:AL140)) -> 0 | AO141: Member5 | AP141: =AT131 -> 0 | AQ141: =IF(MIN(AP141,AT19)+SUM(AQ137:AQ140)<AT20,MIN(AP141,AT19),AT20-SUM(AQ137:AQ140)) -> 0 | AR141: 0 | AS141: =IFERROR(IF('1. Plan Inputs'!V50="No",AR141*AT21+IF('1. Plan Inputs'!$V$46="Yes",Worksheet!AT123,0)+IF('1. Plan Inputs'!$V$48="Yes",Worksheet!AT127,0),Worksheet!AR141*((Worksheet!AT21*SUM(Worksheet!AT102:AT110,Worksheet!AT121)+IF('1. Plan Inputs'!$V$48="Yes",SUMPRODUCT(Worksheet!AT111:AT118,Worksheet!AP158:AP165),0))/SUM(Worksheet!AT102:AT121))+IF('1. Plan Inputs'!$V$46="Yes",Worksheet!AT123,0)+IF('1. Plan Inputs'!$V$48="Yes",Worksheet!AT127,0)),0) -> 0 | AT141: =IF(MIN(AQ141+AS141,AT22)+SUM(AT137:AT140)<AT23,MIN(AQ141+AS141,AT22),AT23-SUM(AT137:AT140)) -> 0
A142: Member6 | B142: =G131 -> 0 | C142: =IF(MIN(B142,G19)+SUM(C137:C141)<G20,MIN(B142,G19),G20-SUM(C137:C141)) -> 0 | D142: 0 | E142: =IFERROR(IF('1. Plan Inputs'!G50="No",D142*G21+IF('1. Plan Inputs'!$G$46="Yes",Worksheet!G123,0)+IF('1. Plan Inputs'!$G$48="Yes",Worksheet!G127,0),Worksheet!D142*((Worksheet!G21*SUM(Worksheet!G102:G110,Worksheet!G121)+IF('1. Plan Inputs'!$G$48="Yes",SUMPRODUCT(Worksheet!G111:G118,Worksheet!B158:B165),0))/SUM(Worksheet!G102:G121))+IF('1. Plan Inputs'!$G$46="Yes",Worksheet!G123,0)+IF('1. Plan Inputs'!$G$48="Yes",Worksheet!G127,0)),0) -> 0 | F142: =IF(MIN(C142+E142,G22)+SUM(F137:F141)<G23,MIN(C142+E142,G22),G23-SUM(F137:F141)) -> 0 | I142: Member6 | J142: =O131 -> 0 | K142: =IF(MIN(J142,O19)+SUM(K137:K141)<O20,MIN(J142,O19),O20-SUM(K137:K141)) -> 0 | L142: 0 | M142: =IFERROR(IF('1. Plan Inputs'!J50="No",L142*O21+IF('1. Plan Inputs'!$J$46="Yes",Worksheet!O123,0)+IF('1. Plan Inputs'!$J$48="Yes",Worksheet!O127,0),Worksheet!L142*((Worksheet!O21*SUM(Worksheet!O102:O110,Worksheet!O121)+IF('1. Plan Inputs'!$J$48="Yes",SUMPRODUCT(Worksheet!O111:O118,Worksheet!J158:J165),0))/SUM(Worksheet!O102:O121))+IF('1. Plan Inputs'!$J$46="Yes",Worksheet!O123,0)+IF('1. Plan Inputs'!$J$48="Yes",Worksheet!O127,0)),0) -> 0 | N142: =IF(MIN(K142+M142,O22)+SUM(N137:N141)<O23,MIN(K142+M142,O22),O23-SUM(N137:N141)) -> 0 | Q142: Member6 | R142: =W131 -> 0 | S142: =IF(MIN(R142,W19)+SUM(S137:S141)<W20,MIN(R142,W19),W20-SUM(S137:S141)) -> 0 | T142: 0 | U142: =IFERROR(IF('1. Plan Inputs'!M50="No",T142*W21+IF('1. Plan Inputs'!$M$46="Yes",Worksheet!W123,0)+IF('1. Plan Inputs'!$M$48="Yes",Worksheet!W127,0),Worksheet!T142*((Worksheet!W21*SUM(Worksheet!W102:W110,Worksheet!W121)+IF('1. Plan Inputs'!$M$48="Yes",SUMPRODUCT(Worksheet!W111:W118,Worksheet!R158:R165),0))/SUM(Worksheet!W102:W121))+IF('1. Plan Inputs'!$M$46="Yes",Worksheet!W123,0)+IF('1. Plan Inputs'!$M$48="Yes",Worksheet!W127,0)),0) -> 0 | V142: =IF(MIN(S142+U142,W22)+SUM(V137:V141)<W23,MIN(S142+U142,W22),W23-SUM(V137:V141)) -> 0 | Y142: Member6 | Z142: =AE131 -> 0 | AA142: =IF(MIN(Z142,AE19)+SUM(AA137:AA141)<AE20,MIN(Z142,AE19),AE20-SUM(AA137:AA141)) -> 0 | AB142: 0 | AC142: =IFERROR(IF('1. Plan Inputs'!P50="No",AB142*AE21+IF('1. Plan Inputs'!$P$46="Yes",Worksheet!AE123,0)+IF('1. Plan Inputs'!$P$48="Yes",Worksheet!AE127,0),Worksheet!AB142*((Worksheet!AE21*SUM(Worksheet!AE102:AE110,Worksheet!AE121)+IF('1. Plan Inputs'!$P$48="Yes",SUMPRODUCT(Worksheet!AE111:AE118,Worksheet!Z158:Z165),0))/SUM(Worksheet!AE102:AE121))+IF('1. Plan Inputs'!$P$46="Yes",Worksheet!AE123,0)+IF('1. Plan Inputs'!$P$48="Yes",Worksheet!AE127,0)),0) -> 0 | AD142: =IF(MIN(AA142+AC142,AE22)+SUM(AD137:AD141)<AE23,MIN(AA142+AC142,AE22),AE23-SUM(AD137:AD141)) -> 0 | AG142: Member6 | AH142: =AM131 -> 0 | AI142: =IF(MIN(AH142,AM19)+SUM(AI137:AI141)<AM20,MIN(AH142,AM19),AM20-SUM(AI137:AI141)) -> 0 | AJ142: 0 | AK142: =IFERROR(IF('1. Plan Inputs'!S50="No",AJ142*AM21+IF('1. Plan Inputs'!$S$46="Yes",Worksheet!AM123,0)+IF('1. Plan Inputs'!$S$48="Yes",Worksheet!AM127,0),Worksheet!AJ142*((Worksheet!AM21*SUM(Worksheet!AM102:AM110,Worksheet!AM121)+IF('1. Plan Inputs'!$S$48="Yes",SUMPRODUCT(Worksheet!AM111:AM118,Worksheet!AH158:AH165),0))/SUM(Worksheet!AM102:AM121))+IF('1. Plan Inputs'!$S$46="Yes",Worksheet!AM123,0)+IF('1. Plan Inputs'!$S$48="Yes",Worksheet!AM127,0)),0) -> 0 | AL142: =IF(MIN(AI142+AK142,AM22)+SUM(AL137:AL141)<AM23,MIN(AI142+AK142,AM22),AM23-SUM(AL137:AL141)) -> 0 | AO142: Member6 | AP142: =AU131 -> 0 | AQ142: =IF(MIN(AP142,AU19)+SUM(AQ137:AQ141)<AU20,MIN(AP142,AU19),AU20-SUM(AQ137:AQ141)) -> 0 | AR142: 0 | AS142: =IFERROR(IF('1. Plan Inputs'!V50="No",AR142*AU21+IF('1. Plan Inputs'!$V$46="Yes",Worksheet!AU123,0)+IF('1. Plan Inputs'!$V$48="Yes",Worksheet!AU127,0),Worksheet!AR142*((Worksheet!AU21*SUM(Worksheet!AU102:AU110,Worksheet!AU121)+IF('1. Plan Inputs'!$V$48="Yes",SUMPRODUCT(Worksheet!AU111:AU118,Worksheet!AP158:AP165),0))/SUM(Worksheet!AU102:AU121))+IF('1. Plan Inputs'!$V$46="Yes",Worksheet!AU123,0)+IF('1. Plan Inputs'!$V$48="Yes",Worksheet!AU127,0)),0) -> 0 | AT142: =IF(MIN(AQ142+AS142,AU22)+SUM(AT137:AT141)<AU23,MIN(AQ142+AS142,AU22),AU23-SUM(AT137:AT141)) -> 0
A143: Total | B143: =SUM(B137:B142) -> 0 | C143: =SUM(C137:C142) -> 0 | D143: =SUM(D137:D142) -> 0 | E143: =SUM(E137:E142) -> 0 | F143: =SUM(F137:F142)+IF('1. Plan Inputs'!G46="Yes",0,SUM(Worksheet!B123:G123))+IF('1. Plan Inputs'!G48="Yes",0,SUM(Worksheet!B127:G127))+IFERROR(IF('1. Plan Inputs'!G48="Yes",0,D137*SUMPRODUCT(B111:B118,B158:B165/SUM(B102:B121))),0)+IFERROR(IF('1. Plan Inputs'!G48="Yes",0,D138*SUMPRODUCT(C111:C118,B158:B165/SUM(C102:C121))),0)+IFERROR(IF('1. Plan Inputs'!G48="Yes",0,D139*SUMPRODUCT(D111:D118,B158:B165/SUM(D102:D121))),0)+IFERROR(IF('1. Plan Inputs'!G48="Yes",0,D140*SUMPRODUCT(E111:E118,B158:B165/SUM(E102:E121))),0)+IFERROR(IF('1. Plan Inputs'!G48="Yes",0,D141*SUMPRODUCT(F111:F118,B158:B165/SUM(F102:F121))),0)+IFERROR(IF('1. Plan Inputs'!G48="Yes",0,D142*SUMPRODUCT(G111:G118,B158:B165/SUM(G102:G121))),0) -> 0 | I143: Total | J143: =SUM(J137:J142) -> 0 | K143: =SUM(K137:K142) -> 0 | L143: =SUM(L137:L142) -> 0 | M143: =SUM(M137:M142) -> 0 | N143: =SUM(N137:N142)+IF('1. Plan Inputs'!J46="Yes",0,SUM(Worksheet!J123:O123))+IF('1. Plan Inputs'!J48="Yes",0,SUM(Worksheet!J127:O127))+IFERROR(IF('1. Plan Inputs'!J48="Yes",0,L137*SUMPRODUCT(J111:J118,J158:J165/SUM(J102:J121))),0)+IFERROR(IF('1. Plan Inputs'!J48="Yes",0,L138*SUMPRODUCT(K111:K118,J158:J165/SUM(K102:K121))),0)+IFERROR(IF('1. Plan Inputs'!J48="Yes",0,L139*SUMPRODUCT(L111:L118,J158:J165/SUM(L102:L121))),0)+IFERROR(IF('1. Plan Inputs'!J48="Yes",0,L140*SUMPRODUCT(M111:M118,J158:J165/SUM(M102:M121))),0)+IFERROR(IF('1. Plan Inputs'!J48="Yes",0,L141*SUMPRODUCT(N111:N118,J158:J165/SUM(N102:N121))),0)+IFERROR(IF('1. Plan Inputs'!J48="Yes",0,L142*SUMPRODUCT(O111:O118,J158:J165/SUM(O102:O121))),0) -> 0 | Q143: Total | R143: =SUM(R137:R142) -> 0 | S143: =SUM(S137:S142) -> 0 | T143: =SUM(T137:T142) -> 0 | U143: =SUM(U137:U142) -> 0 | V143: =SUM(V137:V142)+IF('1. Plan Inputs'!M46="Yes",0,SUM(Worksheet!R123:W123))+IF('1. Plan Inputs'!M48="Yes",0,SUM(Worksheet!R127:W127))+IFERROR(IF('1. Plan Inputs'!M48="Yes",0,T137*SUMPRODUCT(R111:R118,R158:R165/SUM(R102:R121))),0)+IFERROR(IF('1. Plan Inputs'!M48="Yes",0,T138*SUMPRODUCT(S111:S118,R158:R165/SUM(S102:S121))),0)+IFERROR(IF('1. Plan Inputs'!M48="Yes",0,T139*SUMPRODUCT(T111:T118,R158:R165/SUM(T102:T121))),0)+IFERROR(IF('1. Plan Inputs'!M48="Yes",0,T140*SUMPRODUCT(U111:U118,R158:R165/SUM(U102:U121))),0)+IFERROR(IF('1. Plan Inputs'!M48="Yes",0,T141*SUMPRODUCT(V111:V118,R158:R165/SUM(V102:V121))),0)+IFERROR(IF('1. Plan Inputs'!M48="Yes",0,T142*SUMPRODUCT(W111:W118,R158:R165/SUM(W102:W121))),0) -> 0 | Y143: Total | Z143: =SUM(Z137:Z142) -> 0 | AA143: =SUM(AA137:AA142) -> 0 | AB143: =SUM(AB137:AB142) -> 0 | AC143: =SUM(AC137:AC142) -> 0 | AD143: =SUM(AD137:AD142)+IF('1. Plan Inputs'!P46="Yes",0,SUM(Worksheet!Z123:AE123))+IF('1. Plan Inputs'!P48="Yes",0,SUM(Worksheet!Z127:AE127))+IFERROR(IF('1. Plan Inputs'!P48="Yes",0,AB137*SUMPRODUCT(Z111:Z118,Z158:Z165/SUM(Z102:Z121))),0)+IFERROR(IF('1. Plan Inputs'!P48="Yes",0,AB138*SUMPRODUCT(AA111:AA118,Z158:Z165/SUM(AA102:AA121))),0)+IFERROR(IF('1. Plan Inputs'!P48="Yes",0,AB139*SUMPRODUCT(AB111:AB118,Z158:Z165/SUM(AB102:AB121))),0)+IFERROR(IF('1. Plan Inputs'!P48="Yes",0,AB140*SUMPRODUCT(AC111:AC118,Z158:Z165/SUM(AC102:AC121))),0)+IFERROR(IF('1. Plan Inputs'!P48="Yes",0,AB141*SUMPRODUCT(AD111:AD118,Z158:Z165/SUM(AD102:AD121))),0)+IFERROR(IF('1. Plan Inputs'!P48="Yes",0,AB142*SUMPRODUCT(AE111:AE118,Z158:Z165/SUM(AE102:AE121))),0) -> 0 | AG143: Total | AH143: =SUM(AH137:AH142) -> 0 | AI143: =SUM(AI137:AI142) -> 0 | AJ143: =SUM(AJ137:AJ142) -> 0 | AK143: =SUM(AK137:AK142) -> 0 | AL143: =SUM(AL137:AL142)+IF('1. Plan Inputs'!S46="Yes",0,SUM(Worksheet!AH123:AM123))+IF('1. Plan Inputs'!S48="Yes",0,SUM(Worksheet!AH127:AM127))+IFERROR(IF('1. Plan Inputs'!S48="Yes",0,AJ137*SUMPRODUCT(AH111:AH118,AH158:AH165/SUM(AH102:AH121))),0)+IFERROR(IF('1. Plan Inputs'!S48="Yes",0,AJ138*SUMPRODUCT(AI111:AI118,AH158:AH165/SUM(AI102:AI121))),0)+IFERROR(IF('1. Plan Inputs'!S48="Yes",0,AJ139*SUMPRODUCT(AJ111:AJ118,AH158:AH165/SUM(AJ102:AJ121))),0)+IFERROR(IF('1. Plan Inputs'!S48="Yes",0,AJ140*SUMPRODUCT(AK111:AK118,AH158:AH165/SUM(AK102:AK121))),0)+IFERROR(IF('1. Plan Inputs'!S48="Yes",0,AJ141*SUMPRODUCT(AL111:AL118,AH158:AH165/SUM(AL102:AL121))),0)+IFERROR(IF('1. Plan Inputs'!S48="Yes",0,AJ142*SUMPRODUCT(AM111:AM118,AH158:AH165/SUM(AM102:AM121))),0) -> 0 | AO143: Total | AP143: =SUM(AP137:AP142) -> 0 | AQ143: =SUM(AQ137:AQ142) -> 0 | AR143: =SUM(AR137:AR142) -> 0 | AS143: =SUM(AS137:AS142) -> 0 | AT143: =SUM(AT137:AT142)+IF('1. Plan Inputs'!V46="Yes",0,SUM(Worksheet!AP123:AU123))+IF('1. Plan Inputs'!V48="Yes",0,SUM(Worksheet!AP127:AU127))+IFERROR(IF('1. Plan Inputs'!V48="Yes",0,AR137*SUMPRODUCT(AP111:AP118,AP158:AP165/SUM(AP102:AP121))),0)+IFERROR(IF('1. Plan Inputs'!V48="Yes",0,AR138*SUMPRODUCT(AQ111:AQ118,AP158:AP165/SUM(AQ102:AQ121))),0)+IFERROR(IF('1. Plan Inputs'!V48="Yes",0,AR139*SUMPRODUCT(AR111:AR118,AP158:AP165/SUM(AR102:AR121))),0)+IFERROR(IF('1. Plan Inputs'!V48="Yes",0,AR140*SUMPRODUCT(AS111:AS118,AP158:AP165/SUM(AS102:AS121))),0)+IFERROR(IF('1. Plan Inputs'!V48="Yes",0,AR141*SUMPRODUCT(AT111:AT118,AP158:AP165/SUM(AT102:AT121))),0)+IFERROR(IF('1. Plan Inputs'!V48="Yes",0,AR142*SUMPRODUCT(AU111:AU118,AP158:AP165/SUM(AU102:AU121))),0) -> 0
A146: Non-Embedded Calculation: | I146: Non-Embedded Calculation: | Q146: Non-Embedded Calculation: | Y146: Non-Embedded Calculation: | AG146: Non-Embedded Calculation: | AO146: Non-Embedded Calculation:
B147: Applicable | C147: Deductible | D147: Apply to Coins | E147: Apply to OOP | F147: OOP Max | J147: Applicable | K147: Deductible | L147: Apply to Coins | M147: Apply to OOP | N147: OOP Max | R147: Applicable | S147: Deductible | T147: Apply to Coins | U147: Apply to OOP | V147: OOP Max | Z147: Applicable | AA147: Deductible | AB147: Apply to Coins | AC147: Apply to OOP | AD147: OOP Max | AH147: Applicable | AI147: Deductible | AJ147: Apply to Coins | AK147: Apply to OOP | AL147: OOP Max | AP147: Applicable | AQ147: Deductible | AR147: Apply to Coins | AS147: Apply to OOP | AT147: OOP Max
A148: Member1 | B148: =B131 -> 0 | C148: =MIN(B148,B20) -> 0 | D148: =B148-C148 -> 0 | E148: =IFERROR(IF('1. Plan Inputs'!G50="No",D148*B21+IF('1. Plan Inputs'!$G$46="Yes",Worksheet!B123,0)+IF('1. Plan Inputs'!$G$48="Yes",Worksheet!B127,0),Worksheet!D148*((Worksheet!B21*SUM(Worksheet!B102:B110,Worksheet!B121)+IF('1. Plan Inputs'!$G$48="Yes",SUMPRODUCT(Worksheet!B111:B118,Worksheet!B158:B165),0))/SUM(Worksheet!B102:B121))+IF('1. Plan Inputs'!$G$46="Yes",Worksheet!B123,0)+IF('1. Plan Inputs'!$G$48="Yes",Worksheet!B127,0)),0) -> 0 | F148: =MIN(E148+C148,B23) -> 0 | I148: Member1 | J148: =J131 -> 0 | K148: =MIN(J148,J20) -> 0 | L148: =J148-K148 -> 0 | M148: =IFERROR(IF('1. Plan Inputs'!J50="No",L148*J21+IF('1. Plan Inputs'!$J$46="Yes",Worksheet!J123,0)+IF('1. Plan Inputs'!$J$48="Yes",Worksheet!J127,0),Worksheet!L148*((Worksheet!J21*SUM(Worksheet!J102:J110,Worksheet!J121)+IF('1. Plan Inputs'!$J$48="Yes",SUMPRODUCT(Worksheet!J111:J118,Worksheet!J158:J165),0))/SUM(Worksheet!J102:J121))+IF('1. Plan Inputs'!$J$46="Yes",Worksheet!J123,0)+IF('1. Plan Inputs'!$J$48="Yes",Worksheet!J127,0)),0) -> 0 | N148: =MIN(M148+K148,J23) -> 0 | Q148: Member1 | R148: =R131 -> 0 | S148: =MIN(R148,R20) -> 0 | T148: =R148-S148 -> 0 | U148: =IFERROR(IF('1. Plan Inputs'!M50="No",T148*R21+IF('1. Plan Inputs'!$M$46="Yes",Worksheet!R123,0)+IF('1. Plan Inputs'!$M$48="Yes",Worksheet!R127,0),Worksheet!T148*((Worksheet!R21*SUM(Worksheet!R102:R110,Worksheet!R121)+IF('1. Plan Inputs'!$M$48="Yes",SUMPRODUCT(Worksheet!R111:R118,Worksheet!R158:R165),0))/SUM(Worksheet!R102:R121))+IF('1. Plan Inputs'!$M$46="Yes",Worksheet!R123,0)+IF('1. Plan Inputs'!$M$48="Yes",Worksheet!R127,0)),0) -> 0 | V148: =MIN(U148+S148,R23) -> 0 | Y148: Member1 | Z148: =Z131 -> 0 | AA148: =MIN(Z148,Z20) -> 0 | AB148: =Z148-AA148 -> 0 | AC148: =IFERROR(IF('1. Plan Inputs'!P50="No",AB148*Z21+IF('1. Plan Inputs'!$P$46="Yes",Worksheet!Z123,0)+IF('1. Plan Inputs'!$P$48="Yes",Worksheet!Z127,0),Worksheet!AB148*((Worksheet!Z21*SUM(Worksheet!Z102:Z110,Worksheet!Z121)+IF('1. Plan Inputs'!$P$48="Yes",SUMPRODUCT(Worksheet!Z111:Z118,Worksheet!Z158:Z165),0))/SUM(Worksheet!Z102:Z121))+IF('1. Plan Inputs'!$P$46="Yes",Worksheet!Z123,0)+IF('1. Plan Inputs'!$P$48="Yes",Worksheet!Z127,0)),0) -> 0 | AD148: =MIN(AC148+AA148,Z23) -> 0 | AG148: Member1 | AH148: =AH131 -> 0 | AI148: =MIN(AH148,AH20) -> 0 | AJ148: =AH148-AI148 -> 0 | AK148: =IFERROR(IF('1. Plan Inputs'!S50="No",AJ148*AH21+IF('1. Plan Inputs'!$S$46="Yes",Worksheet!AH123,0)+IF('1. Plan Inputs'!$S$48="Yes",Worksheet!AH127,0),Worksheet!AJ148*((Worksheet!AH21*SUM(Worksheet!AH102:AH110,Worksheet!AH121)+IF('1. Plan Inputs'!$S$48="Yes",SUMPRODUCT(Worksheet!AH111:AH118,Worksheet!AH158:AH165),0))/SUM(Worksheet!AH102:AH121))+IF('1. Plan Inputs'!$S$46="Yes",Worksheet!AH123,0)+IF('1. Plan Inputs'!$S$48="Yes",Worksheet!AH127,0)),0) -> 0 | AL148: =MIN(AK148+AI148,AH23) -> 0 | AO148: Member1 | AP148: =AP131 -> 0 | AQ148: =MIN(AP148,AP20) -> 0 | AR148: =AP148-AQ148 -> 0 | AS148: =IFERROR(IF('1. Plan Inputs'!V50="No",AR148*AP21+IF('1. Plan Inputs'!$V$46="Yes",Worksheet!AP123,0)+IF('1. Plan Inputs'!$V$48="Yes",Worksheet!AP127,0),Worksheet!AR148*((Worksheet!AP21*SUM(Worksheet!AP102:AP110,Worksheet!AP121)+IF('1. Plan Inputs'!$V$48="Yes",SUMPRODUCT(Worksheet!AP111:AP118,Worksheet!AP158:AP165),0))/SUM(Worksheet!AP102:AP121))+IF('1. Plan Inputs'!$V$46="Yes",Worksheet!AP123,0)+IF('1. Plan Inputs'!$V$48="Yes",Worksheet!AP127,0)),0) -> 0 | AT148: =MIN(AS148+AQ148,AP23) -> 0
A149: Member2 | B149: =C131 -> 0 | C149: =IF(B149+SUM(C148)<C20,B149,C20-SUM(C148)) -> 0 | D149: =B149-C149 -> 0 | E149: =IFERROR(IF('1. Plan Inputs'!G50="No",D149*C21+IF('1. Plan Inputs'!$G$46="Yes",Worksheet!C123,0)+IF('1. Plan Inputs'!$G$48="Yes",Worksheet!C127,0),Worksheet!D149*((Worksheet!C21*SUM(Worksheet!C102:C110,Worksheet!C121)+IF('1. Plan Inputs'!$G$48="Yes",SUMPRODUCT(Worksheet!C111:C118,Worksheet!B158:B165),0))/SUM(Worksheet!C102:C121))+IF('1. Plan Inputs'!$G$46="Yes",Worksheet!C123,0)+IF('1. Plan Inputs'!$G$48="Yes",Worksheet!C127,0)),0) -> 0 | F149: =IF(C149+E149+SUM(F148)<C23,C149+E149,C23-SUM(F148)) -> 0 | I149: Member2 | J149: =K131 -> 0 | K149: =IF(J149+SUM(K148)<K20,J149,K20-SUM(K148)) -> 0 | L149: =J149-K149 -> 0 | M149: =IFERROR(IF('1. Plan Inputs'!J50="No",L149*K21+IF('1. Plan Inputs'!$J$46="Yes",Worksheet!K123,0)+IF('1. Plan Inputs'!$J$48="Yes",Worksheet!K127,0),Worksheet!L149*((Worksheet!K21*SUM(Worksheet!K102:K110,Worksheet!K121)+IF('1. Plan Inputs'!$J$48="Yes",SUMPRODUCT(Worksheet!K111:K118,Worksheet!J158:J165),0))/SUM(Worksheet!K102:K121))+IF('1. Plan Inputs'!$J$46="Yes",Worksheet!K123,0)+IF('1. Plan Inputs'!$J$48="Yes",Worksheet!K127,0)),0) -> 0 | N149: =IF(K149+M149+SUM(N148)<K23,K149+M149,K23-SUM(N148)) -> 0 | Q149: Member2 | R149: =S131 -> 0 | S149: =IF(R149+SUM(S148)<S20,R149,S20-SUM(S148)) -> 0 | T149: =R149-S149 -> 0 | U149: =IFERROR(IF('1. Plan Inputs'!M50="No",T149*S21+IF('1. Plan Inputs'!$M$46="Yes",Worksheet!S123,0)+IF('1. Plan Inputs'!$M$48="Yes",Worksheet!S127,0),Worksheet!T149*((Worksheet!S21*SUM(Worksheet!S102:S110,Worksheet!S121)+IF('1. Plan Inputs'!$M$48="Yes",SUMPRODUCT(Worksheet!S111:S118,Worksheet!R158:R165),0))/SUM(Worksheet!S102:S121))+IF('1. Plan Inputs'!$M$46="Yes",Worksheet!S123,0)+IF('1. Plan Inputs'!$M$48="Yes",Worksheet!S127,0)),0) -> 0 | V149: =IF(S149+U149+SUM(V148)<S23,S149+U149,S23-SUM(V148)) -> 0 | Y149: Member2 | Z149: =AA131 -> 0 | AA149: =IF(Z149+SUM(AA148)<AA20,Z149,AA20-SUM(AA148)) -> 0 | AB149: =Z149-AA149 -> 0 | AC149: =IFERROR(IF('1. Plan Inputs'!P50="No",AB149*AA21+IF('1. Plan Inputs'!$P$46="Yes",Worksheet!AA123,0)+IF('1. Plan Inputs'!$P$48="Yes",Worksheet!AA127,0),Worksheet!AB149*((Worksheet!AA21*SUM(Worksheet!AA102:AA110,Worksheet!AA121)+IF('1. Plan Inputs'!$P$48="Yes",SUMPRODUCT(Worksheet!AA111:AA118,Worksheet!Z158:Z165),0))/SUM(Worksheet!AA102:AA121))+IF('1. Plan Inputs'!$P$46="Yes",Worksheet!AA123,0)+IF('1. Plan Inputs'!$P$48="Yes",Worksheet!AA127,0)),0) -> 0 | AD149: =IF(AA149+AC149+SUM(AD148)<AA23,AA149+AC149,AA23-SUM(AD148)) -> 0 | AG149: Member2 | AH149: =AI131 -> 0 | AI149: =IF(AH149+SUM(AI148)<AI20,AH149,AI20-SUM(AI148)) -> 0 | AJ149: =AH149-AI149 -> 0 | AK149: =IFERROR(IF('1. Plan Inputs'!S50="No",AJ149*AI21+IF('1. Plan Inputs'!$S$46="Yes",Worksheet!AI123,0)+IF('1. Plan Inputs'!$S$48="Yes",Worksheet!AI127,0),Worksheet!AJ149*((Worksheet!AI21*SUM(Worksheet!AI102:AI110,Worksheet!AI121)+IF('1. Plan Inputs'!$S$48="Yes",SUMPRODUCT(Worksheet!AI111:AI118,Worksheet!AH158:AH165),0))/SUM(Worksheet!AI102:AI121))+IF('1. Plan Inputs'!$S$46="Yes",Worksheet!AI123,0)+IF('1. Plan Inputs'!$S$48="Yes",Worksheet!AI127,0)),0) -> 0 | AL149: =IF(AI149+AK149+SUM(AL148)<AI23,AI149+AK149,AI23-SUM(AL148)) -> 0 | AO149: Member2 | AP149: =AQ131 -> 0 | AQ149: =IF(AP149+SUM(AQ148)<AQ20,AP149,AQ20-SUM(AQ148)) -> 0 | AR149: =AP149-AQ149 -> 0 | AS149: =IFERROR(IF('1. Plan Inputs'!V50="No",AR149*AQ21+IF('1. Plan Inputs'!$V$46="Yes",Worksheet!AQ123,0)+IF('1. Plan Inputs'!$V$48="Yes",Worksheet!AQ127,0),Worksheet!AR149*((Worksheet!AQ21*SUM(Worksheet!AQ102:AQ110,Worksheet!AQ121)+IF('1. Plan Inputs'!$V$48="Yes",SUMPRODUCT(Worksheet!AQ111:AQ118,Worksheet!AP158:AP165),0))/SUM(Worksheet!AQ102:AQ121))+IF('1. Plan Inputs'!$V$46="Yes",Worksheet!AQ123,0)+IF('1. Plan Inputs'!$V$48="Yes",Worksheet!AQ127,0)),0) -> 0 | AT149: =IF(AQ149+AS149+SUM(AT148)<AQ23,AQ149+AS149,AQ23-SUM(AT148)) -> 0
A150: Member3 | B150: =D131 -> 0 | C150: =IF(B150+SUM(C148:C149)<D20,B150,D20-SUM(C148:C149)) -> 0 | D150: 0 | E150: =IFERROR(IF('1. Plan Inputs'!G50="No",D150*D21+IF('1. Plan Inputs'!$G$46="Yes",Worksheet!D123,0)+IF('1. Plan Inputs'!$G$48="Yes",Worksheet!D127,0),Worksheet!D150*((Worksheet!D21*SUM(Worksheet!D102:D110,Worksheet!D121)+IF('1. Plan Inputs'!$G$48="Yes",SUMPRODUCT(Worksheet!D111:D118,Worksheet!B158:B165),0))/SUM(Worksheet!D102:D121))+IF('1. Plan Inputs'!$G$46="Yes",Worksheet!D123,0)+IF('1. Plan Inputs'!$G$48="Yes",Worksheet!D127,0)),0) -> 0 | F150: =IF(C150+E150+SUM(F148:F149)<D23,C150+E150,D23-SUM(F148:F149)) -> 0 | I150: Member3 | J150: =L131 -> 0 | K150: =IF(J150+SUM(K148:K149)<L20,J150,L20-SUM(K148:K149)) -> 0 | L150: 0 | M150: =IFERROR(IF('1. Plan Inputs'!J50="No",L150*L21+IF('1. Plan Inputs'!$J$46="Yes",Worksheet!L123,0)+IF('1. Plan Inputs'!$J$48="Yes",Worksheet!L127,0),Worksheet!L150*((Worksheet!L21*SUM(Worksheet!L102:L110,Worksheet!L121)+IF('1. Plan Inputs'!$J$48="Yes",SUMPRODUCT(Worksheet!L111:L118,Worksheet!J158:J165),0))/SUM(Worksheet!L102:L121))+IF('1. Plan Inputs'!$J$46="Yes",Worksheet!L123,0)+IF('1. Plan Inputs'!$J$48="Yes",Worksheet!L127,0)),0) -> 0 | N150: =IF(K150+M150+SUM(N148:N149)<L23,K150+M150,L23-SUM(N148:N149)) -> 0 | Q150: Member3 | R150: =T131 -> 0 | S150: =IF(R150+SUM(S148:S149)<T20,R150,T20-SUM(S148:S149)) -> 0 | T150: 0 | U150: =IFERROR(IF('1. Plan Inputs'!M50="No",T150*T21+IF('1. Plan Inputs'!$M$46="Yes",Worksheet!T123,0)+IF('1. Plan Inputs'!$M$48="Yes",Worksheet!T127,0),Worksheet!T150*((Worksheet!T21*SUM(Worksheet!T102:T110,Worksheet!T121)+IF('1. Plan Inputs'!$M$48="Yes",SUMPRODUCT(Worksheet!T111:T118,Worksheet!R158:R165),0))/SUM(Worksheet!T102:T121))+IF('1. Plan Inputs'!$M$46="Yes",Worksheet!T123,0)+IF('1. Plan Inputs'!$M$48="Yes",Worksheet!T127,0)),0) -> 0 | V150: =IF(S150+U150+SUM(V148:V149)<T23,S150+U150,T23-SUM(V148:V149)) -> 0 | Y150: Member3 | Z150: =AB131 -> 0 | AA150: =IF(Z150+SUM(AA148:AA149)<AB20,Z150,AB20-SUM(AA148:AA149)) -> 0 | AB150: 0 | AC150: =IFERROR(IF('1. Plan Inputs'!P50="No",AB150*AB21+IF('1. Plan Inputs'!$P$46="Yes",Worksheet!AB123,0)+IF('1. Plan Inputs'!$P$48="Yes",Worksheet!AB127,0),Worksheet!AB150*((Worksheet!AB21*SUM(Worksheet!AB102:AB110,Worksheet!AB121)+IF('1. Plan Inputs'!$P$48="Yes",SUMPRODUCT(Worksheet!AB111:AB118,Worksheet!Z158:Z165),0))/SUM(Worksheet!AB102:AB121))+IF('1. Plan Inputs'!$P$46="Yes",Worksheet!AB123,0)+IF('1. Plan Inputs'!$P$48="Yes",Worksheet!AB127,0)),0) -> 0 | AD150: =IF(AA150+AC150+SUM(AD148:AD149)<AB23,AA150+AC150,AB23-SUM(AD148:AD149)) -> 0 | AG150: Member3 | AH150: =AJ131 -> 0 | AI150: =IF(AH150+SUM(AI148:AI149)<AJ20,AH150,AJ20-SUM(AI148:AI149)) -> 0 | AJ150: 0 | AK150: =IFERROR(IF('1. Plan Inputs'!S50="No",AJ150*AJ21+IF('1. Plan Inputs'!$S$46="Yes",Worksheet!AJ123,0)+IF('1. Plan Inputs'!$S$48="Yes",Worksheet!AJ127,0),Worksheet!AJ150*((Worksheet!AJ21*SUM(Worksheet!AJ102:AJ110,Worksheet!AJ121)+IF('1. Plan Inputs'!$S$48="Yes",SUMPRODUCT(Worksheet!AJ111:AJ118,Worksheet!AH158:AH165),0))/SUM(Worksheet!AJ102:AJ121))+IF('1. Plan Inputs'!$S$46="Yes",Worksheet!AJ123,0)+IF('1. Plan Inputs'!$S$48="Yes",Worksheet!AJ127,0)),0) -> 0 | AL150: =IF(AI150+AK150+SUM(AL148:AL149)<AJ23,AI150+AK150,AJ23-SUM(AL148:AL149)) -> 0 | AO150: Member3 | AP150: =AR131 -> 0 | AQ150: =IF(AP150+SUM(AQ148:AQ149)<AR20,AP150,AR20-SUM(AQ148:AQ149)) -> 0 | AR150: 0 | AS150: =IFERROR(IF('1. Plan Inputs'!V50="No",AR150*AR21+IF('1. Plan Inputs'!$V$46="Yes",Worksheet!AR123,0)+IF('1. Plan Inputs'!$V$48="Yes",Worksheet!AR127,0),Worksheet!AR150*((Worksheet!AR21*SUM(Worksheet!AR102:AR110,Worksheet!AR121)+IF('1. Plan Inputs'!$V$48="Yes",SUMPRODUCT(Worksheet!AR111:AR118,Worksheet!AP158:AP165),0))/SUM(Worksheet!AR102:AR121))+IF('1. Plan Inputs'!$V$46="Yes",Worksheet!AR123,0)+IF('1. Plan Inputs'!$V$48="Yes",Worksheet!AR127,0)),0) -> 0 | AT150: =IF(AQ150+AS150+SUM(AT148:AT149)<AR23,AQ150+AS150,AR23-SUM(AT148:AT149)) -> 0
A151: Member4 | B151: =E131 -> 0 | C151: =IF(B151+SUM(C148:C150)<E20,B151,E20-SUM(C148:C150)) -> 0 | D151: 0 | E151: =IFERROR(IF('1. Plan Inputs'!G50="No",D151*E21+IF('1. Plan Inputs'!$G$46="Yes",Worksheet!E123,0)+IF('1. Plan Inputs'!$G$48="Yes",Worksheet!E127,0),Worksheet!D151*((Worksheet!E21*SUM(Worksheet!E102:E110,Worksheet!E121)+IF('1. Plan Inputs'!$G$48="Yes",SUMPRODUCT(Worksheet!E111:E118,Worksheet!B158:B165),0))/SUM(Worksheet!E102:E121))+IF('1. Plan Inputs'!$G$46="Yes",Worksheet!E123,0)+IF('1. Plan Inputs'!$G$48="Yes",Worksheet!E127,0)),0) -> 0 | F151: =IF(C151+E151+SUM(F148:F150)<E23,C151+E151,E23-SUM(F148:F150)) -> 0 | I151: Member4 | J151: =M131 -> 0 | K151: =IF(J151+SUM(K148:K150)<M20,J151,M20-SUM(K148:K150)) -> 0 | L151: 0 | M151: =IFERROR(IF('1. Plan Inputs'!J50="No",L151*M21+IF('1. Plan Inputs'!$J$46="Yes",Worksheet!M123,0)+IF('1. Plan Inputs'!$J$48="Yes",Worksheet!M127,0),Worksheet!L151*((Worksheet!M21*SUM(Worksheet!M102:M110,Worksheet!M121)+IF('1. Plan Inputs'!$J$48="Yes",SUMPRODUCT(Worksheet!M111:M118,Worksheet!J158:J165),0))/SUM(Worksheet!M102:M121))+IF('1. Plan Inputs'!$J$46="Yes",Worksheet!M123,0)+IF('1. Plan Inputs'!$J$48="Yes",Worksheet!M127,0)),0) -> 0 | N151: =IF(K151+M151+SUM(N148:N150)<M23,K151+M151,M23-SUM(N148:N150)) -> 0 | Q151: Member4 | R151: =U131 -> 0 | S151: =IF(R151+SUM(S148:S150)<U20,R151,U20-SUM(S148:S150)) -> 0 | T151: 0 | U151: =IFERROR(IF('1. Plan Inputs'!M50="No",T151*U21+IF('1. Plan Inputs'!$M$46="Yes",Worksheet!U123,0)+IF('1. Plan Inputs'!$M$48="Yes",Worksheet!U127,0),Worksheet!T151*((Worksheet!U21*SUM(Worksheet!U102:U110,Worksheet!U121)+IF('1. Plan Inputs'!$M$48="Yes",SUMPRODUCT(Worksheet!U111:U118,Worksheet!R158:R165),0))/SUM(Worksheet!U102:U121))+IF('1. Plan Inputs'!$M$46="Yes",Worksheet!U123,0)+IF('1. Plan Inputs'!$M$48="Yes",Worksheet!U127,0)),0) -> 0 | V151: =IF(S151+U151+SUM(V148:V150)<U23,S151+U151,U23-SUM(V148:V150)) -> 0 | Y151: Member4 | Z151: =AC131 -> 0 | AA151: =IF(Z151+SUM(AA148:AA150)<AC20,Z151,AC20-SUM(AA148:AA150)) -> 0 | AB151: 0 | AC151: =IFERROR(IF('1. Plan Inputs'!P50="No",AB151*AC21+IF('1. Plan Inputs'!$P$46="Yes",Worksheet!AC123,0)+IF('1. Plan Inputs'!$P$48="Yes",Worksheet!AC127,0),Worksheet!AB151*((Worksheet!AC21*SUM(Worksheet!AC102:AC110,Worksheet!AC121)+IF('1. Plan Inputs'!$P$48="Yes",SUMPRODUCT(Worksheet!AC111:AC118,Worksheet!Z158:Z165),0))/SUM(Worksheet!AC102:AC121))+IF('1. Plan Inputs'!$P$46="Yes",Worksheet!AC123,0)+IF('1. Plan Inputs'!$P$48="Yes",Worksheet!AC127,0)),0) -> 0 | AD151: =IF(AA151+AC151+SUM(AD148:AD150)<AC23,AA151+AC151,AC23-SUM(AD148:AD150)) -> 0 | AG151: Member4 | AH151: =AK131 -> 0 | AI151: =IF(AH151+SUM(AI148:AI150)<AK20,AH151,AK20-SUM(AI148:AI150)) -> 0 | AJ151: 0 | AK151: =IFERROR(IF('1. Plan Inputs'!S50="No",AJ151*AK21+IF('1. Plan Inputs'!$S$46="Yes",Worksheet!AK123,0)+IF('1. Plan Inputs'!$S$48="Yes",Worksheet!AK127,0),Worksheet!AJ151*((Worksheet!AK21*SUM(Worksheet!AK102:AK110,Worksheet!AK121)+IF('1. Plan Inputs'!$S$48="Yes",SUMPRODUCT(Worksheet!AK111:AK118,Worksheet!AH158:AH165),0))/SUM(Worksheet!AK102:AK121))+IF('1. Plan Inputs'!$S$46="Yes",Worksheet!AK123,0)+IF('1. Plan Inputs'!$S$48="Yes",Worksheet!AK127,0)),0) -> 0 | AL151: =IF(AI151+AK151+SUM(AL148:AL150)<AK23,AI151+AK151,AK23-SUM(AL148:AL150)) -> 0 | AO151: Member4 | AP151: =AS131 -> 0 | AQ151: =IF(AP151+SUM(AQ148:AQ150)<AS20,AP151,AS20-SUM(AQ148:AQ150)) -> 0 | AR151: 0 | AS151: =IFERROR(IF('1. Plan Inputs'!V50="No",AR151*AS21+IF('1. Plan Inputs'!$V$46="Yes",Worksheet!AS123,0)+IF('1. Plan Inputs'!$V$48="Yes",Worksheet!AS127,0),Worksheet!AR151*((Worksheet!AS21*SUM(Worksheet!AS102:AS110,Worksheet!AS121)+IF('1. Plan Inputs'!$V$48="Yes",SUMPRODUCT(Worksheet!AS111:AS118,Worksheet!AP158:AP165),0))/SUM(Worksheet!AS102:AS121))+IF('1. Plan Inputs'!$V$46="Yes",Worksheet!AS123,0)+IF('1. Plan Inputs'!$V$48="Yes",Worksheet!AS127,0)),0) -> 0 | AT151: =IF(AQ151+AS151+SUM(AT148:AT150)<AS23,AQ151+AS151,AS23-SUM(AT148:AT150)) -> 0
A152: Member5 | B152: =F131 -> 0 | C152: =IF(B152+SUM(C148:C151)<F20,B152,F20-SUM(C148:C151)) -> 0 | D152: 0 | E152: =IFERROR(IF('1. Plan Inputs'!G50="No",D152*F21+IF('1. Plan Inputs'!$G$46="Yes",Worksheet!F123,0)+IF('1. Plan Inputs'!$G$48="Yes",Worksheet!F127,0),Worksheet!D152*((Worksheet!F21*SUM(Worksheet!F102:F110,Worksheet!F121)+IF('1. Plan Inputs'!$G$48="Yes",SUMPRODUCT(Worksheet!F111:F118,Worksheet!B158:B165),0))/SUM(Worksheet!F102:F121))+IF('1. Plan Inputs'!$G$46="Yes",Worksheet!F123,0)+IF('1. Plan Inputs'!$G$48="Yes",Worksheet!F127,0)),0) -> 0 | F152: =IF(C152+E152+SUM(F148:F151)<F23,C152+E152,F23-SUM(F148:F151)) -> 0 | I152: Member5 | J152: =N131 -> 0 | K152: =IF(J152+SUM(K148:K151)<N20,J152,N20-SUM(K148:K151)) -> 0 | L152: 0 | M152: =IFERROR(IF('1. Plan Inputs'!J50="No",L152*N21+IF('1. Plan Inputs'!$J$46="Yes",Worksheet!N123,0)+IF('1. Plan Inputs'!$J$48="Yes",Worksheet!N127,0),Worksheet!L152*((Worksheet!N21*SUM(Worksheet!N102:N110,Worksheet!N121)+IF('1. Plan Inputs'!$J$48="Yes",SUMPRODUCT(Worksheet!N111:N118,Worksheet!J158:J165),0))/SUM(Worksheet!N102:N121))+IF('1. Plan Inputs'!$J$46="Yes",Worksheet!N123,0)+IF('1. Plan Inputs'!$J$48="Yes",Worksheet!N127,0)),0) -> 0 | N152: =IF(K152+M152+SUM(N148:N151)<N23,K152+M152,N23-SUM(N148:N151)) -> 0 | Q152: Member5 | R152: =V131 -> 0 | S152: =IF(R152+SUM(S148:S151)<V20,R152,V20-SUM(S148:S151)) -> 0 | T152: 0 | U152: =IFERROR(IF('1. Plan Inputs'!M50="No",T152*V21+IF('1. Plan Inputs'!$M$46="Yes",Worksheet!V123,0)+IF('1. Plan Inputs'!$M$48="Yes",Worksheet!V127,0),Worksheet!T152*((Worksheet!V21*SUM(Worksheet!V102:V110,Worksheet!V121)+IF('1. Plan Inputs'!$M$48="Yes",SUMPRODUCT(Worksheet!V111:V118,Worksheet!R158:R165),0))/SUM(Worksheet!V102:V121))+IF('1. Plan Inputs'!$M$46="Yes",Worksheet!V123,0)+IF('1. Plan Inputs'!$M$48="Yes",Worksheet!V127,0)),0) -> 0 | V152: =IF(S152+U152+SUM(V148:V151)<V23,S152+U152,V23-SUM(V148:V151)) -> 0 | Y152: Member5 | Z152: =AD131 -> 0 | AA152: =IF(Z152+SUM(AA148:AA151)<AD20,Z152,AD20-SUM(AA148:AA151)) -> 0 | AB152: 0 | AC152: =IFERROR(IF('1. Plan Inputs'!P50="No",AB152*AD21+IF('1. Plan Inputs'!$P$46="Yes",Worksheet!AD123,0)+IF('1. Plan Inputs'!$P$48="Yes",Worksheet!AD127,0),Worksheet!AB152*((Worksheet!AD21*SUM(Worksheet!AD102:AD110,Worksheet!AD121)+IF('1. Plan Inputs'!$P$48="Yes",SUMPRODUCT(Worksheet!AD111:AD118,Worksheet!Z158:Z165),0))/SUM(Worksheet!AD102:AD121))+IF('1. Plan Inputs'!$P$46="Yes",Worksheet!AD123,0)+IF('1. Plan Inputs'!$P$48="Yes",Worksheet!AD127,0)),0) -> 0 | AD152: =IF(AA152+AC152+SUM(AD148:AD151)<AD23,AA152+AC152,AD23-SUM(AD148:AD151)) -> 0 | AG152: Member5 | AH152: =AL131 -> 0 | AI152: =IF(AH152+SUM(AI148:AI151)<AL20,AH152,AL20-SUM(AI148:AI151)) -> 0 | AJ152: 0 | AK152: =IFERROR(IF('1. Plan Inputs'!S50="No",AJ152*AL21+IF('1. Plan Inputs'!$S$46="Yes",Worksheet!AL123,0)+IF('1. Plan Inputs'!$S$48="Yes",Worksheet!AL127,0),Worksheet!AJ152*((Worksheet!AL21*SUM(Worksheet!AL102:AL110,Worksheet!AL121)+IF('1. Plan Inputs'!$S$48="Yes",SUMPRODUCT(Worksheet!AL111:AL118,Worksheet!AH158:AH165),0))/SUM(Worksheet!AL102:AL121))+IF('1. Plan Inputs'!$S$46="Yes",Worksheet!AL123,0)+IF('1. Plan Inputs'!$S$48="Yes",Worksheet!AL127,0)),0) -> 0 | AL152: =IF(AI152+AK152+SUM(AL148:AL151)<AL23,AI152+AK152,AL23-SUM(AL148:AL151)) -> 0 | AO152: Member5 | AP152: =AT131 -> 0 | AQ152: =IF(AP152+SUM(AQ148:AQ151)<AT20,AP152,AT20-SUM(AQ148:AQ151)) -> 0 | AR152: 0 | AS152: =IFERROR(IF('1. Plan Inputs'!V50="No",AR152*AT21+IF('1. Plan Inputs'!$V$46="Yes",Worksheet!AT123,0)+IF('1. Plan Inputs'!$V$48="Yes",Worksheet!AT127,0),Worksheet!AR152*((Worksheet!AT21*SUM(Worksheet!AT102:AT110,Worksheet!AT121)+IF('1. Plan Inputs'!$V$48="Yes",SUMPRODUCT(Worksheet!AT111:AT118,Worksheet!AP158:AP165),0))/SUM(Worksheet!AT102:AT121))+IF('1. Plan Inputs'!$V$46="Yes",Worksheet!AT123,0)+IF('1. Plan Inputs'!$V$48="Yes",Worksheet!AT127,0)),0) -> 0 | AT152: =IF(AQ152+AS152+SUM(AT148:AT151)<AT23,AQ152+AS152,AT23-SUM(AT148:AT151)) -> 0
A153: Member6 | B153: =G131 -> 0 | C153: =IF(B153+SUM(C148:C152)<G20,B153,G20-SUM(C148:C152)) -> 0 | D153: 0 | E153: =IFERROR(IF('1. Plan Inputs'!G50="No",D153*G21+IF('1. Plan Inputs'!$G$46="Yes",Worksheet!G123,0)+IF('1. Plan Inputs'!$G$48="Yes",Worksheet!G127,0),Worksheet!D153*((Worksheet!G21*SUM(Worksheet!G102:G110,Worksheet!G121)+IF('1. Plan Inputs'!$G$48="Yes",SUMPRODUCT(Worksheet!G111:G118,Worksheet!B158:B165),0))/SUM(Worksheet!G102:G121))+IF('1. Plan Inputs'!$G$46="Yes",Worksheet!G123,0)+IF('1. Plan Inputs'!$G$48="Yes",Worksheet!G127,0)),0) -> 0 | F153: =IF(C153+E153+SUM(F148:F152)<G23,C153+E153,G23-SUM(F148:F152)) -> 0 | I153: Member6 | J153: =O131 -> 0 | K153: =IF(J153+SUM(K148:K152)<O20,J153,O20-SUM(K148:K152)) -> 0 | L153: 0 | M153: =IFERROR(IF('1. Plan Inputs'!J50="No",L153*O21+IF('1. Plan Inputs'!$J$46="Yes",Worksheet!O123,0)+IF('1. Plan Inputs'!$J$48="Yes",Worksheet!O127,0),Worksheet!L153*((Worksheet!O21*SUM(Worksheet!O102:O110,Worksheet!O121)+IF('1. Plan Inputs'!$J$48="Yes",SUMPRODUCT(Worksheet!O111:O118,Worksheet!J158:J165),0))/SUM(Worksheet!O102:O121))+IF('1. Plan Inputs'!$J$46="Yes",Worksheet!O123,0)+IF('1. Plan Inputs'!$J$48="Yes",Worksheet!O127,0)),0) -> 0 | N153: =IF(K153+M153+SUM(N148:N152)<O23,K153+M153,O23-SUM(N148:N152)) -> 0 | Q153: Member6 | R153: =W131 -> 0 | S153: =IF(R153+SUM(S148:S152)<W20,R153,W20-SUM(S148:S152)) -> 0 | T153: 0 | U153: =IFERROR(IF('1. Plan Inputs'!M50="No",T153*W21+IF('1. Plan Inputs'!$M$46="Yes",Worksheet!W123,0)+IF('1. Plan Inputs'!$M$48="Yes",Worksheet!W127,0),Worksheet!T153*((Worksheet!W21*SUM(Worksheet!W102:W110,Worksheet!W121)+IF('1. Plan Inputs'!$M$48="Yes",SUMPRODUCT(Worksheet!W111:W118,Worksheet!R158:R165),0))/SUM(Worksheet!W102:W121))+IF('1. Plan Inputs'!$M$46="Yes",Worksheet!W123,0)+IF('1. Plan Inputs'!$M$48="Yes",Worksheet!W127,0)),0) -> 0 | V153: =IF(S153+U153+SUM(V148:V152)<W23,S153+U153,W23-SUM(V148:V152)) -> 0 | Y153: Member6 | Z153: =AE131 -> 0 | AA153: =IF(Z153+SUM(AA148:AA152)<AE20,Z153,AE20-SUM(AA148:AA152)) -> 0 | AB153: 0 | AC153: =IFERROR(IF('1. Plan Inputs'!P50="No",AB153*AE21+IF('1. Plan Inputs'!$P$46="Yes",Worksheet!AE123,0)+IF('1. Plan Inputs'!$P$48="Yes",Worksheet!AE127,0),Worksheet!AB153*((Worksheet!AE21*SUM(Worksheet!AE102:AE110,Worksheet!AE121)+IF('1. Plan Inputs'!$P$48="Yes",SUMPRODUCT(Worksheet!AE111:AE118,Worksheet!Z158:Z165),0))/SUM(Worksheet!AE102:AE121))+IF('1. Plan Inputs'!$P$46="Yes",Worksheet!AE123,0)+IF('1. Plan Inputs'!$P$48="Yes",Worksheet!AE127,0)),0) -> 0 | AD153: =IF(AA153+AC153+SUM(AD148:AD152)<AE23,AA153+AC153,AE23-SUM(AD148:AD152)) -> 0 | AG153: Member6 | AH153: =AM131 -> 0 | AI153: =IF(AH153+SUM(AI148:AI152)<AM20,AH153,AM20-SUM(AI148:AI152)) -> 0 | AJ153: 0 | AK153: =IFERROR(IF('1. Plan Inputs'!S50="No",AJ153*AM21+IF('1. Plan Inputs'!$S$46="Yes",Worksheet!AM123,0)+IF('1. Plan Inputs'!$S$48="Yes",Worksheet!AM127,0),Worksheet!AJ153*((Worksheet!AM21*SUM(Worksheet!AM102:AM110,Worksheet!AM121)+IF('1. Plan Inputs'!$S$48="Yes",SUMPRODUCT(Worksheet!AM111:AM118,Worksheet!AH158:AH165),0))/SUM(Worksheet!AM102:AM121))+IF('1. Plan Inputs'!$S$46="Yes",Worksheet!AM123,0)+IF('1. Plan Inputs'!$S$48="Yes",Worksheet!AM127,0)),0) -> 0 | AL153: =IF(AI153+AK153+SUM(AL148:AL152)<AM23,AI153+AK153,AM23-SUM(AL148:AL152)) -> 0 | AO153: Member6 | AP153: =AU131 -> 0 | AQ153: =IF(AP153+SUM(AQ148:AQ152)<AU20,AP153,AU20-SUM(AQ148:AQ152)) -> 0 | AR153: 0 | AS153: =IFERROR(IF('1. Plan Inputs'!V50="No",AR153*AU21+IF('1. Plan Inputs'!$V$46="Yes",Worksheet!AU123,0)+IF('1. Plan Inputs'!$V$48="Yes",Worksheet!AU127,0),Worksheet!AR153*((Worksheet!AU21*SUM(Worksheet!AU102:AU110,Worksheet!AU121)+IF('1. Plan Inputs'!$V$48="Yes",SUMPRODUCT(Worksheet!AU111:AU118,Worksheet!AP158:AP165),0))/SUM(Worksheet!AU102:AU121))+IF('1. Plan Inputs'!$V$46="Yes",Worksheet!AU123,0)+IF('1. Plan Inputs'!$V$48="Yes",Worksheet!AU127,0)),0) -> 0 | AT153: =IF(AQ153+AS153+SUM(AT148:AT152)<AU23,AQ153+AS153,AU23-SUM(AT148:AT152)) -> 0
A154: Total | B154: =SUM(B148:B153) -> 0 | C154: =SUM(C148:C153) -> 0 | D154: =SUM(D148:D153) -> 0 | E154: =SUM(E148:E153) -> 0 | F154: =SUM(F148:F153)+IF('1. Plan Inputs'!G46="Yes",0,SUM(Worksheet!B123:G123))+IF('1. Plan Inputs'!G48="Yes",0,SUM(Worksheet!B127:G127))+IFERROR(IF('1. Plan Inputs'!G48="Yes",0,D148*SUMPRODUCT(B111:B118,B158:B165/SUM(B102:B121))),0)+IFERROR(IF('1. Plan Inputs'!G48="Yes",0,D149*SUMPRODUCT(C111:C118,B158:B165/SUM(C102:C121))),0)+IFERROR(IF('1. Plan Inputs'!G48="Yes",0,D150*SUMPRODUCT(D111:D118,B158:B165/SUM(D102:D121))),0)+IFERROR(IF('1. Plan Inputs'!G48="Yes",0,D151*SUMPRODUCT(E111:E118,B158:B165/SUM(E102:E121))),0)+IFERROR(IF('1. Plan Inputs'!G48="Yes",0,D152*SUMPRODUCT(F111:F118,B158:B165/SUM(F102:F121))),0)+IFERROR(IF('1. Plan Inputs'!G48="Yes",0,D153*SUMPRODUCT(G111:G118,B158:B165/SUM(G102:G121))),0) -> 0 | I154: Total | J154: =SUM(J148:J153) -> 0 | K154: =SUM(K148:K153) -> 0 | L154: =SUM(L148:L153) -> 0 | M154: =SUM(M148:M153) -> 0 | N154: =SUM(N148:N153)+IF('1. Plan Inputs'!J46="Yes",0,SUM(Worksheet!J123:O123))+IF('1. Plan Inputs'!J48="Yes",0,SUM(Worksheet!J127:O127))+IFERROR(IF('1. Plan Inputs'!J48="Yes",0,L148*SUMPRODUCT(J111:J118,J158:J165/SUM(J102:J121))),0)+IFERROR(IF('1. Plan Inputs'!J48="Yes",0,L149*SUMPRODUCT(K111:K118,J158:J165/SUM(K102:K121))),0)+IFERROR(IF('1. Plan Inputs'!J48="Yes",0,L150*SUMPRODUCT(L111:L118,J158:J165/SUM(L102:L121))),0)+IFERROR(IF('1. Plan Inputs'!J48="Yes",0,L151*SUMPRODUCT(M111:M118,J158:J165/SUM(M102:M121))),0)+IFERROR(IF('1. Plan Inputs'!J48="Yes",0,L152*SUMPRODUCT(N111:N118,J158:J165/SUM(N102:N121))),0)+IFERROR(IF('1. Plan Inputs'!J48="Yes",0,L153*SUMPRODUCT(O111:O118,J158:J165/SUM(O102:O121))),0) -> 0 | Q154: Total | R154: =SUM(R148:R153) -> 0 | S154: =SUM(S148:S153) -> 0 | T154: =SUM(T148:T153) -> 0 | U154: =SUM(U148:U153) -> 0 | V154: =SUM(V148:V153)+IF('1. Plan Inputs'!M46="Yes",0,SUM(Worksheet!R123:W123))+IF('1. Plan Inputs'!M48="Yes",0,SUM(Worksheet!R127:W127))+IFERROR(IF('1. Plan Inputs'!M48="Yes",0,T148*SUMPRODUCT(R111:R118,R158:R165/SUM(R102:R121))),0)+IFERROR(IF('1. Plan Inputs'!M48="Yes",0,T149*SUMPRODUCT(S111:S118,R158:R165/SUM(S102:S121))),0)+IFERROR(IF('1. Plan Inputs'!M48="Yes",0,T150*SUMPRODUCT(T111:T118,R158:R165/SUM(T102:T121))),0)+IFERROR(IF('1. Plan Inputs'!M48="Yes",0,T151*SUMPRODUCT(U111:U118,R158:R165/SUM(U102:U121))),0)+IFERROR(IF('1. Plan Inputs'!M48="Yes",0,T152*SUMPRODUCT(V111:V118,R158:R165/SUM(V102:V121))),0)+IFERROR(IF('1. Plan Inputs'!M48="Yes",0,T153*SUMPRODUCT(W111:W118,R158:R165/SUM(W102:W121))),0) -> 0 | Y154: Total | Z154: =SUM(Z148:Z153) -> 0 | AA154: =SUM(AA148:AA153) -> 0 | AB154: =SUM(AB148:AB153) -> 0 | AC154: =SUM(AC148:AC153) -> 0 | AD154: =SUM(AD148:AD153)+IF('1. Plan Inputs'!P46="Yes",0,SUM(Worksheet!Z123:AE123))+IF('1. Plan Inputs'!P48="Yes",0,SUM(Worksheet!Z127:AE127))+IFERROR(IF('1. Plan Inputs'!P48="Yes",0,AB148*SUMPRODUCT(Z111:Z118,Z158:Z165/SUM(Z102:Z121))),0)+IFERROR(IF('1. Plan Inputs'!P48="Yes",0,AB149*SUMPRODUCT(AA111:AA118,Z158:Z165/SUM(AA102:AA121))),0)+IFERROR(IF('1. Plan Inputs'!P48="Yes",0,AB150*SUMPRODUCT(AB111:AB118,Z158:Z165/SUM(AB102:AB121))),0)+IFERROR(IF('1. Plan Inputs'!P48="Yes",0,AB151*SUMPRODUCT(AC111:AC118,Z158:Z165/SUM(AC102:AC121))),0)+IFERROR(IF('1. Plan Inputs'!P48="Yes",0,AB152*SUMPRODUCT(AD111:AD118,Z158:Z165/SUM(AD102:AD121))),0)+IFERROR(IF('1. Plan Inputs'!P48="Yes",0,AB153*SUMPRODUCT(AE111:AE118,Z158:Z165/SUM(AE102:AE121))),0) -> 0 | AG154: Total | AH154: =SUM(AH148:AH153) -> 0 | AI154: =SUM(AI148:AI153) -> 0 | AJ154: =SUM(AJ148:AJ153) -> 0 | AK154: =SUM(AK148:AK153) -> 0 | AL154: =SUM(AL148:AL153)+IF('1. Plan Inputs'!S46="Yes",0,SUM(Worksheet!AH123:AM123))+IF('1. Plan Inputs'!S48="Yes",0,SUM(Worksheet!AH127:AM127))+IFERROR(IF('1. Plan Inputs'!S48="Yes",0,AJ148*SUMPRODUCT(AH111:AH118,AH158:AH165/SUM(AH102:AH121))),0)+IFERROR(IF('1. Plan Inputs'!S48="Yes",0,AJ149*SUMPRODUCT(AI111:AI118,AH158:AH165/SUM(AI102:AI121))),0)+IFERROR(IF('1. Plan Inputs'!S48="Yes",0,AJ150*SUMPRODUCT(AJ111:AJ118,AH158:AH165/SUM(AJ102:AJ121))),0)+IFERROR(IF('1. Plan Inputs'!S48="Yes",0,AJ151*SUMPRODUCT(AK111:AK118,AH158:AH165/SUM(AK102:AK121))),0)+IFERROR(IF('1. Plan Inputs'!S48="Yes",0,AJ152*SUMPRODUCT(AL111:AL118,AH158:AH165/SUM(AL102:AL121))),0)+IFERROR(IF('1. Plan Inputs'!S48="Yes",0,AJ153*SUMPRODUCT(AM111:AM118,AH158:AH165/SUM(AM102:AM121))),0) -> 0 | AO154: Total | AP154: =SUM(AP148:AP153) -> 0 | AQ154: =SUM(AQ148:AQ153) -> 0 | AR154: =SUM(AR148:AR153) -> 0 | AS154: =SUM(AS148:AS153) -> 0 | AT154: =SUM(AT148:AT153)+IF('1. Plan Inputs'!V46="Yes",0,SUM(Worksheet!AP123:AU123))+IF('1. Plan Inputs'!V48="Yes",0,SUM(Worksheet!AP127:AU127))+IFERROR(IF('1. Plan Inputs'!V48="Yes",0,AR148*SUMPRODUCT(AP111:AP118,AP158:AP165/SUM(AP102:AP121))),0)+IFERROR(IF('1. Plan Inputs'!V48="Yes",0,AR149*SUMPRODUCT(AQ111:AQ118,AP158:AP165/SUM(AQ102:AQ121))),0)+IFERROR(IF('1. Plan Inputs'!V48="Yes",0,AR150*SUMPRODUCT(AR111:AR118,AP158:AP165/SUM(AR102:AR121))),0)+IFERROR(IF('1. Plan Inputs'!V48="Yes",0,AR151*SUMPRODUCT(AS111:AS118,AP158:AP165/SUM(AS102:AS121))),0)+IFERROR(IF('1. Plan Inputs'!V48="Yes",0,AR152*SUMPRODUCT(AT111:AT118,AP158:AP165/SUM(AT102:AT121))),0)+IFERROR(IF('1. Plan Inputs'!V48="Yes",0,AR153*SUMPRODUCT(AU111:AU118,AP158:AP165/SUM(AU102:AU121))),0) -> 0
A157: Rx Coinsurance / Coinsurance Equivalent: | I157: Rx Coinsurance / Coinsurance Equivalent: | Q157: Rx Coinsurance / Coinsurance Equivalent: | Y157: Rx Coinsurance / Coinsurance Equivalent: | AG157: Rx Coinsurance / Coinsurance Equivalent: | AO157: Rx Coinsurance / Coinsurance Equivalent:
A158: Rx Generic (Retail): | B158: =IF(OR('1. Plan Inputs'!F53=0,'1. Plan Inputs'!F53=""),'1. Plan Inputs'!G53,B35/B73) -> 0.3225806452 | I158: Rx Generic (Retail): | J158: =IF(OR('1. Plan Inputs'!I53=0,'1. Plan Inputs'!I53=""),'1. Plan Inputs'!J53,J35/J73) -> 0.3225806452 | Q158: Rx Generic (Retail): | R158: =IF(OR('1. Plan Inputs'!L53=0,'1. Plan Inputs'!L53=""),'1. Plan Inputs'!M53,R35/R73) -> 0.3225806452 | Y158: Rx Generic (Retail): | Z158: =IF(OR('1. Plan Inputs'!O53=0,'1. Plan Inputs'!O53=""),'1. Plan Inputs'!P53,Z35/Z73) -> 0 | AG158: Rx Generic (Retail): | AH158: =IF(OR('1. Plan Inputs'!R53=0,'1. Plan Inputs'!R53=""),'1. Plan Inputs'!S53,AH35/AH73) -> 0 | AO158: Rx Generic (Retail): | AP158: =IF(OR('1. Plan Inputs'!U53=0,'1. Plan Inputs'!U53=""),'1. Plan Inputs'!V53,AP35/AP73) -> 0
A159: Rx Brand Formulary (Retail): | B159: =IF(OR('1. Plan Inputs'!F54=0,'1. Plan Inputs'!F54=""),'1. Plan Inputs'!G54,B36/B74) -> 0.1198630137 | I159: Rx Brand Formulary (Retail): | J159: =IF(OR('1. Plan Inputs'!I54=0,'1. Plan Inputs'!I54=""),'1. Plan Inputs'!J54,J36/J74) -> 0.1198630137 | Q159: Rx Brand Formulary (Retail): | R159: =IF(OR('1. Plan Inputs'!L54=0,'1. Plan Inputs'!L54=""),'1. Plan Inputs'!M54,R36/R74) -> 0.1198630137 | Y159: Rx Brand Formulary (Retail): | Z159: =IF(OR('1. Plan Inputs'!O54=0,'1. Plan Inputs'!O54=""),'1. Plan Inputs'!P54,Z36/Z74) -> 0 | AG159: Rx Brand Formulary (Retail): | AH159: =IF(OR('1. Plan Inputs'!R54=0,'1. Plan Inputs'!R54=""),'1. Plan Inputs'!S54,AH36/AH74) -> 0 | AO159: Rx Brand Formulary (Retail): | AP159: =IF(OR('1. Plan Inputs'!U54=0,'1. Plan Inputs'!U54=""),'1. Plan Inputs'!V54,AP36/AP74) -> 0
A160: Rx Brand Non-Formulary (Retail): | B160: =IF(OR('1. Plan Inputs'!F55=0,'1. Plan Inputs'!F55=""),'1. Plan Inputs'!G55,B37/B75) -> 0.2054794521 | I160: Rx Brand Non-Formulary (Retail): | J160: =IF(OR('1. Plan Inputs'!I55=0,'1. Plan Inputs'!I55=""),'1. Plan Inputs'!J55,J37/J75) -> 0.2054794521 | Q160: Rx Brand Non-Formulary (Retail): | R160: =IF(OR('1. Plan Inputs'!L55=0,'1. Plan Inputs'!L55=""),'1. Plan Inputs'!M55,R37/R75) -> 0.2054794521 | Y160: Rx Brand Non-Formulary (Retail): | Z160: =IF(OR('1. Plan Inputs'!O55=0,'1. Plan Inputs'!O55=""),'1. Plan Inputs'!P55,Z37/Z75) -> 0 | AG160: Rx Brand Non-Formulary (Retail): | AH160: =IF(OR('1. Plan Inputs'!R55=0,'1. Plan Inputs'!R55=""),'1. Plan Inputs'!S55,AH37/AH75) -> 0 | AO160: Rx Brand Non-Formulary (Retail): | AP160: =IF(OR('1. Plan Inputs'!U55=0,'1. Plan Inputs'!U55=""),'1. Plan Inputs'!V55,AP37/AP75) -> 0
A161: Rx Specialty (Retail): | B161: =IF(OR('1. Plan Inputs'!F56=0,'1. Plan Inputs'!F56=""),'1. Plan Inputs'!G56,B38/B76) -> 0.02195389682 | I161: Rx Specialty (Retail): | J161: =IF(OR('1. Plan Inputs'!I56=0,'1. Plan Inputs'!I56=""),'1. Plan Inputs'!J56,J38/J76) -> 0.02195389682 | Q161: Rx Specialty (Retail): | R161: =IF(OR('1. Plan Inputs'!L56=0,'1. Plan Inputs'!L56=""),'1. Plan Inputs'!M56,R38/R76) -> 0.02195389682 | Y161: Rx Specialty (Retail): | Z161: =IF(OR('1. Plan Inputs'!O56=0,'1. Plan Inputs'!O56=""),'1. Plan Inputs'!P56,Z38/Z76) -> 0 | AG161: Rx Specialty (Retail): | AH161: =IF(OR('1. Plan Inputs'!R56=0,'1. Plan Inputs'!R56=""),'1. Plan Inputs'!S56,AH38/AH76) -> 0 | AO161: Rx Specialty (Retail): | AP161: =IF(OR('1. Plan Inputs'!U56=0,'1. Plan Inputs'!U56=""),'1. Plan Inputs'!V56,AP38/AP76) -> 0
A162: Rx Generic (Mail): | B162: =IF(OR('1. Plan Inputs'!F57=0,'1. Plan Inputs'!F57=""),'1. Plan Inputs'!G57,B39/B77) -> 0.2150537634 | I162: Rx Generic (Mail): | J162: =IF(OR('1. Plan Inputs'!I57=0,'1. Plan Inputs'!I57=""),'1. Plan Inputs'!J57,J39/J77) -> 0.2150537634 | Q162: Rx Generic (Mail): | R162: =IF(OR('1. Plan Inputs'!L57=0,'1. Plan Inputs'!L57=""),'1. Plan Inputs'!M57,R39/R77) -> 0.2150537634 | Y162: Rx Generic (Mail): | Z162: =IF(OR('1. Plan Inputs'!O57=0,'1. Plan Inputs'!O57=""),'1. Plan Inputs'!P57,Z39/Z77) -> 0 | AG162: Rx Generic (Mail): | AH162: =IF(OR('1. Plan Inputs'!R57=0,'1. Plan Inputs'!R57=""),'1. Plan Inputs'!S57,AH39/AH77) -> 0 | AO162: Rx Generic (Mail): | AP162: =IF(OR('1. Plan Inputs'!U57=0,'1. Plan Inputs'!U57=""),'1. Plan Inputs'!V57,AP39/AP77) -> 0
A163: Rx Brand Formulary (Mail): | B163: =IF(OR('1. Plan Inputs'!F58=0,'1. Plan Inputs'!F58=""),'1. Plan Inputs'!G58,B40/B78) -> 0.0799086758 | I163: Rx Brand Formulary (Mail): | J163: =IF(OR('1. Plan Inputs'!I58=0,'1. Plan Inputs'!I58=""),'1. Plan Inputs'!J58,J40/J78) -> 0.0799086758 | Q163: Rx Brand Formulary (Mail): | R163: =IF(OR('1. Plan Inputs'!L58=0,'1. Plan Inputs'!L58=""),'1. Plan Inputs'!M58,R40/R78) -> 0.0799086758 | Y163: Rx Brand Formulary (Mail): | Z163: =IF(OR('1. Plan Inputs'!O58=0,'1. Plan Inputs'!O58=""),'1. Plan Inputs'!P58,Z40/Z78) -> 0 | AG163: Rx Brand Formulary (Mail): | AH163: =IF(OR('1. Plan Inputs'!R58=0,'1. Plan Inputs'!R58=""),'1. Plan Inputs'!S58,AH40/AH78) -> 0 | AO163: Rx Brand Formulary (Mail): | AP163: =IF(OR('1. Plan Inputs'!U58=0,'1. Plan Inputs'!U58=""),'1. Plan Inputs'!V58,AP40/AP78) -> 0
A164: Rx Brand Non-Formulary (Mail): | B164: =IF(OR('1. Plan Inputs'!F59=0,'1. Plan Inputs'!F59=""),'1. Plan Inputs'!G59,B41/B79) -> 0.1369863014 | I164: Rx Brand Non-Formulary (Mail): | J164: =IF(OR('1. Plan Inputs'!I59=0,'1. Plan Inputs'!I59=""),'1. Plan Inputs'!J59,J41/J79) -> 0.1369863014 | Q164: Rx Brand Non-Formulary (Mail): | R164: =IF(OR('1. Plan Inputs'!L59=0,'1. Plan Inputs'!L59=""),'1. Plan Inputs'!M59,R41/R79) -> 0.1369863014 | Y164: Rx Brand Non-Formulary (Mail): | Z164: =IF(OR('1. Plan Inputs'!O59=0,'1. Plan Inputs'!O59=""),'1. Plan Inputs'!P59,Z41/Z79) -> 0 | AG164: Rx Brand Non-Formulary (Mail): | AH164: =IF(OR('1. Plan Inputs'!R59=0,'1. Plan Inputs'!R59=""),'1. Plan Inputs'!S59,AH41/AH79) -> 0 | AO164: Rx Brand Non-Formulary (Mail): | AP164: =IF(OR('1. Plan Inputs'!U59=0,'1. Plan Inputs'!U59=""),'1. Plan Inputs'!V59,AP41/AP79) -> 0
A165: Rx Specialty (Mail): | B165: =IF(OR('1. Plan Inputs'!F60=0,'1. Plan Inputs'!F60=""),'1. Plan Inputs'!G60,B42/B80) -> 0.01463593121 | I165: Rx Specialty (Mail): | J165: =IF(OR('1. Plan Inputs'!I60=0,'1. Plan Inputs'!I60=""),'1. Plan Inputs'!J60,J42/J80) -> 0.01463593121 | Q165: Rx Specialty (Mail): | R165: =IF(OR('1. Plan Inputs'!L60=0,'1. Plan Inputs'!L60=""),'1. Plan Inputs'!M60,R42/R80) -> 0.01463593121 | Y165: Rx Specialty (Mail): | Z165: =IF(OR('1. Plan Inputs'!O60=0,'1. Plan Inputs'!O60=""),'1. Plan Inputs'!P60,Z42/Z80) -> 0 | AG165: Rx Specialty (Mail): | AH165: =IF(OR('1. Plan Inputs'!R60=0,'1. Plan Inputs'!R60=""),'1. Plan Inputs'!S60,AH42/AH80) -> 0 | AO165: Rx Specialty (Mail): | AP165: =IF(OR('1. Plan Inputs'!U60=0,'1. Plan Inputs'!U60=""),'1. Plan Inputs'!V60,AP42/AP80) -> 0
E167: Low Adult | F167: Med Adult | G167: High Adult | H167: Low Child | I167: Med Child | J167: High Child
A168: Preventive Services | B168: Annual number of Covered Preventive Visits | E168: 1 | F168: 1 | G168: 1 | H168: 1 | I168: 1 | J168: 1
A169: Hospitalizations | B169: Annual number of Days in Hospitals | E169: 0 | F169: 0 | G169: =1*ROUND(A198,0) -> 0 | H169: 0 | I169: 0 | J169: =1*ROUND(A198,0) -> 0
A170: Outpatient Surgery | B170: Annual number of Outpatient Surgeries | E170: 0 | F170: 2 | G170: 5 | H170: 0 | I170: 1 | J170: 2
A171: Lab/X-ray/other Radiology Performed in Hospital/Outpatient Facility | B171: Annual number of Lab/Radiology Procedures | E171: 0 | F171: 1 | G171: 3 | H171: 0 | I171: 1 | J171: 2
A172: Emergency Room Visits | B172: Annual number of Emergency Room Visits | E172: 0 | F172: 0 | G172: 1 | H172: 0 | I172: 0 | J172: 1
A173: Urgent Care Visits | B173: Annual number of Urgent Care Vistits | E173: 0 | F173: 0 | G173: 0 | H173: 0 | I173: 0 | J173: 0
A174: Office Visits | B174: Annual number of Primary Care Office Visits | E174: 1 | F174: 4 | G174: 8 | H174: 1 | I174: 4 | J174: 7
B175: Annual number of Specialists Office Visits | E175: 1 | F175: 4 | G175: 8 | H175: 1 | I175: 4 | J175: 7
B176: Annual number of Chiropractor Visits | E176: 0 | F176: 0 | G176: 0 | H176: 0 | I176: 0 | J176: 0
A177: Prescription Drugs | B177: Total number of Generic Prescriptions (Retail)—Annual | E177: 3 | F177: 12 | G177: 23 | H177: 1 | I177: 4 | J177: 10
B178: Total number of Formulary Brand-name Prescriptions (Retail)—Annual | E178: 0 | F178: 3 | G178: 8 | H178: 0 | I178: 2 | J178: 4
B179: Total number of Non-Formulary Brand-name Prescriptions (Retail)—Annual | E179: 0 | F179: 0 | G179: 0 | H179: 0 | I179: 0 | J179: 0
B180: Total number of Specialty Prescriptions (Retail)—Annual | E180: 0 | F180: 0 | G180: 0 | H180: 0 | I180: 0 | J180: 0
B181: Total number of Generic Prescriptions (Mail)—Annual | E181: 0 | F181: 0 | G181: 0 | H181: 0 | I181: 0 | J181: 0
B182: Total number of Formulary Brand-name Prescriptions (Mail)—Annual | E182: 0 | F182: 0 | G182: 0 | H182: 0 | I182: 0 | J182: 0
B183: Total number of Non-Formulary Brand-name Prescriptions (Mail)—Annual | E183: 0 | F183: 0 | G183: 0 | H183: 0 | I183: 0 | J183: 0
B184: Total number of Specialty Prescriptions (Mail)—Annual | E184: 0 | F184: 0 | G184: 0 | H184: 0 | I184: 0 | J184: 0
B186: Annual Contribution | C186: Out of Pocket After HSA/HRA | D186: Hold | E186: OOP Offset by HSA/HRA Employer Wellness Fund | F186: =MAX(F189:F192)+250 ->  | G186: Rest
A187: =IF('1. Plan Inputs'!U17=0,"",'1. Plan Inputs'!U1) ->  | B187: =Calculator!D77 ->  | C187: =MAX(Calculator!C77-Calculator!F77,0) ->  | E187: =Calculator!C77-Worksheet!C187 -> 
A188: =IF('1. Plan Inputs'!R17=0,"",'1. Plan Inputs'!R17) ->  | B188: =Calculator!D76 ->  | C188: =MAX(Calculator!C76-Calculator!F76,0) ->  | E188: =Calculator!C76-Worksheet!C188 -> 
A189: =IF('1. Plan Inputs'!O17=0,"",'1. Plan Inputs'!O17) ->  | B189: =Calculator!D75 ->  | C189: =MAX(Calculator!C75-Calculator!F75,0) ->  | D189: =$F$186-B189-C189 ->  | E189: =Calculator!C75-Worksheet!C189 ->  | F189: =B189+C189 ->  | G189: =D189 -> 
A190: =IF('1. Plan Inputs'!L17=0,"",'1. Plan Inputs'!L17) -> HSA 2000 | B190: =Calculator!D74 -> 673.14 | C190: =MAX(Calculator!C74-Calculator!F74,0) -> 0 | D190: =$F$186-B190-C190 ->  | E190: =Calculator!C74-Worksheet!C190 -> 0 | F190: =B190+C190 -> 673.14 | G190: =D190 -> 
A191: =IF('1. Plan Inputs'!I17=0,"",'1. Plan Inputs'!I17) -> HSA 1350 | B191: =Calculator!D73 -> 1531.14 | C191: =MAX(Calculator!C73-Calculator!F73,0) -> 0 | D191: =$F$186-B191-C191 ->  | E191: =Calculator!C73-Worksheet!C191 -> 0 | F191: =B191+C191 -> 1531.14
A192: ='1. Plan Inputs'!F17 -> OAP | B192: =Calculator!D72 -> 2165.28 | C192: =MAX(Calculator!C72-Calculator!F72,0) -> 0 | D192: =$F$186-B192-C192 ->  | E192: =Calculator!C72-Worksheet!C192 -> 0 | F192: =B192+C192 -> 2165.28
B205: Service | C205: Benchmark | D205: Source
B206: Cost of Covered Preventive Services | C206: 128.8575 | D206: Access Data
B207: Cost for Hospitalizations per Day | C207: 4362 | D207: InfoLock Norm
B208: Cost for Outpatient Surgeries | C208: 1293.968887 | D208: Access Data
B209: Cost of Lab/Radiology Procedures | C209: 260.05 | D209: Access Data
B210: Cost of Emergency Room | C210: 1849 | D210: InfoLock Norm
B211: Cost of Urgent Care | C211: 138 | D211: Access Data
B212: Cost of Primary Care Office Visits, including lab and x-ray | C212: 130.9618333 | D212: Access Data
B213: Cost of Specialists Office Visits, including lab and x-ray | C213: 189.62 | D213: Access Data
B214: Cost of Chiropractor Visit | C214: 34.5 | D214: Access Data
B215: Cost per Generic Prescription | C215: 31 | D215: InfoLock Norm
B216: Cost per Formulary Brand-Name Prescription | C216: 292 | D216: InfoLock Norm
B217: Cost per Non-Formulary Brand-Name Prescription | C217: 292 | D217: InfoLock Norm
B218: Cost per Specialty Prescription | C218: 2733 | D218: InfoLock Norm
